Workbook

Sheet Handleiding
A1: Inventarisatie en typologering van de bewaarde bespannen landbouwvoertuigen in Vlaanderen”
A4: Voor het eerst werden meer dan 350 voertuigen opgenomen in een systematisch onderzoek van de bewaarde bespannen landbouwvoertuigen in Vlaanderen. Dit onderzoek heeft geleid tot een grondig inzicht van de verschillende gedefinieerde typologische groepen, regionale kenmerken en de online databases geïntegreerd in het 'Virtueel Land' van het Centrum voor Agrarische (http://www.cagnet.be/).
A6: Het project werd uitgevoerd door het Karrenmuseum Esesn vzw met steun van de Vlaamse Overheid.
A15: Dit document bestaat uit de volgende werkbladen:
A16: Handleiding/ Database/ Keuzelijsten/ Hiërarische structuurboom/ Typologische groepen/ Regionale kenmerken/ Terminologielijst
A18: De toelichting tot het gebruik van deze werkbladen is hieronder opgenomen.
A21: © 2013, Karrenmuseum Essen vzw
A22: info@karrenmuseum.be
A23: Moerkantsebaan 48, 2910 Essen
A24: Belgie
A26: Alle rechten voorbehouden.
A27: Niets uit deze uitgave mag worden verveelvoudigd, opgeslagen in een geautomatiseerd gegevensbestand en/of openbaar gemaakt in enige vorm of op enige wijze, hetzij elektronisch, mechanisch, door fotokopieën, opnamen of op enige andere manier zonder voorafgaande schriftelijke toestemming van het Karrenmuseum Essen vzw
A29: Database
A31: In de database zijn alle voertuigen opgenomen die deel uitmaken van het onderzoek.
B56: Kleur van de kopregel
C57: Inventarisatiegegevens
C58: Informatie met betrekking tot de wielen
C59: Informatie met betrekking tot het onderstel
C60: Informatie met betrekking tot het bovenstel
C61: Informatie met betrekking tot de toebehoren
C62: Waardeoordeel
A66: Informatie is vaak herleid tot een code. Deze worden verduidelijkt in het werkblad 'Keuzelijsten'.
A93: Alle opgenomen maten zijn uitgedrukt in millimeter.
A95: Voorkomende afkortingen in de kopregel
B96: W | C96: Wielen
B97: W.V. | C97: Voorwielen
B98: W.A. | C98: Achterwielen
B99: O.A | C99: Achteronderstel
B100: O. | C100: Onderstel
B101: B. | C101: Bovenstel
B102: T. | C102: Toebehoren
A105: Keuzelijsten.
A107: In de keuzelijsten zijn alle voorkomende keuzemogelijkheden gedocumenteerd en toegelicht.
B110: Kleur van de kopregel
C111: Inventarisatiegegevens
C112: Informatie met betrekking tot de wielen
C113: Informatie met betrekking tot het onderstel
C114: Informatie met betrekking tot het bovenstel
C115: Informatie met betrekking tot de toebehoren
C116: Waardeoordeel
A120: Typologische groepen.
A122: Op basis van de database werden gegevens geselecteerd en geprojecteerd op achtergrondkaarten in Google Earth. De waargenomen typologische groepen worden in dit werkblad gedefineerd en beschreven.
A123: Hierbij is de relatie tussen de verschillende typologische groepen aangegeven, beschrijving, het typevoorbeeld, geografische verschijning en specifieke kenmerken.
A127: Hiërarchische structuurboom.
A129: Een visuele waargave van de typologische groepen.
A133: Detail kenmerken.
A135: In het tapblad 'Detail kenmerken' zijn een uitgebreide reeks constructie-elemeneten en profileringen opgenomen en bestudeerd naar geograrische verspreiding. In dit tabblad zijn de belangrijkste opgenomen.
A172: Terminologielijst

Sheet Database
A1: Databases
A2: Nr. | C2: Inventarisnr. | D2: Plaats inv. | E2: Data pre. | F2: Data 1. | G2: Data 2. | H2: Plaats van bewaring. | I2: Pre vervaardiger 1. | J2: Vervaardiger 1. | K2: Pre vervaardiger 2. | L2: Vervaardiger 2. | M2: Pre verwerving 1. | N2: Pre verwerving 2. | O2: Verwerving. | P2: Postcode. | Q2: Plaats. | R2: Provincie | S2: Land | T2: Hoofdgroep | U2: Kenmerk | W2: Objectnaam | X2: Fysische beschrijving | Y2: Materiaal | AI2: Databases CAG | AK2: W. Aantal wielen | AL2: W.V. Aantal wielen | AM2: W.V. Wiel. | AP2: W.V. Naaf. | AS2: W.V. Breedte spaak | AU2: W.V. Dikte spaken. | AX2: W.V. Kromte. | BA2: W.V. Velg | BC2: W. V. Naafprofielering | BE2: W. V. Profielering | BG2: W.V. Type muilband | BJ2: W.V. Verbinding band/velg | BK2: W.V. Aantal naafbanden | BO2: W.V. Br. Naafband | BP2: W.V. Spoorbreedte | BQ2: W.A. Aantal | BR2: W.A. Wiel | BU2: W.A. Naaf | BX2: W.A. Breedte spaken. | BZ2: W.A. Dikte spaken. | CB2: W.A. kromte spaak 1. | CC2: W.A. kromte spaak 2. | CG2: W.A. Velg | CI2: W. A. Naafprofielering | CK2: W. A. Profielering | CO2: W. A. Muilband | CR2: W.A. Verbinding wielband/velg. | CS2: W.A. Aantal naafbanden. | CW2: W.A. Breedte spaaknaafband. | CX2: W.A. Spoorbreedte. | CY2: O.A. As | DB2: O.A. Opsluiting as/asblok | DH2: O.A Asblok | DL2: O. A. Bovenblok | DP2: O.A. Achterarmen | DT2: O.A. Wielopsluiting | DV2: O.A. Spatscherm | DX2: O.A. Bevestiging lamoen-, draag-, laad-, langboom met asblok, rongblok of as | ED2: O.A. Geveerd | EH2: O.V. As | EK2: O.V Kruiwagenas positie | EL2: O.V. Draaistel | ER2: O.V. Schamelring diamter | ES2: O.V. Opsluiting asblok/as/middenblok | EX2: O.V Asblok | FA2: O. V. Middenblok | FD2: O.V. Voorarm | FG2: O.V. Zwenkhout | FJ2: O.V. Voorarmframe | FL2: O.V. Wielopsluiting | FM2: O.V. Spatscherm | FO2: O.V. Bevestiging lamoen-, lang-, draagboom met as-, midden- of rongblok | FP2: O.V. Disselboom | FT2: O.V Rongblok | FX2: O.V. Positie asblok, middenblok en rongblok | FY2: O.V. Hulprongblok | GA2: O. Wagenrongen | GD2: O. Langboom | GG2: O. Verbinding voor- achteronderstel. | GH2: O. Afstand tussen center voorwiel en achterwiel, wielbasis | GI2: O. Karkast kipbaar | GJ2: O. Positie lamoen- draagboom | GK2: O. Scharnierpunt | GM2: O. Kantelhaak | GN2: O. Afstand tss. de lamoen-, glij-, draag-, berriebomen t.h.v. voorzijde karkast | GO2: O. Lengte voorschoot/ draagframe | GQ2: O. Lamoen-, glij-, berrie- of draagframe | GV2: O. Verbreedboom | GX2: O. Profielering voorschoot/laadvlak vooraan, acheraan laadvlak kruiwagen | GY2: O. Breedte draagframe, voorstuk | GZ2: O. Laadhout | HB2: O. lamoen-, berrie-, glij-, draagboom | HG2: O. Afstand tss. de lamoen- gij- of berrieboomeinden | HH2: O. lengte tussen voorschoot/draagvlak en lamoen-, berrie- of draagboomeinden | HI2: O. karsteun | HL2: O. Karsteunophanging | HN2: O. Kruiwagenvoet | HP2: O. Broekhaken/beugels op de lamoenboomeinden (overmeten) | HT2: O. Hoogte | HV2: O. Handgreep kruiwagen | HW2: O. Remsysteem | HZ2: B. Constructie laadvlak | ID2: B. Tussenblok | IG2: B. Rongenbeugel | IK2: B. Laadboom | IN2: B. Staandaardopbouw | IP2: B. Oversteek, lamoen- laad-, draag-, of langboom t.o.v. laadvlak | IR2: B. Draagvlak breedte overmeten | IT2: B. Draagvlak lengte overmeten | IU2: B. Positie achter-, voor- en zijbord t.o.v. laadvlak | JE2: B. Constructie zijbord | JJ2: B. Zijbordsteun | JL2: B. Afstand tussen de rongen of staanders van de zijborden | JM2: B. Bovenregel zijbord | JP2: B. Zijleest | JR2: B. Opzetstukken | JU2: B. Hoogte zijbord t.o.v. de bovenzijde laadvloer | JV2: B. Rong/staander zijbord type | JY2: B. Voorbord | KC2: B. Voorbordsteun | KD2: B. Vooropsluitbord | KF2: B. Opsluiting voorbord | KJ2: B. Achterbord | KN2: B. Achteropsluitbord | KP2: B. Opsluiting achterbord | KR2: B. Uitvloeigat | KS2: B. Bovenbord | KU2: B. Schutbord | KV2: Toebehoren | KW2: T. Oogstladder | KY2: T. Allerlei | LA2: Beervat | LF2: Waardeoordeel tijdens visuele inspectie
A3: Project nr. | B3: Afbeelding | U3: Onderstel | V3: Bovenstel | Y3: Onderdeel 1 | Z3: soort | AA3: Onderdeel 2 | AB3: soort | AC3: Onderdeel 3 | AD3: soort | AE3: Onderdeel 4 | AF3: soort | AG3: Onderdeel 5 | AH3: soort | AI3: gebruik informatie | AJ3: gebruik foto | AM3: Type | AN3: Diamter | AO3: Aantal spaken/velgen | AP3: Type | AQ3: Lengte | AR3: Diameter | AS3: Aan de naaf | AT3: Aan de velg | AU3: Aan de naaf | AV3: Aan de velg | AW3: Opmerking | AX3: ° | AY3: Aanliggende rechthoekzijde. | AZ3: Overstaande rechthoekzijde. | BA3: Breedte | BB3: Dikte | BC3: Voorzijde | BD3: Achterzijde | BE3: Spaak type | BF3: Velg type | BG3: Type | BH3: Oversteek | BI3: Breedte muil- kopnaafband | BJ3: Type | BN3: Opmerking | BR3: Type | BS3: Diameter | BT3: Aantal spaken/velgen | BU3: Type | BV3: Lengte | BW3: Diamter | BX3: Aan de naaf | BY3: Aan de velg | BZ3: Aan de naaf | CA3: Aan de velg | CB3: ° Spaak 1 | CC3: ° Spaak 2 | CD3: Aanliggende rechthoekzijde. | CE3: Overstaande rechthoekzijde. | CF3: Opmerking | CG3: Breedte | CH3: Dikte | CI3: Voorzijde | CJ3: Achterzijde | CK3: Spaak type | CL3: Opmerking | CM3: Velg type | CN3: Opmerking | CO3: Type | CP3: Oversteek | CQ3: Breedte | CR3: Type | CV3: Opmerking | CY3: Type | CZ3: Opmerking | DA3: As gevat in | DB3: Opsluiting | DC3: Beugel 1 | DD3: Beugel 2 | DE3: Beugel 3 | DF3: Beugel 4 | DG3: Opmerking | DH3: Type | DI3: versmallend door | DJ3: Profilering | DK3: Opmerking | DL3: Type | DM3: versmallend door | DN3: Profilering | DO3: Opmerking | DP3: Type | DQ3: Achterarmverbinding | DR3: Opsluiting asblok | DS3: Profilering | DT3: Type | DU3: Opmerking | DV3: Type | DW3: Opmerking | DX3: Asblok verbonden met | DY3: U-diepte boom | DZ3: Boom, asblok | EA3: Opsluitbeugels | EB3: Verstevigingsdriehoeken | EC3: Verbinding langboom | ED3: Ja | EE3: Lengte | EF3: Aantal veerbladen | EG3: Type | EH3: Type | EI3: Opmerking | EJ3: O.V. As gevat | EL3: Type | EM3: Glijprofielen | EW3: Opmerking | EX3: Type | EY3: versmallend door | EZ3: Profielering | FA3: Type | FB3: Versmallend door | FC3: Profielering | FD3: Type | FE3: Profielering | FF3: Opmerking | FG3: Type | FH3: Profielering | FI3: Opmerking | FJ3: Type | FK3: Metaalbeslag | FL3: Type | FM3: Type | FN3: Opmerking | FP3: Type | FQ3: Lengte | FR3: Disselboomopsluiting | FS3: Metaalbeslag | FT3: Type | FU3: Versmallend door | FV3: Profielering | FW3: Opmerking | FZ3: Opmerking | GA3: Vooraan | GB3: Achteraan | GC3: Opmerking | GD3: Type | GE3: Metaalbeslag lip | GF3: Opmerking | GK3: Type | GL3: Opmerking | GM3: Type | GO3: Lengte | GP3: Opmerking | GQ3: Frame | GR3: Type | GS3: Pennen | GT3: Profielering | GU3: Opmerking | GV3: Type | GW3: Opmerking | GZ3: Type 1 | HA3: Type 2 | HB3: Boom | HC3: Type | HD3: Profielering | HE3: Metaalbeslag | HF3: Opmerking | HI3: Vooraan 1 | HJ3: Vooraan 2 | HK3: Achteraan | HL3: Vooraan | HM3: Achteraan | HN3: Type | HO3: Profielering | HP3: Type 1 | HQ3: Overmeten | HR3: Type 2 | HS3: Overmeten | HT3: Voorschoot/draagframe. Hoogte berrieboomeinden | HU3: Laadvlak (aan de kruiwagenvoet/ wiel) | HV3: Type | HW3: Type | HX3: Opmerking | HY3: Positie handgreep (zijde, drager, plaat vertikaal, plaats horizontaal) | HZ3: Type | IA3: Pennen | IB3: Profielering | IC3: Opmerking | ID3: Type | IE3: Profielering | IF3: Opmerking | IG3: Type 1 | IH3: Type 2 | II3: Type 3 | IJ3: Opmerking | IK3: Type | IL3: Profielering | IM3: Metaalbeslag | IN3: Standaard 1 | IO3: Standaard 2 | IP3: Achteraan | IQ3: Vooraan | IR3: Vooraan | IS3: Achtraan | IU3: Type | IV3: Voorsteek | IW3: Achtersteek | IX3: Opmerking | IY3: Draagboom voor laadvlak | IZ3: zijbord t.o.v. laadvl. | JA3: Zijbord II t.o.v. laadvl. | JB3: Voorbord t.o.v. laadvl. | JC3: Schutbord t.o.v. laadvl. | JD3: Achterbord t.o.v. laadvl. | JE3: Type | JF3: Type vooraan | JG3: Pennen | JH3: Profielering | JI3: Opmerking | JJ3: Type | JK3: Aantal | JM3: Type | JN3: Profielering | JO3: Opmerking | JP3: Type | JQ3: Opmerking | JR3: Type | JS3: Breedte | JT3: Opmerking | JV3: Type 1 | JW3: Type 2 | JX3: Opmerking | JY3: Type | JZ3: Pennen | KA3: Profielering | KB3: Opmerking | KC3: Type | KD3: Type | KE3: Opmerking | KF3: Bovenaan | KG3: Onderaan | KH3: Ondervoorbord Bovenaan | KI3: Ondervoorbord Onderaan | KJ3: Type | KK3: Pennen | KL3: Profielering | KM3: Opmerking | KN3: Type | KO3: Opmerking | KP3: Bovenaan | KQ3: Onderaan | KS3: Type | KT3: Opmerking | KW3: Vooraan | KX3: Achteraan | KY3: Type | KZ3: Opmerking | LA3: Positie draagplatform | LB3: Beerframe | LC3: Beerframe verbonden met onderstel | LD3: Verzekering beerton | LE3: Type beerton | LF3: Authenticiteit | LG3: Conditie | LH3: Volledigheid | LI3: motivatie
A4: 1 | C4: V1991-0701 | D4: Linker lamoenboom | E4: Tussen | F4: 1890 | G4: 1914 | H4: Karrenmuseum Essen vzw | M4: Afkomst | P4: 2910 | Q4: Essen | R4: Antwerpen | S4: België | T4: C | U4: Cg | V4: Ad | W4: Vlaamse aardkar | X4: Aardkar, twee wielen, lamoenframe scharnierbaar bevestigd met karbak, sponnenzijbord en afneembaar voor- en achterbord | Y4: wiel | Z4: hout | AA4: lamoenboomen | AB4: hout | AC4: kar | AD4: hout | AE4: karsteun | AF4: hout | AG4: verbindingselementen | AH4: metaal | AK4: 2 | BQ4: 2 | BR4: A | BS4: 1280 | BT4: 14/7 | BU4: A. | BV4: 391 | BW4: 260 | BX4: 70 | BZ4: 45 | CG4: 83 | CH4: 55 | CI4: Rkant, ogief. | CJ4: Rkant, kwartrond. | CK4: B. | CM4: A | CO4: A | CP4: 50 | CQ4: 88 | CR4: A | CS4: 1M | CT4: 2S | CU4: 2K | CW4: 30 | CX4: 1410 | CY4: AA0/1 | CZ4: Industrieel vervaardigd | DA4: A | DB4: A | DC4: 2BM4 | DD4: 2BB4 | DH4: AE30 | DJ4: Op alle zijden een A15. | DT4: A | DV4: AC | DW4: 260 x 100 mm. Bevestigd met metalen beugels. | DX4: laadboom | DY4: 30 | EA4: BB4 | EB4: 4 | GI4: Ja | GJ4: A | GK4: A | GN4: 960 | GO4: 520 | GQ4: lamoenframe | GR4: A3/0/0. | GS4: Ronde pennen getapt, steken 110 mm uit. | GT4: Scharniereinden kop B. | GX4: A | GZ4: A | HB4: lamoenboom | HC4: C | HD4: Voor de voorschoot op alle zijden een inlopend A15 overgaand in een afrondingprofiel. | HG4: 820 | HH4: 1970 | HI4: AA2 | HL4: AA | HP4: AA | HQ4: 830 | HZ4: Ba5/2 | IA4: Vierkante pennen steken 20 mm uit. Pen A | IB4: De voorste dwarsregel is op VO en de achterste dwarsregel op AO voorzien van ingewerkt halfrond profiel met een breedte van 11 mm. Op de achterste dwarsregels is op de onderkant een ring A. | IC4: Midden onderaan de achterregel is een metalen ring bevestigd met u-nagel | IG4: A | IK4: B | IL4: Profiel 165 x 80. Versmallend door schuioplopend. Aan de bovenzijde en onderzijde ingewerkt halfrond profiel met een breedte van 11 mm. Aan schuinoplopende zijde en binnenzijde een afschuinigsprofiel met breedte van 18 mm. | IM4: Op de buitenzijde van de draagboom is vooraan en achteraan een metalen beugel waarvan de functie onduidelijk is | IP4: 140 | IQ4: 125 | IR4: 1030 | IT4: 1620 | IU4: A | IZ4: 90° | JB4: 90° | JD4: 90° | JE4: Ab4/0 | JG4: Vierkante pennen steken 55 mm uit. Pen E. | JH4: Verbindingsregel met een uitgezaagde accoladebogen. | JL4: 380 | JM4: A | JN4: Ronde armeinden steken 100 mm uit. Op VB is een ingewerkt halfrond profiel met breedte van 10 mm. Op VO tussen de rongen is een in- en uitlopend afschuiningsprofiel met schuine zijnde van 14 mm. Boven de rong gaat dit over in een ingewerkt halfrond profiel met breedte van 10 mm. | JO4: 4 rongenbeugels E. | JU4: 650 | JV4: rong | JW4: BAA | JY4: DB0 | KA4: De profilering van de staanders en regels aan de binnenzijde van het onderbord door accolade motieven en voorzien van een A15. | KB4: Op de bovenregel 2 rongenbeugels I. | KF4: A | KG4: N | KH4: C | KI4: B | KJ4: FA | KM4: Op de onderregel is een zwaar metalen halfrond bladprofiel. | KP4: A | KQ4: B | LF4: B | LG4: A | LH4: A | LI4: Verfsysteem na 1960.
A5: 2 | C5: V 2007-0189 | D5: Rechter berrieboom | E5: Tussen | F5: 1880 | G5: 1945 | H5: Karrenmuseum Essen vzw | M5: Afkomst | O5: De Naegel-De Sutter | P5: 9990 | Q5: Maldegem-Donk | R5: Oost-Vlaanderen | S5: België | T5: B | U5: Ba | V5: Db | W5: Polderkruiwagen | X5: Kruiwagen, één wiel, twee hol gebogen berriebomen met dwarsregels en betimmering, houten klos als kruiwagenvoet en vast voorbord. | Y5: wiel | Z5: hout | AA5: kruiwagenvoet | AB5: hout | AC5: kruiwagen | AD5: hout | AE5: verbindingselementen | AF5: metaal | AK5: 1 | AL5: 1 | AM5: A | AN5: 700 | AO5: 10/5 | AP5: A | AQ5: 350 | AR5: 160 | AS5: 35 | AU5: 30 | AX5: 0° | BA5: 60 | BB5: 55 | BC5: Schuin oplopend, rkant, kwartrond, rkant. | BD5: Schuin oplopend, rkant, kwartrond, rkant. | BE5: I | BF5: A | EH5: AB0/5 | EJ5: B | EK5: A | FL5: E | GN5: 475 | GQ5: berrieframe | GR5: A4 | GS5: Ronde pennen steken 70 mm uit. | GX5: A | HB5: berrieboom | HC5: A | HD5: Tussen de as en het laadvak op alle zijden een A14. Tussen het laadvlak en de handgreep op alle zijden een A14. | HG5: 570 | HH5: 1080 | HN5: A | HO5: Op alle zijden is een A14. Profielering vooraan: kwarthol. Profielering achteraan: kwarthol. | HV5: A | HZ5: A | IQ5: 520 | IU5: C | JB5: 100° | JY5: Ed2/0 | JZ5: Ronde pennen | KA5: Aan het bovenvlak is een afschuiningsprfiel met schuine zijde van 15 mm. De opening tussen de betimmering en de linker- en rechterstaande bedraagt 15 mm. | KC5: A | KV5: X | LF5: B | LG5: A | LH5: A | LI5: Verfsysteem na 1960.
A6: 3 | C6: V 1972-2386 | D6: Linker lamoenboom | F6: 1924 | H6: Karrenmuseum Essen vzw | M6: Afkomst | P6: 9100 | Q6: Waasland | R6: Oost-Vlaanderen | S6: België | T6: C | U6: Cf | V6: Af | W6: Geveerde tweewielkar met sponnenzijbord | X6: Kar, twee wielen, twee halve elipsveren, twee S- vormige lamoenbomen met dwarsregels, betimmering, voorschoot, schutbord, zijbord met sponnen, vaste zijleesten en afneembaar achterbord. | Y6: wiel | Z6: hout | AA6: lamoenboomen | AB6: hout | AC6: kar | AD6: hout | AE6: verbindingselementen | AF6: metaal | AK6: 2 | BQ6: 2 | BR6: A | BS6: 1190 | BT6: 14/7 | BU6: A | BV6: 310 | BW6: 270 | BX6: 60 | BZ6: 45 | CG6: 71 | CH6: 60 | CI6: Rkant, halfrond, kwarthol, rkant, kwartrond, rkant. | CJ6: Rkant, kwartrond. | CK6: B | CM6: A. | CO6: C | CP6: 22 | CQ6: 58 | CR6: A | CS6: 1M | CT6: 2S | CU6: 2K | CW6: 30 | CX6: 1490 | CY6: AC2/1 | CZ6: industrieel vervaardigd | DA6: F | DT6: I4 | ED6: Ja | EF6: 14 | EG6: ABA | GJ6: G | GN6: 740 | GO6: 700 | GQ6: lamoenframe | GR6: C | GX6: A | HB6: lamoenboom | HC6: C | HD6: Voor de voorschoot op alle zijden een inlopend A17 overgaand in een afrondingprofiel. | HE6: Opstapbeugel C. Op de buitenzijde op 880 mm van de kopse einden is een metalen U-vormig beugeltje. | HG6: 760 | HH6: 1910 | HI6: AD1 | HL6: DD | HZ6: Ba7/0 | IA6: De vierkante pennen steken 20 mm uit | IB6: Pen B. Twee pennen van twee tussenregels steken 120 mm uit waarin een metalen stang het zijbord opsluit met de bovenregel. Op VO van de eerste dwarsregele en AO van de laatste dwarsregels is een ingewerkt halfrond profiel met breedte van 14 mm. | IG6: A | IJ6: Vooraan de draagboom is een industrieel vervaardigde dubbel opstap voorzien aan beide zijden en vastegzet op de draagboom | IK6: A | IL6: Aan de bovenzijde en ondezijde een ingewerkt halfrond profiel met een breedte van 14 mm. De voorste kopse einde van de draagboom is over een lengte van 100 mm S-vormig geprofileerd in de breedte. Aan de bovenste 2 hoeken voorzien van een afschuiningsprofiel met schuine zijde van 11 mm. Het achterste kopse eind van de draagboom is over een lengte van 120 mm schuin aflopend en afgerond. Plaatselijk zijn de 4 zijden voorzien van een afschuiningsprofiel met een schuine zijde van 11 mm. | IP6: 150 | IQ6: 120 | IR6: 1070 | IT6: 2690 | IU6: A | IV6: 170 | IZ6: 90° | JC6: 90° | JD6: 90° | JE6: Ab5/2 | JG6: Ronde pennen. | JH6: Verbindingsregel met een uitgezaagde accoladebogen. | JL6: 370 | JM6: A | JN6: Vierkante armeinden steken 80 mm uit. De voorste armeind heet kop A. Op VO tussen de rongen een in- en uitlopend afrondingsprofiel met scherp snede. | JP6: A | JU6: 560 | JV6: rong | JW6: AKA | KJ6: AC3 | KL6: Op VO en VB van de boven- en onderregel tussen de staander en de kopse einden een in- en uitlopend A14. Kop B. Buitenstaanders zijn S-vormig. Op VL en VR van de staanders in- en uitlopend afrondingsprofiel met scherpe snede aan de voorkant. | KU6: Het voorbord bestaat uit één horizontale plank voorzien aan de beide einden aan de binnenzijde van zwaar metalen L profiel dat het voorbord bevestigd met de lamoenbomen. Aan het metalen profiel is aan beide zijde een ronde handgreep voorzien. Aan de voorzijde van het voorbord aan beide zijden een metalen U profiel waarvan de functie onduidelijk is | LF6: A | LG6: A | LH6: A
A7: 4 | C7: 1984-0101 | D7: Linker lamoenboom | E7: Tussen | F7: 1900 | G7: 1930 | H7: Karrenmuseum Essen vzw | N7: Laatste gebruiker | O7: Verheyen R. | P7: 2381 | Q7: Weelde | R7: Antwerpen | S7: België | T7: C | U7: Cg | V7: Ad | W7: Vlaamse aardkar | X7: Aardkar, twee wielen, lamoenframe scharnierbaar bevestigd met karbak, sponnenzijbord, opzetborden en afneembaar voor- en achterbord | Y7: wiel | Z7: hout | AA7: lamoenboomen | AB7: hout | AC7: kar | AD7: hout | AE7: karsteun | AF7: hout | AG7: verbindingselementen | AH7: metaal | AK7: 2 | BQ7: 2 | BR7: A | BS7: 1410 | BT7: 12/6 | BU7: A. | BV7: 480 | BW7: 280 | BX7: 70 | BZ7: 50 | CG7: 92 | CH7: 80 | CI7: Rkant, kwarthol, rkant, kwartbol, rkant. | CJ7: Rkant, vlak, kwarthol. | CK7: A. | CM7: B | CO7: A | CP7: 52 | CQ7: 114 | CS7: 1M | CT7: 2S | CU7: 2K | CW7: 30 | CX7: 1560 | CY7: AA0/1 | CZ7: gesmeed. | DA7: A | DB7: A | DC7: 1BM4 | DD7: 2BBVA4 | DE7: 2BK4 | DH7: AA | DT7: A | DV7: BC | DW7: 100 x 50 mm | DX7: laadboom | DY7: 70 | EA7: BB4 | GI7: Ja | GJ7: A | GK7: A | GN7: 755 | GO7: 630 | GQ7: lamoenframe | GR7: A3/0/0 | GS7: Ronde pennen getapt, steken 25 mm uit. | GT7: Scharniereinden kop B. | GX7: A | GZ7: G | HB7: lamoenboom | HC7: B | HD7: Voor de voorschoot op alle zijden een inlopend afrondingsprofiel. Achter de voorschoot is een inlopend halfrond profiel. Ter hoogte van de laadboom is een sponing uitgewerkt aan de bovenzijde van de lamoenboom. | HG7: 650 | HH7: 1780 | HI7: BA | HL7: E | HP7: AA | HQ7: 840 | HZ7: Ba6/0 | IA7: Ronde pennen steken 30 mm voorbij de verbreedboom uit. | IB7: Pen A10 | IG7: B | IK7: B | IL7: Vermallend door schuinoplopend. De hoeken aan de onderrzijden zijn voorzien van een afschuiningsprofiel met schuine zijde van 14 mm. | IM7: Onderaan achteraan de laadboom is een metalen verstevigsprofliel dat doorloop tot op de kopse einden. Aan de onderzijde waar de laadboom verbonden is met de asblok is een U-vormige uitsparing | IP7: 20 mm | IQ7: 70 mm | IR7: 930 | IT7: 1590 | IU7: A | IZ7: 97° | JB7: 90° | JD7: 90° | JE7: Aa4/0 | JG7: Ronde pennen steken 40 uit. | JL7: 370 | JM7: A | JN7: Ronde armeinden steken 100 mm uit. Op VO tussen de rongen is een in- en uitlopend afschuiningsprofiel met schuine zijde van 14 mm. | JO7: 3 rongenbeugels type A. | JR7: Ak3 | JS7: 170 | JU7: 530 | JV7: rong | JW7: AIA | JY7: BC2 | KA7: Op VL en VR een in- en uitlopend A14. Op VO tussen de staanders een A13 en VB een afrondingsprofiel. Op de kopse einden van de betimmering repetitieve gutsinsnijdingen. | LF7: B | LG7: A | LH7: A | LI7: Verfsysteem na 1960.
A8: 5 | C8: V 2012 - 0003 | E8: Tussen | F8: 1880 | G8: 1945 | H8: Karrenmuseum Essen vzw | N8: Laatste gebruiker | P8: 8920 | Q8: Langemark-poelkapelle | R8: West-Vlaanderen | S8: België | T8: E | U8: Ek | V8: Ba | W8: Boerenwagen met paneel, vast | X8: Wagen, achteronderstel met twee achterwielen, verbonden doormiddel van een langboom met het vooronderstel. vooronderstel met twee kleine voorwielen draaibaar verbonden met voorarmen, woelhout en draaispil. Afneembaar laadvlak, metalen rongen en afneembaar voor- en achterbord. Het zijbord is vast verbonden met het laadvlak en bestaat uit één paneel. | Y8: wiel | Z8: hout | AA8: langboom | AB8: hout | AC8: wagen | AD8: hout | AE8: verbindingselementen | AF8: metaal | AK8: 4 | AL8: 2 | AM8: A. | AN8: 760 | AO8: 10/5 | AP8: A | AQ8: 410 | AR8: 240 | AS8: 60 | AU8: 50 | AX8: 3 | BA8: 70 | BB8: 80 | BC8: Schuin oplopend, kwarthol, rkant, kwartrond, rkant. | BD8: Vlak, rkant, kwarthol, vlak. | BE8: B. | BF8: A. | BG8: C. | BI8: 30 | BJ8: A | BK8: 1M | BL8: 2S | BM8: 1K | BO8: 31 | BP8: 1385 | BQ8: 2 | BR8: A. | BS8: 1420 | BT8: 12/6 | BU8: B. | BV8: 300 | BW8: 284 | BX8: 72 | BZ8: 44 | CG8: 73 | CH8: 70 | CI8: Rkant, kwarthol. | CJ8: Rkant, kwarthol. | CK8: C. | CM8: A | CR8: A | CX8: 1620 | CY8: AA0/1 | CZ8: industrieel vervaardigd | DA8: A | DB8: B | DC8: 4BM6 | DH8: BA | DL8: A | DM8: Kopse eind kwartrond. | DN8: Op het kopse eind een A15. | DP8: A | DQ8: A | DR8: B | DT8: D | DV8: C | DX8: langboom | EC8: B | EH8: As AA0/1. | EJ8: A | EL8: A2 | EM8: A | EN8: CM | EQ8: DM | ES8: De middenblok, asblok en metalen as zitten opgesloten door 2BM6 en 1BMS6. | EX8: CA | FA8: A | FB8: Versmallend door S-vormig profiel. | FC8: Versmalling met A5. | FD8: A | FE8: Op alle zijden voor en achter de asblok een A15 | FG8: A | FJ8: D0 | FK8: Voorarmbeugel B. Voorarmbeugel C. | FL8: A | FM8: C | FO8: A | FP8: A | FQ8: 1500 | FR8: B | FS8: Trekbeugel BA. Handgreep A. | FT8: A | FU8: De kopse einden hebben in de breedte een kwartrond, vlak en kwartrond profiel. | FV8: Op de kopse zijden en op VB en AB een A22. | GA8: AA | GB8: AA | GD8: A | GH8: 2320 | HW8: A | HY8: Linkerzijde, zijbord, onderaan, midden. | HZ8: Db3/2/2. | ID8: A | IE8: Versmallend door schuin oplopend, rkant, vlak. | IR8: 1260 | IT8: 3460 | IU8: A | IZ8: 90° | JE8: Bh3 | JI8: 4 rongenbeugels type E. Verbindingselement type A. 3 verbiningselemten type A. Op het linkerzijbord is vooraan een beugel met ring type A. | JJ8: B | JU8: 435 | KF8: K | KV8: X | LF8: A | LG8: A | LH8: A
A9: 6 | C9: V 2013-0001 | E9: Tussen | F9: 1880 | G9: 1945 | H9: Karrenmuseum Essen vzw | M9: Afkomst | O9: Privé collectie Herman De Ridder. | S9: België | T9: B | U9: Ba | V9: Bc | Y9: wiel | Z9: hout | AA9: kruiwagenvoet | AB9: hout | AC9: kruiwagen | AD9: hout | AE9: verbindingselementen | AF9: metaal | AK9: 1 | AL9: 1 | AM9: A | AN9: 410 | AO9: 8/4 | AP9: A | AQ9: 295 | AR9: 100 | AS9: 30 | AU9: 30 | AX9: 0° | BA9: 43 | BB9: 41 | BC9: 1/8 hol, vlak, 1/8 hol, vlak. | BD9: 1/8 hol, vlak, 1/8 hol, vlak. | BE9: F | BF9: A | BI9: 20 | BK9: 2K | EH9: AB0/5 | EJ9: B | EK9: A | FL9: E | GN9: 430 | GQ9: berrieframe | GR9: C3 | GS9: Ronde pennen steken 30 mm uit. | GX9: A | HB9: berrieboom | HC9: C | HD9: Voor het laadvlak is op de bovenzijde een afrondingsprofiel. | HE9: De kopse einden aan de as is belegd met bladmetaal volgens de dikte tot over het draaipunt heen. | HG9: 560 | HH9: 570 | HN9: B8 | HV9: A | HZ9: A | IQ9: 340 | IT9: 630 | IU9: B | IZ9: 100° | JB9: 113° | JE9: Bg0 | JH9: De opgetimmeder staander zit met een halfhout verbinding gevat op de berrieboom en loopt door als kruiwagenvoet. Profielering staander: XCD met A10. | JU9: 270 | JY9: EG2 | JZ9: Ronde pennen. | KA9: De bovenregel heeft op het bovervlak en kopse eiden een afrondingsprofiel. | KC9: A | KJ9: CDO | KM9: Breedte: 70 mm. | KV9: X | LF9: A | LG9: A | LH9: A
A10: 7 | C10: V 1987-0013 | D10: Linker lamoenboom | E10: Tussen | F10: 1880 | G10: 1930 | H10: Karrenmuseum Essen vzw | M10: Afkomst | O10: Martens | P10: 2990 | Q10: Wuustwezel | R10: Antwerpen | S10: België | T10: C | U10: Cg | V10: Ad | W10: Vlaamse aardkar | X10: Aardkar, twee wielen, lamoenframe scharnierbaar bevestigd met karbak, sponnenzijbord, opzetborden en afneembaar voor- en achterbord | Y10: wiel | Z10: hout | AA10: lamoenboomen | AB10: hout | AC10: kar | AD10: hout | AE10: karsteun | AF10: hout | AG10: verbindingselementen | AH10: metaal | AK10: 2 | BQ10: 2 | BR10: A | BS10: 1360 | BT10: 12/6 | BU10: A. | BV10: 450 | BW10: 270 | BX10: 70 | BZ10: 57 | CG10: 75 | CH10: 72 | CI10: Rkant, ogief, rkant. | CJ10: Rkant, 1/8 rond. | CK10: D. | CM10: C | CO10: A | CP10: 44 | CQ10: 98 | CR10: A | CS10: 1M | CT10: 2S | CU10: 2K | CW10: 30 | CX10: 1485 | CY10: AA0/1 | CZ10: industrieel vervaardigd | DA10: A | DB10: A | DC10: 1BM4 | DD10: 2BB4 | DE10: 2BK4 | DH10: AA | DI10: Versmallend met opvallende haakvorm die de dwarsregel van het laadvlak ondersteund. | DJ10: Op VB en AB is een A10 Op VO en AO een ingewerkt halfrond profiel met breedte van 10 mm. | DT10: A | DV10: BB | DW10: 95 x 140 mm. Verhoogt t.o.v. de bovenzijde van de asblok met opvulhoutjes | DX10: laadboom | DY10: 60 | EA10: BB4 | EB10: 4 verstevigingsdriehoeken. | GI10: Ja | GJ10: A | GK10: A | GN10: 825 | GO10: 490 | GQ10: lamoenframe | GR10: A3/0/0 | GS10: Ronde pennen opgespiëd, steken 105 mm uit. De pen van de tussendwarsregel steekt 20 mm uit. | GT10: Scharniereinden kop B. | GX10: B | GZ10: C | HA10: A | HB10: lamoenboom | HC10: B | HD10: Voor de voorschoot op alle zijden een inlopend afrondingsprofiel. Achter de voorschoot is een inlopend A26. | HG10: 860 | HH10: 1650 | HI10: AA1 | HL10: AA | HP10: AA | HQ10: 780 | HZ10: Ba5/0 | IA10: De pennen steken 95 mm uit. De voorste en achterste dwarsregel hebben niet-doorgaande pen en gat verbinding. | IG10: A | IK10: C | IL10: Profiel 160 x 75 mm. De bovenzijde is licht hol gebogen en versmalt naar de beide kopse einden toe aan de onderzijde door een 1/8 hol en schuinoplopend. Op de kopse einden is een metalen verstevigingsprofiel dat doorloopt toe bovenaan op de kopse einden. Nabij de verstevigingshoeken van de asblok is een inlopend afschuiningsprofiel met schuine zijde van 30 mm. Aan de buitenzijde van de laadboom is naast de eerste en laatste rong een metalen halfronde beugel waarvan de functie onduidleijk is. Op de bovenregel is deze ook waarneembaar | IP10: 150 | IQ10: 110 | IR10: 880 | IT10: 1580 | IU10: A | IV10: 80 | IW10: 80 | IZ10: 94° | JB10: 90° | JD10: 90° | JE10: Aa4/0 | JG10: Pennen steken 40 mm uit. | JH10: Tussen de rongen is op have hoogte een opgetimmerde middenregel. Op de eerste en laatse rong is op halve hoogte een uistekende ronde metalen pen. | JL10: 325 | JM10: A | JN10: Ronde armeinden steken 100 mm uit. Op VO is tussen de rongen een in- en uitlopende afschuiningsprofiel met schuine zijde van 20 mm. . | JO10: 2 rongenbeugels type A. | JR10: Ak2 | JU10: 540 | JV10: rong | JW10: BKA | JY10: BC3 | KA10: Op VO van de bovenregel is tussen de staander een in- en uitlopend en op VB een doorlopend A18. Op VL en VR van de staanders is een in- en uitlopend A18. | KB10: Buitenstaanders straalsgewijs in waaiervorm. Op de bovenregel zijn 2 rongenbeugels I. | KF10: A | KG10: D | KJ10: BC3. | KL10: Op de kopse einden van het paneel zijn repetitieve gutsvormige uitsnijdingen. Op de staanders is een in- en uitlopend A18. Op de bovenregel zijn twee rongenbeugels I. | LF10: A | LG10: A | LH10: A
A11: 8 | C11: V 2010-0008 | E11: Tussen | F11: 1880 | G11: 1945 | H11: Karrenmuseum Essen vzw | M11: Afkomst | O11: Privé collectie Herman De Ridder. | S11: België | T11: B | U11: Ba | V11: Db | W11: Zandleem kruiwagen | X11: Kruiwagen, één wiel, twee S-vormige berriebomen met dwarsrgels en betimmering, houten klos als kruiwagenvoet en vast voorbord. | Y11: wiel | Z11: hout | AA11: kruiwagenvoet | AB11: hout | AC11: kruiwagen | AD11: hout | AE11: verbindingselementen | AF11: metaal | AK11: 1 | AL11: 1 | AM11: A | AN11: 555 | AO11: 8/4 | AP11: A | AQ11: 370 | AR11: 110 | AS11: 45 | AU11: 32 | AX11: 0° | BA11: 60 | BB11: 55 | BC11: Rkant, schuin oplopend, rkant, ingewerkt halfrond profiel, vlak. | BD11: Rkant, schuin oplopend, rkant, ingewerkt halfrond profiel, vlak. | BE11: I | BF11: A | BI11: 18 | BK11: 2K | EH11: AB0/5 | EJ11: B | EK11: A | FL11: E | GN11: 480 | GQ11: berrieframe | GR11: B4 | GS11: Vierkante pennen steken 58 mm uit. | GT11: Aan het achterste kopse eind van de betimmering van het laadvlak is een repititieve gutsinsnijdingen. De verbredingsregel is aan de onderkant tussen de pennen voorzien van een in- en uitlopend afschuiningsprofiel. | GX11: A | HB11: berrieboom | HC11: B | HD11: Voor het laadvlak een inlopend A15. | HG11: 480 | HH11: 1090 | HN11: A | HO11: Op alle zijden is een A15. Profielering vooraan: 1/8 hol. Profielering achteraan: 1/8 rond, kwarthol en rkant. | HV11: A | HZ11: A | IQ11: 400 | IR11: 720 | IT11: 700 | IU11: C | JB11: 120° | JY11: EI2/0 | JZ11: Ronde pennen | KA11: De staander hebben op de VL en VR een in- en uitlopend afschuiningsprofiel met schuine zijde van 15 mm. De bovenregel heeft tussen de schuine staanders een in en uitlopend afschuiningprofiel met schuine zijde van 15 mm. De bovenregel heeft aan het VB een afschuiningsprofiel met schuine zijde van 15 mm dat in het midden hartvormig is iingesneden. | KC11: B8 | KV11: X | LF11: A | LG11: A | LH11: B | LI11: Zijborden niet aanwezig.
A12: 9 | C12: V 2007-0185 | D12: Rechter berrieboom | E12: Tussen | F12: 1880 | G12: 1945 | H12: Karrenmuseum Essen vzw | M12: Afkomst | P12: 2910 | Q12: Essen | R12: Antwerpen | S12: België | T12: B | U12: Ba | V12: Ab | W12: Kempische kruiwagen | X12: Kruiwagen, één wiel, twee S-vormige berriebomen, metalen kruiwagenvoet, afneembare zijborden en vast voorbord. | Y12: wiel | Z12: hout | AA12: kruiwagenvoet | AB12: hout | AC12: kruiwagen | AD12: hout | AE12: verbindingselementen | AF12: metaal | AK12: 1 | AL12: 1 | AM12: A | AN12: 560 | AO12: 8/4 | AP12: A | AQ12: 370 | AR12: 114 | AS12: 28 | AT12: 34 | AU12: 24 | AX12: 0° | BA12: 52 | BB12: 55 | BC12: 1/8 rond oplopend, kwarthol, 1/8 rond oplopend. | BD12: Rond oplopend, kwarthol, rond oplopend. | BE12: K | BF12: B | BI12: 16 | BK12: 2K | EH12: AB0/4 | EJ12: B | EK12: B | FL12: X | GN12: 470 | GQ12: berrieframe | GR12: A4 | GS12: Vierkante pennen steken 59 mm uit. | GX12: A | HB12: berrieboom | HC12: B | HD12: Voor het laadvlak op alle zijden een A10. Achter het laadvlak een A10 overgaand in een afrondingsprofiel; | HE12: Ter hoogte van de kruiwagenvoet 1 rongenbeugel E. | HG12: 585 | HH12: 770 | HN12: C8 | HO12: De staander hebben een rechthoekig profiel met op alle zijden een inlopend A15 dat onderaan doorloopt. | HV12: B | HZ12: A | IG12: H | IH12: E | IQ12: 375 | IR12: 660 | IT12: 670 | IU12: B | IZ12: 90° | JB12: 120° | JE12: An1 | JU12: 230 | JV12: rong | JW12: AGA | JY12: ED2/0 | JZ12: Ronde pennen. | KA12: De bovenregel heeft aan het BV en BA een afrondingsprofiel. De opening tussen de betimmering en de linker- en rechterstaande bedraagt 15 mm. De tussenstaander heeft op het VL en VR een in- en uitlopend afschuiningsprofiel met schuine zijde van 14mm. | KC12: B8 | KV12: X | LF12: C | LG12: A | LH12: A | LI12: Verfsysteem na 1960.
A13: 10 | C13: V 2007 -0188 | D13: Rechter berrieboom | E13: Tussen | F13: 1880 | G13: 1945 | H13: Karrenmuseum Essen vzw | M13: Afkomst | P13: 2910 | Q13: Essen | R13: Antwerpen | S13: België | T13: B | U13: Ba | V13: Ab | W13: Kempische kruiwagen | X13: Kruiwagen, één wiel, twee S-vormige berriebomen, kruiwagenvoet met houten staanders, afneembare zijborden en vast voorbord. | Y13: wiel | Z13: hout | AA13: kruiwagenvoet | AB13: hout | AC13: kruiwagen | AD13: hout | AE13: verbindingselementen | AF13: metaal | AK13: 1 | AL13: 1 | AM13: A | AN13: 570 | AO13: 8/4 | AP13: A | AQ13: 360 | AR13: 105 | AS13: 30 | AT13: 34 | AU13: 25 | AX13: 0° | BA13: 50 | BB13: 56 | BC13: Schuin oplopend, ogief, 1/8 rond oplopend. | BD13: Schuin oplopend, ogief, rond oplopend. | BE13: K | BF13: B | BI13: 25 | BK13: 2K | EH13: AB0/4 | EJ13: B | EK13: C | FL13: X | GN13: 470 | GQ13: berrieframe | GR13: A4 | GS13: Ronde pennen steken 70 mm uit. | GX13: A | HB13: berrieboom | HC13: B | HD13: Voor het laadvlak op alle zijden een inlopend A20. Achter het laadvlak op de onderzijde een in- en uitlopend A18. Bovenaan een inlopend A18 overgaand naar een afrondingsprofiel. Voor de handgreep is nog een kort in- uitlopend A18 als decoratief element. | HG13: 530 | HH13: 696 | HN13: C8 | HO13: De staander hebben een rechthoekig profiel met op de zichtbare zijden een langzaam inlopend A15 dat vervolgens kort uitloopt. | HV13: C | HZ13: A | IG13: E | IQ13: 400 | IR13: 670 | IT13: 705 | IU13: B | IZ13: 90° | JB13: 120° | JE13: An0 | JU13: 220 | JV13: rong | JW13: AGA Kop I | JY13: ED2/0 | JZ13: Ronde pennen. | KA13: De bovenregel heeft aan het BV en BA een afschuiningsprofiel met schuine zijde van 16 mm en op het VO tussen de staanders een in- en uitlopend afschuiningsprofiel. De opening tussen de betimmering en de linker- en rechterstaande bedraagt 16 mm. De tussenstaander heeft op het VL en VR een in- en uitlopend afschuiningsprofiel met schuine zijde van 20mm. De linker- en rechterstaander hebben op het LV en LA onderaan een in- en uitlopen afschuiningsprofiel en vervolgens een kort inlopend afschuiningsprofiel met schuine zijde van 10 mm dat vervolgens langzaam uitloop. | KC13: B8 | KV13: X | LF13: A | LG13: A | LH13: A
A14: 11 | C14: V 1983-0006 | D14: Linker voorarm | E14: Bouwjaar | F14: 1923 | H14: Karrenmuseum Essen vzw | I14: Wagenmaker | J14: J. Van Baren | M14: Afkomst | P14: 4400 | Q14: Krabbendijke | R14: Zeeland | S14: Nederland | T14: E | U14: Ek | V14: Ce | W14: Polderwagen met afneembare zijborden | X14: Wagen, achteronderstel met twee achterwielen, verbonden doormiddel van een langboom met het vooronderstel. vooronderstel met twee kleine voorwielen draaibaar verbonden met voorarmen, woelhout en draaispil. Afneembaar laadvlak, metalen rongen en afneembaar zij-, voor- en achterbord. De bovenregel van het zijbord is hol gebogen in de lengte. | Y14: wiel | Z14: hout | AA14: langboom | AB14: hout | AC14: wagen | AD14: hout | AE14: verbindingselementen | AF14: metaal | AK14: 4 | AL14: 2 | AM14: A. | AN14: 925 | AO14: 10/5 | AP14: A. | AQ14: 450 | AR14: 265 | AS14: 70 | AU14: 50 | AX14: 6 | BA14: 76 | BB14: 81 | BC14: Schuin oplopend, kwarthol, rkant, kwartbol, rkant, vlak. | BD14: 1/8 rond. | BE14: E. | BF14: D. | BG14: C | BI14: 77 | BK14: 1M | BL14: 1K | BP14: 1335 | BQ14: 2 | BR14: A. | BS14: 1370 | BT14: 12/6 | BU14: A. | BV14: 450 | BW14: 270 | BX14: 70 | BZ14: 52 | CB14: =ASIN(CE14/CD14) * 180 / 3.14 ->  | CG14: 82 | CH14: 82 | CI14: Rkant, schuin oplopend, kwarthol, rkant, kwartbol, rkant, vlak. | CJ14: Rkant, 1/8 rond. | CK14: E. | CM14: D | CO14: C | CP14: 0 | CQ14: 77 | CS14: 1M.,1K. | CX14: 1355 | CY14: AA0/1 | DA14: A | DB14: B | DC14: 2BM4. | DD14: 2BK4 | DH14: BC | DI14: Versmallend door kwarthol en vlak. Versmallend aan de onderzijde door 1/8 hol. | DJ14: Op AO en AB is een ingwerkt halfrond profielm met breedte van 10 mm. Op VO is een afrondingsprofiel. Daar waar de asblok versmalt is op de bovenste zijden een inlopend A18. De kopse einden van de houten spatschermen zijn in de breedte afgerond. | DL14: A | DM14: Versmallend door kwarthol, vlak en schuinoplopend kopse eind. | DN14: Op AO een ingewerkt halfrond profiel met breedte van 10 mm. Daar waar de asblok versmalt op VO en AO een A18. | DP14: B | DQ14: B | DR14: A | DS14: Op het samenkomend kopse eind is een afrondingsprofiel, vervolgens een in- en uitlopend A18 en achter de asblok een kort in- en uitlopend A15. In de breedte is een uitgewerkt accolade profielering. | DT14: K4 | DV14: D | DX14: langboom | EC14: B | EH14: As AA0/1. | EJ14: A | EL14: A2 | EM14: BR | EN14: BM | EO14: WE | EQ14: AL | ES14: C | ET14: 2BM4 | EU14: 2BK | EX14: CE | EY14: Versmallend door kwarthol en vlak. Versmallend aan de onderzijde door 1/8 hol. | EZ14: Op VO en VB is een ingewerkt halfrond profiel met breedte 10 mm. Op AO is een afrondingsprofiel. Versmalling met inlopend A18. Kop B. | FA14: A | FB14: Versmallend door kwarthol en vlak. Kop L. | FC14: Op VB en VO een ingewerkt halfrond profiel met breedte van 10 mm. Versmalling met inlopen A18. | FD14: B | FE14: Tussen het zwenkhout en de middenblok is een in- en uitlopend A20. Alle zijden voor asblok hebben een A4. | FG14: A | FH14: Op BV en BA naar de kopse zijden toe is een inlopend A15. Kop B. | FI14: Op de bovenzijde metalen glijprofiel, rechthoekig bladstaal. | FJ14: D0 | FK14: Voorarmbeugel B. Voorarmbeugel D. | FL14: K4 | FM14: D | FO14: A | FP14: C | FQ14: 3760 | FR14: A | FS14: Trekbeugel B voorzien van 2 kettingen. | FT14: A | FV14: Kop N. Op de kopse zijden een in- en uitlopend A18. Op VO van de rongblok is een ingewerkt halfrond profiel met een breedte van 10 mm. | GA14: GA | GB14: GA | GD14: B | GH14: 2090 | HZ14: Da3/1/2 | ID14: A | IE14: Versmallend door 1/8 hol oplopend, kwartrond en schuinoplopend. | IR14: 750 | IT14: 3100 | IU14: B | IZ14: 130° | JB14: 90° | JD14: 120° | JE14: Ca9 | JG14: Rechthoekige pennen getapt steken 70 uit. | JH14: De eerste en laatste staanders heeft op de buitenzijde een uitgewerkt decoratief accolade motieven. | JI14: De staanders verlopen straalsgewijs volgens de schuinte van het voor- en achterbord. | JL14: 390 | JM14: C | JN14: Ronde armeinden. Op VO een ingewerkt halfrond profiel met breedte van 13 mm. | JO14: 4 rongenbeugels type E. | JU14: Vooraan 480 mm, laagste punt: 360 mm, achteraan 600 | JV14: Staander | JW14: ARA | JY14: AG3 | KA14: Op VB van de onderregel is een ingewerkt halfrond profiel. Op VO van de bovenregel is een ingewerkt halfrond profiel. Op VL en VR van de staanders is een onderaan en bovenaan een kort in- en uitlopend A18 en in het midden een lang in- en uitlopend A18. Op de kopse einden van de betimmering is een repititieve gutsinsnijdingen | KB14: De staanders zijn straalsgewijs gericht. | KD14: A | KE14: Op VB is een decoratief uitgewerkt accolade motief. Op alle zijden een A18. Kop B. Opsluiting vooropsluitbord type A. | KF14: T | KG14: S | KJ14: AB3 | KL14: Op VO van de bovenregel en VB van de onderregel is een ingewerkt halfrond profiel. Op VL en VR van de staanders is een onderaan en bovenaan een kort in- en uitlopend A18 en in het midden een lang in- en uitlopend A18. Op de kopse einden van de betimmering is een repititieve gutsinsnijdingen | KM14: De staanders zijn straalsgewijs gericht. | KN14: A | KO14: Op VB is een decoratief uitgewerkt accolade motief. Op alle zijden een A18. Kop B. Opsluiting achteropsluitbord type A. | KP14: T | KQ14: S | KV14: X | LF14: C | LG14: A | LH14: A | LI14: Sporen van restauratie. Verfsysteem na 1960.
A15: 12 | C15: V 1972-2387 | D15: Linker voorarm | E15: Tussen | F15: 1880 | G15: 1920 | H15: Karrenmuseum Essen vzw | M15: Afkomst | O15: De Wilde | P15: 9150 | Q15: Bazel | R15: Oost-Vlaanderen | S15: België | T15: E | U15: Ek | V15: Ce | W15: Polderwagen met afneembare zijborden | X15: Wagen, achteronderstel met twee achterwielen, verbonden doormiddel van een langboom met het vooronderstel. vooronderstel met twee kleine voorwielen draaibaar verbonden met voorarmen, woelhout en draaispil. Afneembaar laadvlak, metalen rongen en afneembaar zij-, voor- en achterbord. De bovenregel van het zijbord is hol gebogen in de lengte. | Y15: wiel | Z15: hout | AA15: langboom | AB15: hout | AC15: wagen | AD15: hout | AE15: verbindingselementen | AF15: metaal | AK15: 4 | AL15: 2 | AM15: A. | AN15: 925 | AO15: 10/5 | AP15: A. | AQ15: 410 | AR15: 280 | AS15: 68 | AU15: 48 | AX15: 7 | BA15: 85 | BB15: 65 | BC15: Schuin oplopend, rkant, kwarthol, rkant, kwartrond, rkant, vlak. | BD15: 1/8 rond, kwarthol. | BE15: B. | BF15: C. | BG15: C | BI15: 60 | BK15: 1M | BL15: 2S | BM15: 1K | BO15: 30 | BP15: 1335 | BQ15: 2 | BR15: A. | BS15: 1390 | BT15: 12/6 | BU15: A. | BV15: 460 | BW15: 274 | BX15: 70 | BZ15: 55 | CB15: =ASIN(CE15/CD15) * 180 / 3.14 ->  | CG15: 80 | CH15: 67 | CI15: Rkant, schuin oplopend, rkant, kwarthol, rkant, kwartrond, rkant, vlak. | CJ15: Rkant, 1/8 rond. | CK15: B. | CM15: C | CO15: C | CP15: 42 | CQ15: 112 | CS15: 1M | CT15: 2S | CU15: 2K | CW15: 30 | CX15: 1365 | CY15: AA0/1 | DA15: A | DB15: B | DC15: 4BM4 | DH15: BB | DI15: Versmallend door kwarthol, vlak en kwarthol. Versmallend aan de onderzijde door 1/8 hol. | DJ15: Op AO is een ingewerkt halfrond profiel met breedte 10 mm. Daar waar de asblok versmalt is op VB en AB een inlopend A22. | DL15: A | DM15: Versmallend door 3/4 hol, 3/4 rond profiel en schuinoplopend kopse eind. | DN15: Daar waar de asblok versmalt op VO en AO een inlopend A22.. | DP15: B | DQ15: C | DR15: A | DS15: De achterarmen hebben op VO, AB en AO een A18. Op VB een afrondingsprofiel met scherpe snede. De kopse einden achter de asblok hebben in de breedte een uitgewerkt accolade profiel en op alle zijde is een A18. | DT15: K4 | DV15: EC | DX15: langboom | EC15: B | EH15: As AA0/1. | EJ15: A | EL15: A2 | EM15: A | EN15: CR | ES15: C | ET15: 2BM4 | EU15: 1BMS4 | EX15: CB | EY15: Versmallend door kwarthol. | FA15: A | FB15: Versmallend door S-vormige profiel. | FC15: Versmalling met inlopend A18. | FD15: A | FE15: Tussen het zwenkhout en de middenblok is een in- en uitlopend A15 mm. Alle zijden voor asblok hebben A15 mm. | FG15: A | FJ15: D0 | FK15: Aan de voorste kopse einden van de voorarmen is een disseboomverbindingsmetaal A en B. Achtraan het disselhuis worden de twee voorarmen doormiddel van een houten verbindingsregel verbonden. disselboomvastzetsysteem op beide voorarmen is achter het disselhuis een metalen kram waarin mtetalen beugels zitten dien een metalente profiel vasthouden. Disselboom opsluting A. Disselboom metaal B | FL15: K4 | FM15: EC | FN15: Rond gebogen | FO15: Bevestiging langboom A. | FP15: C | FQ15: 3440 | FS15: Trekbeugel B. | FT15: A | FV15: Kop N. Op de kopse zijden een in- en uitlopend A8. | GA15: MD | GB15: MD | GD15: A | GF15: Woelhoutmetaal A | GH15: 2285 | HZ15: Da6/1S/2 | IC15: Tussen de rongblok en de bovenblok is een tussenblokstoel | ID15: A | IE15: Versmallend door 1/8 hol schuin oplopend, kwartrond en schuinoplopend. Op VO en AO is een in- en uitlopend A18 mm. | IR15: 780 | IT15: 2670 | IU15: B | IZ15: 115° | JB15: 90° | JD15: 120° | JE15: Cc8 | JG15: Rechthoekige pennen, getapt steken 140 mm uit. | JH15: Op VL en VR van de staanders en VO van de bovenregel een afrondingsprofiel. De laatste staander is naar de buitenzijde met uitgewkerte accoladen versierd. | JI15: De staanders verlopen straalsgewijs volgens de schuinte van het voor- en achterbord. | JL15: 415 | JM15: C | JN15: Ronde armeinden. Op alle zijden een licht afrondingsprofiel. | JU15: Vooraan 480 mm, laagste punt: 320 mm, achteraan 620 | JX15: Niet authentiek. | KN15: A | KO15: Op VB decoratief versierd met accolade motieven uitgewerkt. | KV15: X | LF15: C | LG15: A | LH15: A | LI15: Sporen van restauratie. Verfsysteem na 1960.
A16: 13 | C16: 1986-0058 | D16: Linker voorarm | E16: Tussen | F16: 1880 | G16: 1914 | H16: Karrenmuseum Essen vzw | M16: Afkomst | O16: De Zitter L. | P16: 9790 | Q16: Wortegem-Petegem | R16: Oost-Vlaanderen | S16: België | T16: E | U16: En | V16: Ad | W16: Boerenwagen met sponnenzijbord | X16: Wagen, achteronderstel met twee achterwielen, verbonden doormiddel van een langboom met het vooronderstel. vooronderstel met twee kleine voorwielen draaibaar verbonden met voorarmen, woelhout en draaispil. Afneembaar laadvlak, metalen rongen en afneembaar voor- en achterbord. Het zijbord is bestaat uit paneel, bovenregel en sponnen vastgezet op met beugel op de laadboom. | Y16: wiel | Z16: hout | AA16: draagbomen | AB16: hout | AC16: wagen | AD16: hout | AE16: verbindingselementen | AF16: metaal | AK16: 4 | AL16: 2 | AM16: A | AN16: 855 | AO16: 10/5 | AP16: A | AQ16: 350 | AR16: 275 | AS16: 70 | AU16: 57 | AX16: 4 | BA16: 75 | BB16: 87 | BC16: Kwarthol, rkant, kwartbol. | BD16: Kwarthol, kwartrond. | BE16: A. | BF16: A. | BG16: C. | BI16: 30 | BJ16: A | BK16: 1M | BL16: 2S | BM16: 1K | BO16: 30 | BP16: 1445 | BQ16: 2 | BR16: A | BS16: 1415 | BT16: 14/7 | BU16: A. | BV16: 370 | BW16: 320 | BX16: 80 | BZ16: 56 | CB16: =ASIN(CE16/CD16) * 180 / 3.14 ->  | CG16: 80 | CH16: 87 | CI16: Rkant, kwarthol, rkant, kwartbol, rkant. | CJ16: Rkant, kwarthol. | CK16: A. | CM16: A | CO16: C | CP16: 0 | CQ16: 34 | CR16: A | CS16: 1M | CT16: 2S | CU16: 2K | CW16: 34 | CX16: 1550 | CY16: AA0/1 | DA16: A | DB16: B | DC16: 4BM4 | DH16: BB | DI16: Versmallend door kwarthol, vlak en kwarthol. | DJ16: Daar waar de asblok versmalt is op VB en AB een inlopend afrondingsprofiel. | DL16: A | DM16: Versmallend door kwarthol en kwartrond kopse eind. | DN16: Daar waar de asblok versmalt is op VO en AO een inlopend afrondingsprofiel. | DP16: B | DQ16: E | DR16: B | DS16: Voor en achter de asblok op alle zijden een inlopend afrondingsprofiel. | DT16: C | DV16: C | DY16: Bevestiging langboom type A en B | EH16: As AA0/1. | EJ16: A | EL16: A2 | EM16: DR | EN16: DM | EO16: WE | EP16: CM | EQ16: CR | ER16: 350 | ES16: C | ET16: 2BM4 | EU16: 1BM4 | EX16: CB | EY16: Versmallend door kwarthol | EZ16: Versmalling met inlopend afrondingsprofiel. | FA16: A | FB16: Versmallend door S-vormig profiel. | FC16: De zijden van de U -vormige uitsparing zijn decoratief ingesneden met in en uitlopend afschuiningsprofiel in hartvorm. Versmalling met een afrondingsprofiel dat doorloopt op de kopse zijde. | FD16: A | FE16: Voor en achter de asblok een inlopend afrondingsprofiel. | FG16: A | FJ16: D0 | FK16: Disseboomverbindingsmetaal A en B met uitgesmeede siereind. | FL16: C | FM16: C | FO16: Bevestiging langboom A. | FP16: C | FQ16: 3250 | FR16: B | FS16: Trekbeugel G. | FT16: A | FV16: Kop O. Op de kopse zijden een doorlopend afrondingsprofiel. | GA16: AC | GB16: AC | GD16: A | GF16: Profiel voorl 170 x 160 mm, profiel achter 135 x 130mm. oversteek asblok: 470 mm. Vooraan bovenzijde heeft een halfrond profiel de onderzijde een afschuingsprofiel met schuine zijde van 50 mm wat naar achteren overgaat in een halfrond profiel aan de onderzijde. Kettinghaak A. | GH16: 2850 | HW16: A | HY16: Linkerzijde, zijbord, onderaan, midden. | HZ16: Dc3/6/2 | ID16: A | IE16: Versmallend door 1/8 hol oplopend. Op AO en VO is een in- en uitlopend A14 mm. | IG16: C | IK16: A | IL16: Op VB en VO een ingewerkt halfrond profiel. | IP16: 30 | IQ16: 15 | IR16: 1230 | IT16: 4080 | IU16: A | IZ16: 90° | JB16: 90° | JD16: 97° | JE16: Ag13/0 | JG16: Ronde pennen getapt. | JI16: Op halve hoogte loopt over de volledige lengte een metalen profiel vastzete met bouten en vierkatne moeren. | JL16: 280 | JM16: A | JN16: Op VO een ingewerkt halfrond profiel . Kop B. | JO16: 4 rongenbeugels type E. | JU16: 500 | JV16: rong | JW16: AIA | JY16: AD4/145 | JZ16: Pennen getapt. | KA16: Op VB van de onderregel en VO van de bovenregel is een ingewerk halfrond profiel. | KB16: Op de kopse einden een metalen opsluitbeugel | KF16: A | KG16: B | KJ16: AD3/150 | KK16: Pennen getapt. | KL16: Op VB van de onderregel en VO van de bovenregel is een ingewerk halfrond profiel. | KM16: Op de kopse einden een metalen opsluitbeugel | KP16: A | KQ16: B | LF16: B | LG16: A | LH16: B | LI16: Sporen van restauratie. Verfsysteem na 1960. Plaatselijk verzwakt.
A17: 14 | C17: V 2013-0002 | E17: Tussen | F17: 1880 | G17: 1945 | H17: Karrenmuseum Essen vzw | M17: Afkomst | O17: Privé collectie Herman De Ridder. | S17: België | T17: B | U17: Ba | V17: Ac | W17: Kempische kruiwagen | X17: Kruiwagen, één wiel, twee S-vormige berriebomen, kruiwagenvoet met houten staanders, afneembare zijborden en vast voorbord. | Y17: wiel | Z17: hout | AA17: kruiwagenvoet | AB17: hout | AC17: kruiwagen | AD17: hout | AE17: verbindingselementen | AF17: metaal | AK17: 1 | AL17: 1 | AM17: A | AN17: 490 | AO17: 8/4 | AP17: A | AQ17: 380 | AR17: 104 | AS17: 28 | AU17: 21 | AX17: 0° | BA17: 50 | BB17: 54 | BC17: Schuin oplopend, kwarthol, rkant, kwartrond, rkant, vlak. | BD17: Schuin oplopend, kwarthol, rkant, kwartrond, rkant, vlak. | BE17: G | BF17: A | BI17: 25 | BK17: 2K | BL17: 2S | BO17: 25 | EH17: AB0/4 | EJ17: B | EK17: C | FL17: X | GN17: 530 | GQ17: berrieframe | GR17: A4 | GS17: Ronde pennen steken 65 mm uit. | GT17: De dwarse regels hebben een in- en uitlopend afschuiningsprofiel op de hoeken van de onderste zijde. | GX17: A | HB17: berrieboom | HC17: B | HD17: De berriebomen voor het laadvlak naar de handgrepen hebben een inlopend afschuiningsprofiel met schuine zijde van 12 mm dat naar de handgrepen overgaat in een afrondingsproifiel Voorbij het laadvlak naar de wielopsluiting is een inlopend afschuinigspofiel met schuine zijde van 12 mm dat doorlopt of de het kpse einden dat een afrondingsprofiel heeft in de breedte | HG17: 655 | HH17: 740 | HN17: C8 | HO17: De staander hebben een rechthoekig profiel met op de zichtbare zijden een langzaam inlopend A15 dat vervolgens kort uitloopt. | HU17: 270 | HV17: C | HZ17: A | IG17: H | IQ17: 385 | IR17: 728 | IT17: 720 | IU17: B | IW17: 45 | IZ17: 90° | JB17: 128° | JD17: 90° | JE17: An1 | JU17: 305 | JV17: rong | JW17: AGA | JY17: EE2/155/0 | KA17: De bovenregel heeft aan de bovenste zijde op beide hoeken een afrondingsprofiel en aan de onderzijde tussen de staanders een in en uitlopend afschuinigsprofeil. De opening tussen de betimmering en de linker- en rechterstaande bedraagt 15 mm. De tussenstaander heeft op de zichtbare hoeken een in- en uitlopend afschuiningsprofiel met schuine zijde van 12mm. De linker- en rechterstaander zijn uitgewkert met accolade versiering. | KC17: B8 | KJ17: CD0 | KV17: X | LF17: A | LG17: A | LH17: A
A18: 15 | C18: V 2001-0058 | D18: Rechter berrieboom | E18: Tussen | F18: 1880 | G18: 1945 | H18: Karrenmuseum Essen vzw | M18: Afkomst | O18: Van Wagenmans | P18: 2940 | Q18: Stabroek | R18: Antwerpen | S18: België | T18: B | U18: Ba | V18: Ac | W18: Kempische kruiwagen | X18: Kruiwagen, één wiel, twee S-vormige berriebomen, kruiwagenvoet met houten staanders, afneembare zijborden en vast voorbord. | Y18: wiel | Z18: hout | AA18: kruiwagenvoet | AB18: hout | AC18: kruiwagen | AD18: hout | AE18: verbindingselementen | AF18: metaal | AK18: 1 | AL18: 1 | AM18: A | AN18: 525 | AO18: 8/4 | AP18: A | AQ18: 355 | AR18: 100 | AS18: 30 | AU18: 20 | AX18: 0° | BA18: 43 | BB18: 64 | BC18: Schuin oplopend, kwarthol, vlak. | BD18: Schuin oplopend, kwarthol, vlak. | BE18: I | BF18: B | BI18: 20 | BK18: 2K | EH18: AB0/4 | EJ18: B | EK18: B | FL18: X | GN18: 434 | GQ18: berrieframe | GR18: A4 | GS18: Ronde pennen steken 70 mm uit. | GT18: De dwarse regels hebben een in- en uitlopend afschuiningsprofiel op de hoeken van de onderste zijde. | GX18: A | HB18: berrieboom | HC18: B | HD18: De berriebomen voor het laadvlak naar de handgrepen hebben aan de bovenzijde een inlopend afschuiningsprofiel met schuine zijde van 20 mm dat naar de handgrepen overgaat in een afrondingsproifiel en aan de onderzijde een in en uitlopende afschuiningsprofiel. Voorbij het laadvlak aan de onderzijde tussen de askllos is een in en uitloepnd afschuingsprofie en aan de boenzijde ene inlopen afschuinngpfie ldat doorloop totp het kopse eind | HG18: 483 | HH18: 735 | HN18: CA | HO18: De staander hebben een rechthoekig profiel met op alle zijden een doorlopend A10. De schuine steker in driehoekvormig in de breedte en hebben een A10. | HU18: 360 | HV18: C | HZ18: A | IG18: H | IQ18: 360 | IR18: 660 | IT18: 700 | IU18: B | IZ18: 90° | JB18: 120° | JE18: An1 | JU18: 260 | JV18: rong | JW18: AGA | JY18: EE2/35/0 | JZ18: Ronde penen | KA18: De bovenregel heeft aan de boven en onderzijde een afschuingsprofiel. De opening tussen de betimmering en de linker- en rechterstaande bedraagt 15 mm. De tussenstaander heeft op de zichtbare hoeken een doorlopend afschuiningsprofiel met schuine zijde van 15mm. De linker- en rechterstaander zijn voorzien van een in- en uitlopend afschuiningsprofie met schuine zijde van 10 mml dat in het midden hernomen wordt. | KC18: B8 | KV18: X | LF18: B | LG18: A | LH18: A | LI18: Verfsysteem na 1960.
A19: 16 | C19: V 2013-0003 | E19: Tussen | F19: 1880 | G19: 1945 | H19: Karrenmuseum Essen vzw | M19: Afkomst | O19: Privé collectie Herman De Ridder. | S19: België | T19: B | U19: Ba | V19: Ac | W19: Kempische kruiwagen | X19: Kruiwagen, één wiel, twee S-vormige berriebomen, kruiwagenvoet met houten staanders, afneembare zijborden en vast voorbord. | Y19: wiel | Z19: hout | AA19: kruiwagenvoet | AB19: hout | AC19: kruiwagen | AD19: hout | AE19: verbindingselementen | AF19: metaal | AK19: 1 | AL19: 1 | AM19: A | AN19: 555 | AO19: 8/4 | AP19: A | AQ19: 365 | AR19: 110 | AS19: 30 | AU19: 23 | AX19: 0° | BA19: 55 | BB19: 53 | BC19: Schuin oplopend, 1/8 kwarthol, vlak. | BD19: Schuin oplopend, 1/8 kwarthol, vlak. | BE19: I | BF19: B | BI19: 20 | BK19: 2K | BL19: 2S | BO19: 20 | EH19: AB0/4 | EJ19: B | EK19: C | FL19: X | GN19: 450 | GQ19: berrieframe | GR19: A4 | GS19: Ronde pennen steken 75 mm uit. | GT19: De dwarse regels hebben een in- en uitlopend afschuiningsprofiel op de hoeken van de onderste zijde | GX19: A | HB19: berrieboom | HC19: B | HD19: De berriebomen voor het laadvlak naar de handgrepen hebben aan de bovenzijde een inlopend afschuiningsprofiel met schuine zijde van 16 mm dat naar de handgrepen overgaat in een afrondingsproifiel en aan de onderzijde een inlopende afschuiningsprofiel dat loop tot aan de handgreep. Voorbij het laadvlak aan de onderzijde tussen de aseind is een in en uitloepnd afschuingsprofie en aan de boenzijde ene inlopen afschuinngpfie ldat doorloop totp het kopse eind | HG19: 520 | HH19: 750 | HN19: C8 | HU19: 310 | HV19: A | HZ19: A | IG19: H | IQ19: 380 | IR19: 680 | IT19: 670 | IU19: B | IZ19: 90° | JB19: 115° | JE19: An1 | JU19: 243 | JV19: rong | JW19: AGA | JY19: ED2/0 | JZ19: Ronde pennen. | KA19: De bovenregel heeft aan de bovenaan een afschuingsprofiel en onderaan tusse de staandes een in- en uitlopend afschuiningsprofiel. De opening tussen betimmering en staander is 20 mm. De tussenstaander hebben op de zichtbare hoeken een doorlopend afschuiningsprofiel met schuine zijde van 15mm. De linker- en rechterstaander hetmidden hernmen wordtmet schuine zid ava 10 mm. | KC19: B8 | KJ19: CD0 | KP19: O | KQ19: O | KV19: X | LF19: B | LG19: A | LH19: A | LI19: Verfsysteem na 1960.
A20: 17 | C20: V 1993-0344 | D20: Linker voorarm | E20: Tussen | F20: 1880 | G20: 1930 | H20: Karrenmuseum Essen vzw | M20: Afkomst | O20: Frans Verhoeven | P20: 1500 | Q20: Halle | R20: Vlaams-Brabant | S20: België | T20: D | U20: Df | V20: Bg | W20: Driewielbeerkar | X20: Driewielkar, twee achterwielen, één voorwiel draaibaar verbonden met het draagframe. Draagframe scharnierbaar verbonden met beerkist. | Y20: wiel | Z20: hout | AA20: draagbomen | AB20: hout | AC20: kar | AD20: hout | AE20: verbindingselementen | AF20: metaal | AK20: 3 | AL20: 1 | AM20: A | AN20: 605 | AO20: 8/4 | AP20: A | AQ20: 370 | AR20: 182 | AS20: 66 | AU20: 52 | AX20: 0 | BA20: 52 | BB20: 98 | BC20: Rkant, schuin oplopend, kwarthol, rkant, kwartbol, rkant, vlak. | BD20: Rkant, schuin oplopend, kwarthol, rkant, kwartbol, rkant, vlak. | BE20: B | BF20: A | BK20: 2K | BL20: 2S | BO20: 30 | BQ20: 2 | BR20: A | BS20: 1396 | BT20: 14/7 | BU20: A | BV20: 430 | BW20: 275 | BX20: 74 | BZ20: 58 | CB20: =ASIN(#REF!/CD20) * 180 / 3.14 ->  | CI20: Rkant, kwarthol, rkant, kwartbol, rkant, vlak. | CJ20: Rkant kwartbol, vlak. | CK20: D | CM20: A | CN20: De velgen hebben naar hun kopse einde toe steeds een doorgaande metalen stift met ronde kop die verloop volgens de beedte van de velg. | CO20: A | CP20: 33 | CQ20: 90 | CR20: A | CS20: 1M | CT20: 2S | CU20: 2K | CX20: 1618 | CY20: AA0/1 | DA20: A | DB20: A | DC20: 1BM4 | DD20: 2BB4 | DE20: 2BK4 | DH20: AC26 | DI20: Versmallend door schuin neerlopend, vlak en schuinoplopend. | DT20: A | DV20: BC | DX20: laadboom | DY20: 20 | EA20: BB4 | EB20: 4 verstevigingsdriehoeken | EH20: AA0/1 | EJ20: C | EL20: A1 | FJ20: E | FK20: De bovenzijde van het voorarmframe is volledig belegd met bladmetaal. | FL20: J | FP20: A | FQ20: 580 | FR20: A | GI20: Ja | GJ20: C | GK20: A | GL20: Verstevigd op de binnenzijde met een metalen beugel | GO20: 1030 | GQ20: draagframe | GR20: AA4/2/1 | GS20: Ronde pennen steken 75 mm uit. Pen A. | GT20: Op OV en OA een in- en uitlopende A15 dat voorbij de U-sponing wordt herhaald. | GU20: De regels onder de schamelring zijn verbreed. De overige dwarrsregels hebben op de onderkant in het midden een ondiepe U-sponning waarvan de functie onbekend is. | GX20: A | GY20: 840 | GZ20: H | HB20: draagboom | HC20: A | HD20: Achter de voorschoot een inlopend A22 mm naar de kopse zijde dat doorloopt op de onderzijde. | HH20: 100 | HZ20: Ba6/0 | IA20: Vierkante pennen steken 15 mm uit. | IB20: Pen A14. Op de voorste regel onderaan is een ingewerkt halfrond proflel met breedt 10 mm. | IK20: B | IL20: Versmallend door een inlopend kwarhol profiel dat vervolgens schuin oploopt. De kopse einden hebben een inlopend afschuiningsprofiel. | IP20: 170 | IQ20: 130 | IR20: 860 | IT20: 1840 | IU20: A | IZ20: 98° | JB20: 90° | JD20: 90° | JE20: Ba5/0/4 | JH20: Op de staanders VL en VR is een in- en uitlopend afschuinogspofiel met schuine zijde van 22 mm. | JL20: 340 | JM20: A | JN20: Ronde armeinden steken 155 mm uit. Op de bovenregel tussen de staander VO is een in- en uitlopend afschuingspofiel met schuine zijde van 22 mm. | JU20: 455 | JV20: staander | JW20: FHA | JY20: EA1/2 | JZ20: Vierkante pennen. | KA20: Op VL en VR van de staander en op VO van de bovenregel tussen de staander en de kopse einden een in- en uitlopend A14. | KJ20: EA2/2 | KL20: Op VL en VR van de staanders en op VO van de bovenregel tussen de staander en de kopse einden een in- en uitlopend A14. | KM20: In de middelste staander is een het uitvloeigat voorzien. | KS20: D1/0 | KT20: Deksel 820 x 480. Scharnier A. De verbindingstang van het achterbord loopt door in het scharnierblad en sluit het deksel op met een metalen spie. | KV20: X | LF20: B | LG20: A | LH20: A | LI20: Sporen van restauratie. Verfsysteem na 1960.
A21: 18 | C21: V 2005-0005 | D21: Linker voorarm | E21: Tussen | F21: 1918 | G21: 1945 | H21: Karrenmuseum Essen vzw | N21: Laatste gebruiker | O21: Lammens Cyriel | P21: 9080 | Q21: Beervelde | R21: Oost-Vlaanderen | S21: België | T21: D | U21: Dg | V21: Ad | W21: Driewielkar met geknikte draagboom | X21: Driewielkar, twee achterwielen, één klein voorwiel draaibaar bevestigd met de draagbomen met voorschoot. Kipbare karbak, sponnenzijbord, zijleesten, opzetborden en afneembaar voor- en achterbord. | Y21: wiel | Z21: hout | AA21: draagbomen | AB21: hout | AC21: kar | AD21: hout | AE21: verbindingselementen | AF21: metaal | AK21: 3 | AL21: 1 | AM21: A | AN21: 620 | AO21: 6/6 | AP21: A | AS21: 64 | AU21: 56 | AX21: 0 | BA21: 73 | BB21: 57 | BC21: Rkant, vlak, kwartbol, rkant, kwartbol. | BD21: Rkant, vlak, kwartbol, rkant, kwartbol. | BE21: B | BF21: C | BK21: 2K | BL21: 2S | BO21: 28 | BQ21: 2 | BR21: A | BS21: 1206 | BT21: 12/6 | BU21: A | BX21: 65 | BZ21: 52 | CB21: =ASIN(CE21/CD21) * 180 / 3.14 ->  | CG21: 80 | CH21: 64 | CI21: Rkant, 1/8 kwarthol, rkant, kwartbol, rkant, kwartbol. | CJ21: Rkant, kwartbol, vlak. | CK21: A | CM21: C | CO21: C | CP21: 0 | CQ21: 50 | CR21: A | CS21: 1M | CT21: 2S | CU21: 2K | CW21: 33 | CX21: 1565 | CY21: AA0/1 | DA21: A | DB21: A | DC21: 3BM4 | DG21: waarvan 2 onder de laadbomen. | DH21: AB | DJ21: Ter hoogte van de middenbeugel is er een V-vormige uitsparing waardoor de opsluitbeugel ietwat verzonken is. | DT21: F | DV21: D | DX21: draagboom | DZ21: Met pen en gat verbonden met de asblok. Op de draagbomen is metalen draadstang bevestid die gaat doorheen de de asblok en is vastgezet met zeskantige moer. | EH21: AA0/1 | EJ21: C | EL21: B1 | FJ21: F | FL21: F | FP21: B | FS21: Trekbeugel EC. | GI21: Ja | GJ21: B | GK21: D | GM21: B | GO21: 600 | GQ21: draagframe | GR21: BA4/2/2 | GS21: Vierkante pennen steken 15 mm uit. Pen H. | GU21: Op de voorkant van de eerste dwarsregel is een metalen haak bevesigd. | GX21: C | GY21: 550 | GZ21: EA | HB21: draagboom | HC21: B | HD21: Voorste kopse eind een halfrond profiel in de breedte. Achteraan onderzijde schuinoplopend Aan de bovenzijde en de onderzijde van de boom zichtbare zijde is een ingewerkt halfrond profiel met breet van 8 mm. van de knik toe is er een in- en uitlopend afschuinongsprofiel tot daar waar de wagenkast begint | HF21: Verval +- 70 mm | HW21: B | HY21: Linkerzijde, voor het laadvlak, naast de voorschoot. | HZ21: Ba5/0 | IA21: Vierkante pennen steken 15 mm uit. | IB21: Pen B | IG21: C | IK21: B | IL21: Versmallen aan de onderzijde door schuinoplopend. De laadboom heeft aan de zichtbare onderzijde een ingewerkt halfrond profiel van 8 mm breed. | IP21: 170 | IQ21: 170 | IR21: 1000 | IT21: 1920 | IU21: A | IZ21: 94° | JB21: 94° | JD21: 94° | JE21: Ad4/0 | JG21: Vierkante pennen steken 25 mm uit | JH21: De eerste twee rongen zijn ook 94° gericht naar voren en de achterste 94° naar achteren. | JL21: 530 | JM21: A | JN21: Ronde armeinden steken 145 mm uit. De bovenregel heeft op VO een ingewerkt halfrond profiel met breedte van 8 mm. | JO21: Op de voorkant zijn 3 rongenbeugels type E. | JP21: A | JU21: 500 | JV21: rong | JW21: ANA | JY21: AB3 | KA21: Op VO van de bovenregel, VL en VR van de staanders en op VB van de onderregel is een ingewerkt haflrond profiel met breedte van 8 mm. Op VB van de bovenregel is een doorlopend A14. | KB21: Buitenstaanders straalsgewijs waaiervormig. | KF21: A | KG21: B | KJ21: AB3 | KL21: Op VO van de bovenregel, VL en VR van de staanders en VB van de onderregel is een ingewerkt haflrond profiel met breedte van 8 mm. Op VB van de bovenregel is een doorlopend afschuiningsprofiel. | KM21: Buitenstaanders straalsgewijs waaiervormig. | KP21: A | KQ21: B | KV21: X | LF21: B | LG21: A | LH21: A | LI21: Verfsysteem na 1960.
A22: 19 | C22: V 2001-0057 | D22: Rechter berrieboom | E22: Tussen | F22: 1880 | G22: 1945 | H22: Karrenmuseum Essen vzw | M22: Afkomst | O22: Van Wagenmans | P22: 2940 | Q22: Stabroek | R22: Antwerpen | S22: België | T22: B | U22: Ba | V22: Ab | W22: Kempische kruiwagen | X22: Kruiwagen, één wiel, twee S-vormige berriebomen, kruiwagenvoet met houten staanders, afneembare zijborden en vast voorbord. | Y22: wiel | Z22: hout | AA22: kruiwagenvoet | AB22: hout | AC22: kruiwagen | AD22: hout | AE22: verbindingselementen | AF22: metaal | AK22: 1 | AL22: 1 | AM22: A | AN22: 560 | AO22: 8/4 | AP22: A | AQ22: 340 | AR22: 120 | AS22: 36 | AT22: 34 | AU22: 22 | AX22: 0° | BA22: 48 | BB22: 56 | BC22: Schuin oplopend, kwarthol, vlak. | BD22: Schuin oplopend, kwarthol, vlak. | BE22: K | BF22: A | BI22: 20 | BK22: 2K | EH22: AB0/4 | EJ22: B | EK22: B | FL22: X | GN22: 460 | GQ22: berrieframe | GR22: A4 | GS22: Ronde pennen steken 62 mm uit. | GT22: De dwarse regels hebben een doorlopend afschuiningsprofiel met schuine zijde van 4 mm op de hoeken van de onderste zijde | GX22: A | HB22: berrieboom | HC22: B | HD22: De berriebomen voor het laadvlak naar de handgrepen hebben aan op alle zijden een inlopend afschuiningsprofiel met schuine zijde van 16 mm. Aan de handgrepen is een versieringsmotief en wordt het profiel ovaalvormig. Voorbij het laadvlak aan de bovenzijde op beide zijden een inlopen afschuiningsprofiel dat uitloopt op de onderzijde voor het laadvlak. | HG22: 482 | HH22: 710 | HN22: C0 | HO22: De staander hebben een rechthoekig profiel met op VL en VR een langzaam inlopend A18 dat vervolgens kort uitloopt. | HU22: 335 | HV22: A | HZ22: A | IG22: H | IQ22: 400 | IR22: 690 | IT22: 680 | IU22: B | IZ22: 90° | JB22: 120° | JE22: An0 | JU22: 290 | JV22: rong | JW22: AGA | JY22: ED2/0 | JZ22: Ronde pennen. | KA22: De bovenregel heeft aan de bovenaan een afschuingsprofiel en onderaan tussen de staandes een in- en uitlopend afschuiningsprofiel met schuine zijde van 15 mm. De opening tussen betimmering en staander is 22 mm. De tussenstaander hebben op de zichtbare hoeken een doorlopend afschuiningsprofiel met schuine zijde van 4mm. De linker- en rechterstaander hebben op halve hoogte een inlopend afrondingsprofiel. | KC22: B8 | KV22: X | LF22: B | LG22: A | LH22: A | LI22: Verfsysteem na 1960.
A23: 20 | C23: V 2013-0004 | E23: Tussen | F23: 1880 | G23: 1945 | H23: Karrenmuseum Essen vzw | M23: Afkomst | O23: Privé collectie Herman De Ridder. | S23: België | T23: B | U23: Ba | V23: Ab | W23: Kempische kruiwagen | X23: Kruiwagen, één wiel, twee S-vormige berriebomen, kruiwagenvoet met houten staanders, afneembare zijborden en vast voorbord. | Y23: wiel | Z23: hout | AA23: kruiwagenvoet | AB23: hout | AC23: kruiwagen | AD23: hout | AE23: verbindingselementen | AF23: metaal | AK23: 1 | AL23: 1 | AM23: A | AN23: 510 | AO23: 8/4 | AP23: A | AQ23: 350 | AR23: 115 | AS23: 31 | AU23: 27 | AX23: 0° | BA23: 51 | BB23: 53 | BC23: Schuin oplopend, kwarthol, rkant, kwartrond, vlak. | BD23: Schuin oplopend, kwarthol, rkant, kwartrond, vlak. | BE23: K | BF23: B | BI23: 40 | BK23: 2K | BL23: 2S | BO23: 20 | EH23: AB0/4 | EJ23: B | EK23: C | FL23: X | GN23: 510 | GQ23: berrieframe | GR23: A4 | GS23: Ronde pennen steken 50 uit. | GT23: De dwarse regels hebben op OV en OA een in- en uitlopende A16 mm. | GX23: A | HB23: berrieboom | HC23: B | HD23: De berriebomen voor het laadvlak naar de handgrepen hebben aan op alle zijden een inlopend afschuiningsprofiel met schuine zijde van 16 mm dat naar de handgrepen overgaat in een afrondingsproifiel in een versieringsmotief en de handgreep. Voorbij het laadvlak aan de bovenzijde op beide zijden een inlopen afschuiningsprofiel dat uitloopt op de onderzijde voor het laadvlak. | HG23: 615 | HH23: 710 | HN23: C8 | HO23: De staander hebben een rechthoekig profiel met op VL en VR een langzaam inlopend A18 dat vervolgens kort uitloopt. | HU23: 290 | HV23: C | HZ23: A | IG23: H | IQ23: 400 | IR23: 695 | IT23: 695 | IU23: B | IZ23: 90° | JB23: 120° | JE23: An0 | JU23: 280 | JV23: rong | JW23: AGA | JY23: EE2/125/0 | JZ23: Ronde pennen. | KA23: De bovenregel heeft aan de bovenste zijde op beide hoeken een afrondingsprofiel en aan de onderzijde tussen de staanders een in en uitlopend afschuinigsprofiel. De opening tussen de betimmering en staanders bedraagt 20 mm. De tussenstaander heeft op de zichtbare hoeken een doorlopend afschuiningsprofiel met schuine zijde van 17mm. De linker- en rechterstaander zijn voorzien van accolade vormige uitwerking met in- en uitlopend afschuiningsprofiel. | KC23: B8 | KJ23: CD0 | KV23: X | LF23: A | LG23: A | LH23: A
A24: 21 | C24: V 2009-0004 | D24: Linker draagboom | E24: Tussen | F24: 1920 | G24: 1945 | H24: Karrenmuseum Essen vzw | M24: Afkomst | P24: 2910 | Q24: Essen | R24: Antwerpen | S24: België | T24: D | U24: Db | V24: Aa | W24: Driewielkar, klein | X24: Kar, twee achterwielen, één klein voorwiel draaibaar bevestigd met het draagframe en sponnenzijbord. Draagboom met knik. | Y24: wiel | Z24: hout | AA24: draagbomen | AB24: hout | AC24: kar | AD24: hout | AE24: verbindingselementen | AF24: metaal | AK24: 3 | AL24: 1 | AM24: A | AN24: 420 | AO24: 8/4 | AP24: A | AQ24: 305 | AR24: 115 | AS24: 50 | AU24: 42 | AX24: 0 | BA24: 46 | BB24: 80 | BC24: Rkant, schuin oplopend, kwarthol, vlak, kwartrond. | BD24: Rkant, schuin oplopend, kwarthol, vlak, kwartrond. | BE24: I | BF24: B | BK24: 2K | BL24: 2S | BO24: 25 | BQ24: 2 | BR24: A | BS24: 810 | BT24: 14/7 | BU24: A | BV24: 300 | BW24: 220 | BX24: 60 | BZ24: 40 | CG24: 80 | CH24: 65 | CI24: Rkant, halfrond, kwartrond zeer klein, halfhol, rkant, kwartrond. | CJ24: Rkant, kwartrond. | CK24: C | CM24: A | CO24: C | CP24: 0 | CQ24: 25 | CS24: 1M | CT24: 2S | CU24: 2K | CW24: 25 | CX24: 1520 | CY24: AA0/1 | CZ24: Industrieel vervaardigd | DA24: G | DT24: I4 | DV24: AB | DX24: draagboom | DZ24: De as is 1/2 opgesloten in een U-sponning op de ondezijde van de laadboom. De overige dikte is uitgevuld met hout en vastgezet met rechthoekig metalen bandprofiel. | EH24: AA0/1 | EJ24: C | EL24: C1 | FJ24: F | FL24: A | FP24: BA | FS24: Trekbeugel EF. | GH24: 1320 | GO24: 540 | GQ24: draagframe | GR24: C6/0 | GS24: Vierkante pennen. | GX24: A | HB24: draagboom | HC24: B | HD24: Voorste kopse eind een halfrond profiel in de breedte. Achteraan onderzijde schuinoplopend | HF24: Verval +- 70 mm | HZ24: A | IG24: D | IP24: 135 | IQ24: 80 | IR24: 900 | IT24: 1595 | IU24: A | IV24: 35 | IW24: 115 | IZ24: 90° | JE24: Af3/0 | JG24: Ronde pennen. | JH24: Op VO van de bovenregel tussen de stsaanders is een in- en uitlopend A25. | JL24: 500 | JM24: A | JN24: Ronde armeinden steken 80 mm uit. | JU24: 400 | JV24: rong | JW24: CIA | KV24: X | LF24: B | LG24: A | LH24: B | LI24: Verfsysteem na 1960. Voor- en achterbord niet aanwezig.
A25: 22 | C25: V 1982-0015 | D25: Linker lamoenboom | E25: Tussen | F25: 1880 | G25: 1910 | H25: Karrenmuseum Essen vzw | N25: Laatste gebruiker | O25: Van Gastel Herman | P25: 2180 | Q25: Ekeren | R25: Antwerpen | S25: België | T25: C | U25: Cg | V25: Bg | W25: Tweewielbeerkar | X25: Kar, twee wielen, twee lamoenbomen met dwarsregels en betimmering. Kipbaar beerkast met bovenaan een scharnierbaar deksel. | Y25: wiel | Z25: hout | AA25: lamoenboomen | AB25: hout | AC25: kar | AD25: hout | AE25: karsteun | AF25: hout | AG25: verbindingselementen | AH25: metaal | AK25: 2 | BQ25: 2 | BR25: A. | BS25: 1383 | BT25: 14/7 | BU25: A | BV25: 360 | BW25: 305 | BX25: 75 | BZ25: 50 | CB25: =ASIN(CE25/CD25) * 180 / 3.14 -> 6.895598354 | CD25: 500 | CE25: 60 | CG25: 75 | CH25: 75 | CI25: Rkant, kwarthol, kwartrond zeer klein, kwartrond | CJ25: Rkant, kwartrond. | CK25: D. | CM25: A. | CO25: A. | CP25: 45 | CQ25: 95 | CR25: A | CS25: 1M | CT25: 2S | CU25: 2K | CW25: 25 | CX25: 1563 | CY25: AA0/1 | CZ25: Industrieel vervaardigd | DA25: A | DB25: A | DC25: 1BM4 | DD25: 2BB4 | DE25: 2BK4 | DH25: AC40 | DI25: Versmallend aan de bovenzijde door 1/8 hol. | DJ25: Op VB en AB een A15. | DT25: A | DV25: BC | DW25: 280 x 100 mm | DX25: laadboom | DY25: 45 | EA25: BB4 | EB25: 4 verstevignsdriehoeken, S-vormige geproflieerd | GI25: Ja. | GJ25: A | GK25: A | GL25: Verrstevigd op de binnenzijde met een metalen V-beugel | GN25: 870 | GO25: 520 | GQ25: lamoenframe | GR25: A3/0/0. | GS25: Ronde penen steken van de eerste en laatste dwarsregels steken 100mm uit. | GT25: De dwarsregels hebben op de onderzijde een doorlopend A15 mm. Scharniereinden kop B. | GX25: B | GZ25: E | HB25: lamoenboom | HC25: C | HD25: Vanaf de voorschoot inlopen halfrond profiel dat overgaat in de lamoenboomeinden | HE25: Ter hoogte van de voorschoot is aan beide zijen een zware metalen gesmede haak bevestigd. Aan de linkerzijde is terhoogte van de voorschoot een metalen gesmede opstapbeugel. | HG25: 770 | HH25: 1850 | HI25: AD1 | HL25: BD | HZ25: Ba6/2 | IA25: Vierkante pennen steken 20 mm uit. Pen A10. | IB25: De dwarsregels hebben aan de onderzijde een doorlopend A10 mm. | IC25: De laadboom is reeds 103° schuin opgesteld t.o.v het laadvlak. | IK25: B | IL25: Naar de kopse einden en voorbij het voorbord en achterbord is een inlopend afschuiningsprofiel met schuine zijde van 10 mm dat doorloopt op de kopse zijde naar de onderzijde. Aan de voorzijde is aan de bovenzijde een licht sponing voor het laadhout en aan de onderzijde een sponing voor de laaste dwarsregel van het lamoenframe waarop de laadboom rust. Tussen de staanders is een in- en uitlopend afrondingsprofiel. | IP25: 0 | IQ25: 20 | IR25: 870 | IT25: 2330 | IU25: A | IV25: 145 | IW25: 230 | IX25: De achtersteek dient als uitvloeiplank Op het kopse eind en de zijkant is een verdikkingshout getimmerd waardoor de mest geleid wordt | IZ25: 103° | JB25: 90° | JD25: 90° | JE25: Ba5/0/0 | JG25: Ronde pennen | JH25: De staanders hebben op de VL en VR en op de VO van de bovenregel tussen de staanders een in- en uitlopend A20 mm. | JL25: 390 | JM25: A. | JN25: Rechthoekig profiel, rechte regel. De armeinden steken 60 voorbij de bovenregel van het voor- en achterbord. | JO25: Op de kopse einden is een U-vormige sponing die de bovenregel met een halfhout verbinding verbind. | JU25: 460 | JV25: staander | JW25: FHA | JY25: Ea2/0. | KB25: Tussenstaanders straalsgewijs in waaiervorm. Staander en bovenregel niet meer aanwezig. | KJ25: EA2/2 | KL25: Op VL en VR van de staanders en op VO van de bovenregel tussen de staanders is een in- en uitlopend A15. Op VB van de bovenregel is een ingewerk halfrond profiel met breedt van 10 mm. | KM25: Tussen de staander op de laadvloer is een breed tussen regel met een halfrond uitvloeigat. | KR25: C | KS25: D2/1 | KT25: Deksel 650 x 450 mm. Scharnier A. Handgreep C | LF25: A | LG25: B | LH25: A | LI25: Verzwakt.
A26: 23 | C26: V 1982-0024 | D26: Linker lamoenboom | E26: Tussen | F26: 1880 | G26: 1920 | H26: Karrenmuseum Essen vzw | M26: Afkomst | P26: 3140 | Q26: Keerbergen | R26: Vlaams-Brabant | S26: België | T26: C | AK26: 2 | BQ26: 2 | BR26: A | BS26: 1500 | BT26: 14/7 | BU26: A | BV26: 465 | BW26: 340 | BX26: 85 | BZ26: 60 | CB26: 2.867437651 | CD26: 500 | CE26: 25 | CG26: 85 | CH26: 105 | CI26: Rkant, vlak, kwartrond,rkant, kwartrond. | CJ26: Rkant, kwartrond. | CK26: C. | CM26: B | CN26: De kopse einden van de velgen zijn in de dikte opgesloten met bout en moer. | CO26: B | CP26: 50 | CQ26: 98 | CR26: A | CS26: 1M | CT26: 2S | CU26: 2K | CW26: 35 | CX26: 1515 | CY26: AA0/1 | CZ26: Industrieel vervaardigd | DA26: A | DB26: A | DC26: 2BM4 | DD26: 2BB4 | DE26: 2BK4 | DG26: Alle beugels zijn in de dikte ingekapt. | DH26: AA | DI26: Versmallend aan de onderzijde door 1/8 hol.
A27: 24 | C27: V 1969-1952 | D27: Linker lamoenboom | E27: Tussen | F27: 1880 | G27: 1920 | H27: Karrenmuseum Essen vzw | N27: Laatste gebruiker | O27: Frans Geysen | P27: 2990 | Q27: Gooreind | R27: Antwerpen | S27: België | T27: C | U27: Cg | V27: Bg | W27: Tweewielbeerkar | X27: Kar, twee wielen, twee lamoenbomen met dwarsregels en betimmering. Kipbaar beerkast met bovenaan een scharnierbaar deksel. | Y27: wiel | Z27: hout | AA27: lamoenboomen | AB27: hout | AC27: kar | AD27: hout | AE27: karsteun | AF27: hout | AG27: verbindingselementen | AH27: metaal | AK27: 2 | BQ27: 2 | BR27: A. | BS27: 1410 | BT27: 14/7 | BU27: A | BV27: 420 | BW27: 330 | BX27: 80 | BZ27: 65 | CB27: 1.91118206 | CD27: 450 | CE27: 15 | CG27: 85 | CH27: 100 | CI27: Rkant, kwartbol, rkant, kwartbol, rkant. | CJ27: Rkant, kwartrond. | CK27: A. | CM27: A. | CO27: B. | CP27: 65 | CQ27: 120 | CR27: A | CS27: 1M | CT27: 2S | CU27: 2K | CW27: 40 | CX27: 1490 | CY27: AA0/1 | CZ27: Industrieel vervaardigd | DA27: A | DB27: A | DC27: 1BM4 | DD27: 2BB6 | DE27: 2BK4 | DG27: Alle beugels zijn in de dikte ingekapt | DH27: AC30 | DT27: A | DX27: laadboom | DY27: 30 | EA27: BB4 | EB27: 4 verstevigingsdriehoeken | GI27: Ja | GJ27: A | GK27: B | GN27: 860 | GO27: 540 | GQ27: lamoenframe | GR27: B3/0 | GS27: Ronde pennen gebout, steken 60 mm uit. Derde dwarsregel vastgezet met kruishoutverbinding met metalen beugel. | GT27: Scharniereinden kop B. | GX27: A | GZ27: E | HB27: lamoenboom | HC27: B | HG27: niet te bepalen | HH27: 1780 | HZ27: Ba6/2 | IA27: Ronde pennen. | IB27: De dwarsregels hebben aan de onderzijde een doorlopend A8. | IK27: B | IL27: Tussens de staanderrs een in- en uitlopend afrondingsprofie over de volledige breedte. Op de kopse einden een inlopend afschuiningsprofiel met schuine zijde van 20 mm. Versmallend door schuinoplopend met inlopend afschuiningsprofiel met schuine zijde van 20 mm op VO. Op VO ingewerkt halfrond profiel met breedte van 10 mm . | IM27: Op het voorste kopse eind is van een metalen band omkrompen. Achterste kopse eidnen zijn belegd met bladstaal van de OZ naar BZ. | IP27: 30 | IQ27: 180 mm | IR27: 1030 | IT27: 2300 | IU27: A | IW27: 280 | IX27: De achtersteek dient als uitvloeiplank. | IZ27: 100° | JB27: 90° | JD27: 90° | JE27: Ba5/0/2 | JG27: Ronde pennen. | JH27: Op de VO van de bovenregel en op de VL en VR een in- en uitlopend A20. | JL27: 405 | JM27: A | JN27: Vierkante armeinden steken 140 mm uit. Op VO tussen de staanders en de kopse einden een inlopend afschuiningsprofiel. | JU27: 470 | JV27: staander | JW27: FHA | JY27: Ea2/2 | KA27: Op de VO van de bovenregel en VLe n VR van de staanders is een in- en uitlopend A14. | KJ27: EA2/2 | KL27: Op de kopse einden van de betimmeringsplanken zijn een reptitieve gutsvorimige insnjidingen. Op VO van de bovenregel en de VL en VR van de staanders is een in- en uitlopend A14. | KM27: Tussen de twee staanders op de betimmering een houten verdikkingsblok met een metalen afsluitboaar afvoergat. | KR27: B | KS27: D1/0 | KT27: Deksel 640 x 580 mm. Scharnier C. Handgreep C. De verbindingstang van het achterbord loopt door in het scharnierblad en sluit het deksel op met een metalen spie. | LF27: A | LG27: B | LH27: A | LI27: Verzwakt
A28: 25 | C28: V 1972-2361 | D28: Linker lamoenboom | E28: Tussen | F28: 1880 | G28: 1920 | H28: Karrenmuseum Essen vzw | M28: Afkomst | O28: Marien 'Zwarte hond' | P28: 2920 | Q28: Kalmthout | R28: Antwerpen | S28: België | T28: C | U28: Cg | V28: Bg | W28: Tweewielbeerkar | X28: Kar, twee wielen, twee lamoenbomen met dwarsregels en betimmering. Kipbaar beerkast met bovenaan een scharnierbaar deksel. | Y28: wiel | Z28: hout | AA28: lamoenboomen | AB28: hout | AC28: kar | AD28: hout | AE28: karsteun | AF28: hout | AG28: verbindingselementen | AH28: metaal | AK28: 2 | BQ28: 2 | BR28: A. | BS28: 1350 | BT28: 14/7 | BU28: A | BV28: 275 | BW28: 340 | BX28: 64 | BZ28: 60 | CB28: 5.940784176 | CD28: 580 | CE28: 60 | CG28: 72 | CH28: 80 | CI28: Rkant, kwarthol, kwartrond zeer klein, rkant, kwartrond, rkant, vlak. | CJ28: Rkant, kwartrond, vlak, rkant. | CK28: B. | CM28: A. | CO28: A | CP28: 53 | CQ28: 85 | CR28: A | CS28: 1M | CT28: 2S | CU28: 2K | CW28: 35 | CX28: 1480 | CY28: AA0/1 | CZ28: Industrieel vervaardigd | DA28: A | DB28: A | DC28: 1BM4 | DD28: 2BB6 | DE28: 2BK4 | DH28: AC25 | DI28: Versmallend aan de onderzijde door 1/8 holl. | DT28: A | DV28: EC | DW28: 210 x 100 mm | DX28: laadboom | DY28: 25 | EA28: BB4. | EB28: 4 verstevignsdriehoeken, S-vormige geproflieerd | GI28: Ja | GJ28: A | GK28: B | GN28: 820 | GO28: 365 | GQ28: lamoenframe | GR28: B3/0 | GS28: Ronde pennen gebout, steken 100 mm uit. Derde dwarsregel vastgezet met kruishoutverbinding met metalen beugel. | GT28: Scharniereinden kop B. | GX28: B | GZ28: E | HA28: H | HB28: lamoenboom | HC28: B | HG28: 700 | HH28: 1880 | HI28: AD1 | HL28: DD | HP28: AV | HQ28: 940 | HZ28: Ba6/2 | IA28: Ronde pennen steken 18 mm uit. Pen A18 | IB28: De dwarsregels hebben aan de onderzijde een doorlopend A15 mm. De betimmering van de planken loop door tot over de eerste en laatste dwarsregel gelijkl met de laadboom en verbonden met een verbindingslat. | IC28: Op de onderzijde achteraan tussen de voorlaaste en laaste dwasregel is een verdikkingsblok met uitvloeigat bekleed met bladmetaal. | IK28: B | IL28: Tussens de staanderrs een in- en uitlopend afrondingsprofie over de volledige breedte. Versmallend door schuinoplopend met inlopend afschuiningsprofiel met schuine zijde van 20 mm op VO dat doorloop tot de bovenzijde van de kopse einden. | IP28: 0 | IQ28: 0 | IR28: 950 | IT28: 2080 | IU28: A | IV28: 120 | IW28: 230 | IX28: De achtersteek dient als uitvloeiplank. | IZ28: 98° | JB28: 90° | JD28: 90° | JE28: Ba4/0/1 | JG28: Ronde pennen. | JH28: Op VO van de bovenregel en VL en VR van de staanders is een in- en uitlopend A14. | JL28: 455 | JM28: A | JN28: Vierkante armeinden steken 130 mm uit. | JO28: Op VO tussen de staanders en de kopse einden een inlopend afschuiningsprofiel. | JU28: 420 | JV28: staander | JW28: FHA | JY28: Ea2/1 | KA28: Op de VO van de bovenregel en de VLe n VR van de staanders is een in- en uitlopend A14. | KB28: Tussenstaanders straalsgewijs in waaiervorm. | KJ28: EA2/2 | KL28: Op de VO van de bovenregel en de VL en VR van de staanders is een in- en uitlopend A14. | KM28: Tussen de twee staanders op de betimmering een houten verdikkingsblok met gat dat afgesloten wordt met een prop. | KR28: A en D | KS28: D1/0 | KT28: Deksel 600 x 490 mm. Handgreep C. Scharnier A. De verbindingstang van het achterbord loopt door in het scharnierblad en sluit het deksel op met een metalen spie. | LF28: A | LG28: A | LH28: A
A29: 26 | C29: V 2007-0150 | D29: Linker lamoenboom | E29: Tussen | F29: 1880 | G29: 1930 | H29: Karrenmuseum Essen vzw | S29: België | T29: C | U29: Cg | V29: Bg | W29: Tweewielbeerkar | X29: Kar, twee wielen, twee lamoenbomen met dwarsregels en betimmering. Kipbaar beerkast met bovenaan een scharnierbaar deksel. | Y29: wiel | Z29: hout | AA29: lamoenboomen | AB29: hout | AC29: kar | AD29: hout | AE29: karsteun | AF29: hout | AG29: verbindingselementen | AH29: metaal | AK29: 2 | BQ29: 2 | BR29: A | BS29: 1320 | BT29: 12/6 | BU29: A. | BV29: 385 | BW29: 261 | BX29: 70 | BZ29: 46 | CB29: 7.589027301 | CD29: 500 | CE29: 66 | CG29: 70 | CH29: 100 | CI29: Rkant, half ingewerkt halfrond profiel, kwarthol, rkant, kwartrond, rkant, vlak. | CJ29: Rkant, kwartrond, vlak. | CK29: B. | CM29: A | CO29: A | CP29: 52 | CQ29: 90 | CR29: A | CS29: 1M | CT29: 2S | CU29: 2K | CV29: Spaakband niet aanwezig | CW29: 35 | CX29: 1585 | CY29: AA0/1 | DA29: A | DB29: A | DC29: 1BM4 | DD29: 2BB4 | DH29: AC25 | DI29: Versmallend door 1/8 hol profiel. | DJ29: Op VO en VB is een in- en uitlopend A15. Op VB word dit in het midden hernomen. | DT29: A | DV29: AC | DW29: 160 x 100 mm | DX29: draagboom | DY29: 25 | EA29: BB4 op de buitenzijde | GI29: Nee | GJ29: A | GK29: A | GN29: 900 | GO29: 420 | GQ29: lamoenframe | GR29: A3/0/0. | GS29: Ronde pennen gebout, steken 85 mm uit. | GT29: Scharniereinden kop B. | GX29: B | GZ29: AA | HB29: lamoenboom | HC29: B | HD29: Voorbij de voorschoot een inlopend afschuiningsprofiel op élle zijden dat overgaat op een kwartrond profiel naar de kopse einden toe. Achter het voorschot tot de scharniereinden een inlopedn afschuiningsprofiel met schuine zijde van 22 mm dat doorloopt tot op het kopse eind. Ter hoogt van de voorschoot op de VB en VO een ingewerkt halfrond profiel met breedte van 10 mm | HG29: 765 | HH29: 1860 | HP29: AA | HQ29: 830 | HZ29: Ba6/2 | IA29: Ronde pennen steken 10 mm uit. | IB29: Op de onderzijde achteraan tussen de voorlaaste en laaste dwasregel is een verdikkingsblok met uitvloeigat bekleed met bladmetaal. Afsluitsysteem type B. | IK29: B | IL29: Tussens de staanderrs een in- en uitlopend afrondingsprofie over de volledige breedte. Versmallend door schuinoplopend met inlopend afschuiningsprofiel met schuine zijde van 20 mm op VO dat doorloop tot de bovenzijde van de kopse einden. Op VO tussen de schuinoplopende zijden is een ingewerkt halfrond profiel | IP29: 150 | IQ29: 130 | IR29: 95 | IT29: 190 | IU29: A | IZ29: 94° | JB29: 90° | JD29: 90° | JE29: Ba5/0/3 | JG29: Ronde pennen. | JH29: Op VO van de bovenregel tussen de staanders is een in- en uitlopend A14. Op VL en VR van de staanders is onderaan een inlopend afschuiningsprofiel dat vervolgens kort uitloopt. Vervolgens is een kort rond in- en uitlopend afschuiningsprofiel. | JL29: 365 | JM29: A | JN29: Vierkante armeinden steken 130 mm uit. Op VO tussen de staanders en de kopse einden een inlopend afschuiningsprofiel. | JU29: 425 | JY29: Ea2/2 | KA29: Op de kopse einden van de betimmering is een repetitieve gutsvormig ingesnijdingen. | KJ29: EA2/2 | KL29: . Op de VO van de bovenregel en de VL en VR van de staanders is een in- en uitlopend A14. Op de kopse einden repititieve gutsvormige insnijdingen. | KS29: Op 560 mm van de achterregel is een fftussen jbovenregel halfhoutt ingewekt in de bovenregel van de zijborden. De bovernregel van het zijbord zijn betimmerd met planken in de breedte OP de kopse einden is een repititef gutsvorimige ingesneden. Achteraa is een deksel scharnierbaa Het deksel ois 70 x 52. Heeft metalen hengels die doorlope van vooraan waar deze uitsteken een een gat hebben voor het onvanen van de sluitpin met gat vastgemaakt op de bovenregel. In het midden is een handgreep getimmerd. Achteraan zijn twe metalen sluithaojes opm het deksel op te sluiten | LF29: B | LG29: A | LH29: A | LI29: Verfsysteem na 1960.
A30: 27 | C30: V 2007-0151 | D30: Linker lamoenboom | E30: Tussen | F30: 1880 | G30: 1929 | H30: Karrenmuseum Essen vzw | N30: Laatste gebruiker | O30: Thijs | P30: 2570 | Q30: Duffel | R30: Antwerpen | S30: België | T30: C | U30: Cg | V30: Bg | W30: Tweewielbeerkar | X30: Kar, twee wielen, twee lamoenbomen met dwarsregels en betimmering. Kipbaar beerkast met bovenaan een scharnierbaar deksel. | Y30: wiel | Z30: hout | AA30: lamoenboomen | AB30: hout | AC30: kar | AD30: hout | AE30: karsteun | AF30: hout | AG30: verbindingselementen | AH30: metaal | AK30: 2 | BQ30: 2 | BR30: A. | BS30: 1380 | BT30: 14/7 | BU30: A | BV30: 420 | BW30: 305 | BX30: 65 | BZ30: 54 | CB30: 3.44155749 | CD30: 500 | CE30: 30 | CG30: 61 | CH30: 100 | CI30: Rkant, kwarthol, rkant, kwarthol, kwartrond. | CJ30: Rkant, kwartrond. | CK30: B. | CM30: B. | CO30: A | CP30: 52 | CQ30: 100 | CR30: A | CS30: 1M | CT30: 2S | CU30: 2K | CW30: 30 | CX30: 1495 | CY30: AA0/1 | CZ30: Industrieel vervaardigd | DA30: A | DB30: A | DC30: 1BM4. | DD30: 2BBB4 | DH30: AC25 | DI30: Versmallend aan de onderzijde door 1/8 hol. | DJ30: Op VO een A18. | DT30: A | DV30: F | DX30: laadboom | DY30: 25 | EA30: BB4 | EB30: 4 verstevignsdriehoeken, S-vormige geproflieerd | GI30: Ja | GJ30: A | GK30: A | GN30: 860 | GO30: 455 | GQ30: lamoenframe | GR30: A3/0/0 | GS30: Ronde pennen getapt, steken 105 mm uit. | GT30: Scharniereinden kop B. | GX30: B | HB30: lamoenboom | HC30: B | HD30: Voorbij de voorschoot een inlopend afschuiningsprofiel op alle zijden dat overgaat op een kwartrond profiel naar de kopse einden toe. Achter het voorschot tot de scharniereinden een inlopend afschuiningsprofiel met schuine zijde van 22 mm dat doorloopt tot op het kopse eind. Ter hoogt van de voorschoot op het buitenvlak boven en onder een ingewerkt halfrond profiel met breedte van 10 mm | HG30: 830 | HH30: 1820 | HP30: AV | HQ30: 739 | HZ30: Ba6/2 | IA30: Ronde pennen steken 100 mm uit. | IB30: Op OV en OA van de dwarsregels is een doorlopend A18. Op de uitstekende pennen is een verbredingplank aangebracht van 100 mm breed. | IC30: Op de onderzijde achteraan tussen de voorlaaste en laaste dwasregel is een verdikkingsblok met uitvloeigat bekleed met bladmetaal. | IK30: B | IL30: Versmallend door kwarthol en schuinoplopend met inlopend afschuiningsprofiel met schuine zijde van 20 mm op VO en AO dat doorloop tot de bovenzijde van de kopse einden. | IP30: 220 | IQ30: 115 | IR30: 1160 met inbegrip van de twee verbredingplanken van 100 mm breed op de pennen. | IT30: 1850 | IU30: A | IZ30: 95° | JB30: 90° | JD30: 90° | JE30: Ba5/0/4 | JG30: Ronde pennen | JH30: Op VO van de bovenregel tussen de staanders is een in- en uitlopend A20. Ter hoogte van de staanders gaat dit over op een ingewerkt ogiefprofiel. Op VL en VR van de staanders is onderaan een in- en uitlopend afschuinsprofiel. Vervolgens is een kort rond in- en uitlopend afschuiningsprofiel. | JL30: 355 | JM30: A | JN30: Rechthoekige armeinden steken 150 mm uit. | JO30: Op VO tussen de staanders en de kopse einden een inlopend afschuiningsprofiel. Ter hoogte van de staanders gaat dit over in een ingewerkt halfrond profiel met breedte van 10 mm. | JU30: 460 | JV30: staander | JW30: FSA | JY30: Ea2/3 | KA30: Op de VO van de bovenregel tussen de staanders is een in- en uitlopend A20. Ter hoogte van de staanders is een ingewerkt ogiefprofiel. Op de staanders is op de VL en VR onderaan een in- en uitlopend A14. Vervolgens is een kort rond in- en uitgesneden afschuiningsprofiel. | KJ30: EA2/2 | KL30: Op VO van de bovenregel tussen de staanders is een in- en uitlopend A20 mm. Ter hoogte van de staanders gaat dit over op een ingewerkt ogiefprofiel. Op de staanders is op VL en VR onderaan een in- en uitlopend A14, vervolgens is een kort rond in- en uitgesneden A14. | KR30: D | KS30: D1/0 | KT30: Deksel 920 x 400 mm. Scharnier A. De verbindingstang van het achterbord loopt door in het scharnierblad en sluit het deksel op met een metalen spie. | LF30: A | LG30: A | LH30: A
A31: 28 | C31: V 1988-0043 | D31: Linker lamoenboom | E31: Tussen | F31: 1880 | G31: 1930 | H31: Karrenmuseum Essen vzw | N31: Laatste gebruiker | O31: De Winter | P31: 1930 | Q31: Nossegem | R31: Vlaams-Brabant | S31: België | T31: C | U31: Cg | V31: Ad | W31: Vlaamse aardkar | X31: Aardkar, twee wielen, lamoenframe scharnierbaar bevestigd met karbak, sponnenzijbord en afneembaar voor- en achterbord | Y31: wiel | Z31: hout | AA31: lamoenboomen | AB31: hout | AC31: kar | AD31: hout | AE31: karsteun | AF31: hout | AG31: verbindingselementen | AH31: metaal | AK31: 2 | BQ31: 2 | BR31: A | BS31: 1370 | BT31: 12/6 | BU31: A. | BV31: 470 | BW31: 273 | BX31: 67 | BZ31: 54 | CB31: 2.389226699 | CD31: 480 | CE31: 20 | CG31: 88 | CH31: 73 | CI31: Rkant, kwartrond, rkant, kwarthol, vlak, rkant, vlak. | CJ31: Rkant, kwarthol, 1/8 rond, vlak. | CK31: D. | CM31: B | CO31: A | CP31: 38 | CQ31: 81 | CR31: A | CS31: 1M | CT31: 2S | CU31: 2K | CW31: 35 | CX31: 1495 | CY31: AA0/1 | CZ31: Industrieel vervaardigd | DA31: A | DB31: A | DC31: 1BM4 | DD31: 2BB4 | DH31: AE40 | DI31: Versmallend aan de onderzijde door 1/8 hol. | DJ31: Op AO is een A18. Op AB een in- en uitopende A18. | DT31: A | DV31: AC | DW31: 320 x 120 mm | DX31: draagboom | DY31: 20 | EA31: BB4 | GI31: Nee | GJ31: A | GK31: A | GN31: 950 | GO31: 360 | GQ31: lamoenframe | GR31: B3/0 | GS31: Ronde pennen gebout, steken 70 mm uit. Pen B. Derde dwarsregel vastgezet met bout en moer. | GT31: Scharniereinden kop B. | GX31: B | GZ31: CC | HB31: lamoenboom | HC31: B | HD31: Voorbij de voorschoot een inlopend afschuiningsprofiel op alle zijden dat overgaat op een kwartrond profiel naar de kopse einden toe. Op het kopse scharnieriend is een inlopend afschuiningsprofiel met schuine zijde van 20 mm dat doorloopt tot op de onderzijde. De metalen rongbeugels van de eerste en tweede staander van het zijbord zijn juitgewerkt in de lamoenboom. | HE31: Het achterst kopse eind van de laadboom is belegd met een metalen profiel dat doorloopt van de ondezijde tot de bovenzijde. | HG31: 910 | HH31: 200 | HP31: AA | HQ31: 910 | HZ31: Ba6/0 | IA31: Ronde pennen steken 25 mm uit. | IB31: Pen B. Op OV en OA van de dwarsregels is een doorlopend A25 mm. | IG31: A | IJ31: Op de llinker en rechter lamoenboom is terhoogte van de voorschoot een metalen gesmeede krulhaak met bevestigingslichaam. Op de onderkant van de achterste dwarsregel van het laadvlak is een metalen oog bevestigd met kram. | IK31: B | IL31: Versmallend door schuinoplopend met inlopend afschuiningsprofiel met schuine zijde van 25 mm op VO en AO dat doorloop tot de bovenzijde van de kopse einden. | IP31: 185 | IQ31: 0 | IR31: 1040 | IT31: 2160 | IU31: A | IZ31: 92° | JB31: 90° | JD31: 90° | JE31: Ab4/0 | JG31: Vierkante pennen steken 20 mm uit. Pen A. | JH31: De verbindingsregel is rechtoekig met op VL en VR een ingewerkt halfrond profiel. Op halve hoogte is tussen de staanders een opgetimmerd regel. Op VB en VO is een ingewerkt halfrond profiel. | JL31: 435 | JM31: A | JN31: Ronde armeinden steken 125 mm uit. Opn de VB en AB is een afrondingsproifel en tussen de staanders op VO is een in- en uitlopend afschuiningsprofiel. | JO31: 4 rongenbeugel type E. | JU31: 630 | JV31: rong | JW31: BEB | KF31: A | KG31: B | KP31: A | KQ31: B | KS31: Geen | LF31: B | LG31: A | LH31: A | LI31: Verfsysteem na 1960.
A32: 29 | C32: V 1987-0117 | D32: Linker voorarm | E32: Tussen | F32: 1880 | G32: 1930 | H32: Karrenmuseum Essen vzw | M32: Afkomst | O32: Migneau | P32: 8680 | Q32: Koekelare | R32: West-Vlaanderen | S32: België | T32: E | U32: Ej | V32: Bf | W32: Langboomwagen met draaimolen | X32: Wagen, achteronderstel met twee achterwielen, vooronderstel met twee kleine voorwielen draaibaar verbonden met voorarmen, woelhout en draaispil. Langboom rustend op het draaistel van het vooronderstel. Afneembaar laadvlak, metalen rongen en afneembaar voor- en achterbord. Het zijbord is vast en bestaat uit paneel, bovenregel en staander verbonden met pen en gat met de laadboom. | Y32: wiel | Z32: hout | AA32: draagbomen | AB32: hout | AC32: wagen | AD32: hout | AE32: verbindingselementen | AF32: metaal | AK32: 4 | AL32: 2 | AM32: A. | AN32: 870 | AO32: 2 | AP32: A. | AQ32: 355 | AR32: 281 | AS32: 69 | AU32: 55 | AX32: =ASIN(AZ32/AY32) * 180 / 3.14 -> 5.077680867 | AY32: 260 | AZ32: 23 | BA32: 80 | BB32: 84 | BC32: Rkant, kwarthol, rkant, kwartrond, rkant, vlak. | BD32: Rkant, kwartrond, rkant, vlak. | BE32: D | BF32: A | BG32: C | BI32: 30 | BJ32: A | BK32: 1M | BL32: 2S | BM32: 1K | BO32: 30 | BP32: Eén wiel ontbreekt. | BQ32: 2 | BR32: A | BS32: 1430 | BT32: 14/7 | BU32: A | BV32: 350 | BW32: 320 | BX32: 70 | BZ32: 54 | CB32: 3.246537528 | CD32: 530 | CE32: 30 | CG32: 85 | CH32: 80 | CI32: Rkant, kwarthol, rkant, kwartrond, rkant, vlak. | CJ32: Rkant, kwartrond, rkant, vlak. | CK32: D. | CM32: A | CO32: C | CP32: 0 | CQ32: 32 | CR32: A | CS32: 1M | CT32: 2S | CU32: 2K | CW32: 35 | CX32: 1395 | CY32: AA0/1 | DA32: A | DB32: B | DC32: 4BM4 | DH32: BD | DI32: Versmallend door kwarthol, vlak, kwarthol. | DJ32: Daar waar de asblok versmald is op VB en AB een inlopend A20. Op het AB en VB is een ingewerkt halfrond profiel met breedte van 10 mm. | DL32: B | DM32: Versmallend door kwarthol, vlak, kwartrond en recht kopse eind. | DN32: Daar waar de asblok versmald is op VO en AO een inlopend A20. Op het AO en VO is een ingewerkt halfrond profiel met breedt van 10 mm. | DT32: C | DV32: C | DY32: Langboom opsluiting type A. | EH32: AA0/1 | EL32: B1 | EM32: F | ER32: 860 | ES32: C | ET32: 2BM4 | EU32: 2BK4 | EX32: CD | EY32: Versmallend door kwarthol en vlak | EZ32: Vesmalling met een inlopend A20. Op het AB en VB is een ingewerkt halfrond profiel met breedte van 10 mm. | LF32: B | LG32: B | LH32: A | LI32: Verfsysteem na 1960.
A33: 30 | C33: V 1982-0020 | D33: Linker glijboom | E33: Na | F33: 1950 | H33: Karrenmuseum Essen vzw | M33: Afkomst | P33: 2000 | Q33: Antwerpen | R33: Antwerpen | S33: België | T33: A | U33: Aa | V33: Bf | W33: Slede met houten glijbomen en vaste zijborden | X33: Slede met twee houten glijbomen verbonden met dwarsregels, betimmering en vaste zijborden. | Y33: glijboom | Z33: hout | AA33: verbindingselementen | AB33: metaal | AK33: 0 | GN33: 680 | GQ33: glijframe | GR33: B2/9 | GS33: De pennen steken 20 mm uit. | GT33: Pen A10. | HB33: glijboom | HC33: B | IA33: Ronde pennen steken 25 mm uit. | IB33: De 3 staanders van het zijbord zijn onderaan net boven de glijboom verbonden met 3 dwarsregels. De dwarsregels zijn betimmerd met planken lopend volgend de lengte van de slede. De betimmering steekt voor en achteraan 150 mm voorbij de dwarsregel. | IR33: 700 | IT33: 1220 | IU33: A | IW33: 50 | IZ33: 90° | JB33: 90° | JD33: 90° | JE33: Bm3 | JH33: De betimmering steekt voor en achteraan 75 voorbij de eerste en laaste staander. Op de VL en VR is onderaan een inlopend afschuiningsprofiel met schuine zijde van 13 mm. | JL33: 370 | JU33: 400 | JY33: CD2 | KF33: C | KG33: B | KJ33: Achterbord type KrA. | KP33: C | KQ33: B | KV33: X | LF33: C | LG33: A | LH33: A | LI33: Reconstructie.
A34: 31 | C34: V 1984-0008 | D34: Rechter berrieboom | E34: Tussen | F34: 1880 | G34: 1945 | H34: Karrenmuseum Essen vzw | M34: Afkomst | O34: Schroogen | P34: 2910 | Q34: Essen | R34: Antwerpen | S34: België | T34: B | U34: Ba | V34: Ab | W34: Kempische kruiwagen | X34: Kruiwagen, één wiel, twee S-vormige berriebomen, kruiwagenvoet met houten staanders, afneembare zijborden en vast voorbord. | Y34: wiel | Z34: hout | AA34: kruiwagenvoet | AB34: hout | AC34: kruiwagen | AD34: hout | AE34: verbindingselementen | AF34: metaal | AK34: 1 | AL34: 1 | AM34: A | AN34: 570 | AO34: 8/4 | AP34: A | AQ34: 365 | AR34: 110 | AS34: 34 | AT34: 38 | AU34: 25 | AX34: 0° | BA34: 48 | BB34: 56 | BC34: Schuin oplopend, kwarthol, rkant, kwartrond, rkant, vlak. | BD34: Schuin oplopend, kwarthol, rkant, kwartrond, rkant, vlak. | BE34: K | BF34: B | BI34: 30 | BK34: 2K | EH34: AB0/4 | EJ34: B | EK34: C | FL34: X | GN34: 470 | GQ34: berrieframe | GR34: A4 | GS34: Ronde pennen steken 60 mm uit. | GT34: Op OV en OA is een in- en uitlopend afschuiningsprofiel met schuine zijde van 14 mm. | GX34: A | HB34: berrieboom | HC34: B | HD34: De berriebomen voor het laadvlak naar de handgrepen hebben aan op alle zijden een inlopend afschuiningsprofiel met schuine zijde van 16 mm. Aan de handgrepen is een versieringsmotief en wordt het profiel ovaalvormig. Voorbij het laadvlak is op alle zijden een inlopen afschuiningsprofiel dat uitloopt op de kopse zijde van het laadvlak. | HG34: 540 | HH34: 690 | HN34: CC | HO34: De staander hebben een rechthoekig profiel met op VL en VR een langzaam inlopend afschuiningsprofiel dat vervolgens kort uitloopt. | HU34: 260 | HV34: C | HZ34: A | IG34: H | IQ34: 400 | IR34: 680 | IT34: 710 | IU34: B | IZ34: 90° | JB34: 122° | JE34: An1 | JU34: 295 | JV34: rong | JW34: AGA | JY34: AD2/0 | JZ34: Ronde pennen. | KA34: De bovenregel heeft aan de bovenaan een afschuingsprofiel en onderaan tussen de staandes een in- en uitlopend afschuiningsprofiel met schuine zijde van 18 mm. De opening tussen betimmering en staander is 18 mm. De tussenstaander hebben op de VL en VR een doorlopend afschuiningsprofiel met schuine zijde van 18mm. De linker- en rechterstaander hebben een in en uitlopend afschuiningsprofiel en vervolgens een kort in lopend en lang uitlopend afschuiningsprofiel. | KV34: X | LF34: B | LG34: A | LH34: A | LI34: Verfsysteem na 1960.
A35: 32 | C35: V 1982-0028 | D35: Rechter handgreep | E35: Tussen | F35: 1880 | G35: 1945 | H35: Karrenmuseum Essen vzw | M35: Afkomst | Q35: Engeland | R35: Engeland | S35: België | T35: B | U35: Di | V35: Bc | Y35: wiel | Z35: hout | AA35: kar | AB35: hout | AC35: verbindingselementen | AD35: metaal | AK35: 3 | AL35: 1 | AM35: A | AN35: 500 | AO35: 4/4 | AP35: A | AQ35: 480 | AR35: 88 | AS35: 75 | AU35: 30 | AX35: 0° | BA35: 55 | BB35: 60 | BC35: Schuin oplopend, overgaand naar een vierkant profiel. | BD35: Schuin oplopend, overgaand naar een vierkant profiel. | BE35: J | BF35: B | BI35: 65 | BK35: 2K | BQ35: 2 | BR35: D. | BS35: 215 | CY35: AA0/1. | DT35: E | DY35: De as is doormiddel van bout en vierkante moer vastgezet op de asblok met de bodem. | EH35: AB0/4 | EJ35: In de kopse einden van de regels. | EK35: C | FL35: X | GN35: 515 Tussen de handgrepen | GR35: Er is geen berrieframe. | HB35: berrieboom | HD35: De regels waar het wiel is opgesloten zijn recht en hebben een doorgaand afschuinngsprofiel met schuine zijde vna 14 mm | HG35: 515 | HH35: 300 | HV35: D | JU35: 650 | KV35: X | LF35: C | LG35: B | LH35: A | LI35: Hoofdzakelijk reconstructie.
A36: 33 | C36: V 2013-0005 | E36: Tussen | F36: 1880 | G36: 1945 | H36: Karrenmuseum Essen vzw | M36: Afkomst | P36: 4416 RJ | Q36: Sint-Pieterspolder | R36: Zeeland | S36: Nederland | T36: E | U36: Ea | V36: Da | W36: Rolwagen | X36: Rolwagen, twee masieve achterwielen, twee voorwielen draaibaar bevestigd onder het laadvlak. | Y36: wiel | Z36: hout | AA36: draagbomen | AB36: hout | AC36: wagen | AD36: hout | AE36: verbindingselementen | AF36: metaal | AK36: 4 | AL36: 2 | AM36: D | AN36: 250 | AO36: 6 metalen spalen | AP36: D | BQ36: 2 | BR36: B | BS36: 420 | CY36: AA0/1 | DA36: G | DT36: A | DX36: draagboom | EH36: AA0/1 | EL36: H1 | FJ36: F | FL36: E | FP36: BA | FS36: Trekbeugel EF. | GH36: 1140 | GQ36: draagframe | GR36: C4/0 | GS36: Vierkante pennen gebout. | GT36: Op de OV en OA is een doorgaand A15. | GX36: A | HB36: draagboom | HC36: A | HD36: Aan de onderzijde vanaf voor het midden schuinoplopend naar voor | HE36: 2 rongenbeugels J | HU36: 460 | HZ36: A | IP36: 55 | IQ36: 55 | IR36: 1000 | IT36: 1890 | KV36: X | LF36: A | LG36: A | LH36: A
A37: 34 | C37: V 1971-2276 | D37: Rechter berrieboom | E37: Tussen | F37: 1880 | G37: 1945 | H37: Karrenmuseum Essen vzw | M37: Afkomst | O37: Piet Naesen | P37: 2910 | Q37: Wildert | R37: Antwerpen | S37: België | T37: B | U37: Ba | V37: Ac | W37: Kempische kruiwagen | X37: Kruiwagen, één wiel, twee S-vormige berriebomen, kruiwagenvoet met houten staanders, afneembare zijborden en vast voorbord. | Y37: wiel | Z37: hout | AA37: kruiwagenvoet | AB37: hout | AC37: kruiwagen | AD37: hout | AE37: verbindingselementen | AF37: metaal | AK37: 1 | AL37: 1 | AM37: A | AN37: 560 | AO37: 8/4 | AP37: A | AQ37: 375 | AR37: 121 | AS37: 34 | AT37: 38 | AU37: 26 | AX37: 0° | BA37: 49 | BB37: 55 | BC37: Schuin oplopend, kwarthol, vlak. | BD37: Schuin oplopend, kwarthol, vlak. | BE37: K | BF37: B | BI37: 20 | BK37: 2K | BL37: 2S | BO37: 20 | EH37: AB0/4 | EJ37: B | EK37: C | FL37: X | GN37: 460 | GQ37: berrieframe | GR37: A4 | GS37: Ronde pennen steken 69 mm uit. | GT37: Op OV en OA van de dwarsregel is een in- en uitlopend afschuiningsprofiel met schuine zijde van 18 mm. | GX37: A | HB37: berrieboom | HC37: B | HD37: De berriebomen voor het laadvlak naar de handgrepen hebben aan op alle zijden een inlopend afschuiningsprofiel met schuine zijde van 16 mm. Aan de handgrepen wordt het profiel ovaalvormig. Voorbij het laadvlak is op alle zijden een in en uitlopend afschuiningsprofiel aan de wielopsluiting. De kopse einden hebben een doorlopend afschuiningsprofiel. | HG37: 510 | HH37: 735 | HN37: C | HO37: De staander hebben een rechthoekig profiel met op VL en VR een in- en uitlopend A14. | HU37: 300 | HV37: C | HZ37: A | IG37: H | IQ37: 400 | IR37: 690 | IT37: 680 | IU37: B | IZ37: 90° | JB37: 118° | JE37: An1 | JH37: De rong steekt boven het zijbordpaneel 62 mm uit. Aan de betimmering achteraan boven is een kwarthol profiel uitgewerrkt in de breedte. | JU37: 235 | JV37: rong | JW37: AGA Kop B | JY37: EE2/40/0 | JZ37: Ronde penen. | KA37: De bovenregel heeft op BV en BA een afschuingsprofiel en op de VO tusse nde staanders een in- en uitlopend afschuiningsprofiel. De opening tussen de betimmering en de linker- en rechterstaande bedraagt 15 mm. De tussenstaander heeft op de zichtbare hoeken een in- en uitlopend afschuiningsprofiel met schuine zijde van 15mm. | KC37: B8 | KJ37: CC0 | KV37: X | LF37: B | LG37: A | LH37: A | LI37: Verfsysteem na 1960.
A38: 35 | C38: V 2011-0001 | E38: Tussen | F38: 1880 | G38: 1945 | H38: Karrenmuseum Essen vzw | M38: Afkomst | P38: 1502 | Q38: Lembeek | R38: Vlaams-Brabant | S38: België | T38: B | U38: Ba | V38: Ab | W38: Brabantse kruiwagen | X38: Kruiwagen, één wiel, twee S-vormige berriebomen, houten klos als kruiwagenvoet en vast voorbord. | Y38: wiel | Z38: hout | AA38: kruiwagenvoet | AB38: hout | AC38: kruiwagen | AD38: hout | AE38: verbindingselementen | AF38: metaal | AK38: 1 | AL38: 1 | AM38: A | AN38: 570 | AO38: 8/4 | AP38: A | AQ38: 375 | AR38: 120 | AS38: 35 | AU38: 25 | AX38: 0° | BA38: 50 | BB38: 40 | BC38: Schuin oplopend, kwarthol, rkant, 1/8 rond, rkant, vlak. | BD38: Schuin oplopend, kwarthol, rkant, 1/8 rond, rkant, vlak. | BE38: K | BF38: B | BI38: 25 | BK38: 2K | EH38: AB0/4 | EJ38: B | EK38: A | FL38: X | GN38: 470 | GQ38: berrieframe | GR38: C3 | GS38: De pennen steken 30 mm uit. | GX38: A | HB38: berrieboom | HC38: B | HD38: De berriebomen voor het laadvlak naar de handgrepen hebben aan op alle zijden een afrondingsprofiel. Aan de handgrepen wordt het profiel ovaalvormig. Voorbij het laadvlak is op alle zijden een in en uitlopend afschuiningsprofiel met schuine zijde van 16 mm dat loopt tot de asopsluiting | HG38: 550 | HH38: 760 | HN38: AA | HU38: 290 | HV38: C | HZ38: A | IG38: E | IQ38: 400 | IR38: 545 | IT38: 630 | IU38: C | IZ38: 90° | JB38: 110° | JY38: EF2/0 | KA38: Op de tussenstaander is een doorlopende afschuiningsprofiel met schuine zijde van 8 mm. Op de bovenste kopse zijde is eveneens een afschuininsprofiel. Op de bovenregel VO is tussen de staanders een in- en uitlopend afschuiningsprofiel. De opening tussen de betimmering en de linker- en rechterstaande bedraagt 15 mm. | KB38: Op de bovenregel vooraan in het midden is een krulhaak. | KC38: B8 | KV38: X | LF38: B | LG38: A | LH38: B | LI38: Verfsysteem na 1960. Zijborden niet aanwezig.
A39: 36 | C39: V 2007-0184 | D39: Rechter berrieboom | E39: Tussen | F39: 1880 | G39: 1945 | H39: Karrenmuseum Essen vzw | M39: Afkomst | P39: 2910 | Q39: Essen | R39: Antwerpen | S39: België | T39: B | U39: Ba | V39: Ac | W39: Kempische kruiwagen | X39: Kruiwagen, één wiel, twee S-vormige berriebomen, metalen kruiwagenvoet, afneembare zijborden en vast voorbord. | Y39: wiel | Z39: hout | AA39: kruiwagenvoet | AB39: metaal | AC39: kruiwagen | AD39: hout | AE39: verbindingselementen | AF39: metaal | AK39: 1 | AL39: 1 | AM39: A | AN39: 540 | AO39: 8/4 | AP39: A | AQ39: 310 | AR39: 114 | AS39: 35 | AT39: 39 | AU39: 30 | AX39: 0° | BA39: 50 | BB39: 50 | BC39: Schuin oplopend, kwarthol, vlak, kwartrond, rkant, vlak. | BD39: Schuin oplopend, kwarthol, vlak, kwartrond, rkant, vlak. | BE39: K | BF39: B | BI39: 23 | BK39: 2K | BL39: 2S | BO39: 23 | EH39: AB0/4 | EJ39: B | EK39: B | FL39: X | GN39: 440 | GQ39: berrieframe | GR39: A4 | GS39: Vierkante pennen steken 60 mm mm uit. | GT39: Op OV en OA van de dwarsregels is een in- en uitlopend afschuiningsprofiel met schuine zijde van 18 mm. De laaste dwarsregel is opgespied. | GX39: A | HB39: berrieboom | HC39: B | HD39: De berriebomen voor het laadvlak naar de handgrepen hebben aan de bovenzijde een afschuinngsprofiel met schuine zijde va 14 mm , net voor de handgrepen een versieringmotief en vervolgens gaat dit over in een afrondingsrpofiel. Aan de handgrepen wordt het profiel ovaalvormig. Voorbij het laadvlak is op BL en BR een inloopend afschuiningsprofiel dat dooroopt tot op het kopse eind dat kwartrond is in de breedte. | HG39: 560 | HH39: 740 | HN39: D | HU39: 300 | HV39: C | HZ39: A | IG39: H | IQ39: 390 | IR39: 650 | IT39: 680 | IU39: B | IZ39: 90° | JB39: 125° | JE39: An1 | JU39: 267 | JV39: rong | JW39: AGA | JY39: EE2/118/0 | JZ39: Ronde penen. | KA39: De bovenregel heeft op BV en BA een afschuingsprofiel en op de VO tusse nde staanders een in- en uitlopend afschuiningsprofiel. De opening tussen de betimmering en de linker- en rechterstaande bedraagt 18 mm. De tussenstaander heeft op de zichtbare hoeken een in- en uitlopend afrondingsprofiel dat in hetmidden wordt herhaald. | KC39: B8 | KJ39: CD0 | KV39: X | LF39: B | LG39: A | LH39: A | LI39: Verfsysteem na 1960.
A40: 37 | C40: V 2013-0006 | E40: Tussen | F40: 1880 | G40: 1945 | H40: Karrenmuseum Essen vzw | S40: België | T40: B | U40: Ba | V40: Bc | Y40: wiel | Z40: hout | AA40: kruiwagenvoet | AB40: hout | AC40: kruiwagen | AD40: hout | AE40: verbindingselementen | AF40: metaal | AK40: 1 | AL40: 1 | AM40: A | AN40: 500 | AO40: 8/4 | AP40: A | AQ40: 195 | AR40: 140 | AS40: 28 | AT40: 32 | AU40: 27 | AX40: 0° | BA40: 51 | BB40: 52 | BC40: Rkant, schuin oplopend, A18, vlak. | BD40: Rkant, schuin oplopend, A18, vlak. | BE40: I | BF40: C | BI40: 20 | BK40: 2K | EH40: AB0/4 | EJ40: B | EK40: B | FL40: X | GN40: 365 | GQ40: berrieframe | GR40: C3 | GS40: Ronde pennen steken 65 mm uit. | GU40: Onder de uitstekende pen van de eerste dwarsregel is een halfronde klos waarvan de funcite onbekend is. | GX40: A | HB40: berrieboom | HC40: C | HG40: 480 | HH40: 665 | HN40: BA | HU40: 365 | HV40: A | HZ40: A | IQ40: 365 | IR40: 470 | IT40: 50 | IU40: B | IZ40: 103° | JB40: 120° | JD40: 120° | JE40: Bg0 | JH40: Staanderd:Rechthokeig profiel doorlopend van de voet. In- ne uitopend afschuinngsprofiel met schuine zijde van 20 mm. Boven de berrieboom vermallend in de dikte. | JU40: 340 | JY40: Niet autheniek | KC40: B8 | KJ40: CD0 | KM40: Vastgezet op de zijborden en voorzien van houten klossteunen met de berrieboom. | KV40: X | LF40: C | LG40: A | LH40: A | LI40: Reconstructie.
A41: 38 | C41: V 2007-0026 | E41: Tussen | F41: 1880 | G41: 1945 | H41: Karrenmuseum Essen vzw | M41: Afkomst | O41: A. Vermeulen | P41: 1500 | Q41: Halle | R41: Vlaams-Brabant | S41: België | T41: B | U41: Ba | V41: Db | W41: Lattenkruiwagen | X41: Kruiwagen, één wiel, twee hol gebogen berriebomen met dwarsregels, kruiwagenvoet met houten staanders en vast voorbord | Y41: wiel | Z41: hout | AA41: kruiwagenvoet | AB41: hout | AC41: kruiwagen | AD41: hout | AE41: verbindingselementen | AF41: metaal | AK41: 1 | AL41: 1 | AM41: A | AN41: 565 | AO41: 8/4 | AP41: A | AQ41: 395 | AR41: 100 | AS41: 28 | AU41: 20 | AX41: 0° | BA41: 40 | BB41: 51 | BC41: Schuin oplopend, kwarthol, vlak. | BD41: Schuin oplopend, kwarthol, vlak. | BE41: K | BF41: B | BI41: 20 | BK41: 2K | EH41: AB0/5 | EJ41: B | EK41: A | FL41: E | GN41: 510 | GQ41: berrieframe | GR41: D6 | GS41: De ronde pennen opgespiëd steken 30 mm. | HB41: berrieboom | HC41: A | HD41: Voor laadvlak naar handgreep een inlopend afschuiningsprofiel dat uitloop voor de handgreep. | HG41: 605 | HH41: 715 | HN41: CD | HO41: Doorgaande ronde pennen opgespiëd steken 45 uit. De staander hebben een rechthoekig profiel met op alle zijden een doorlopend A10. | HU41: 310 | HV41: C | IQ41: 455 | IR41: 600 | IT41: 680 | IU41: C | JB41: 125° | JY41: EH5 | JZ41: Ronde pennen onderaan opgespiëd. | KA41: Op de staanders en bovenregel op alle zijden een doorlopend afschuiningsprofiem mlet schuine zijde van 10mm Bovenregel aan de onderkant een 1/8 rond profiel in de breedte (omekeerd maanvormig) . | KB41: Op de voorkant van de bovenregel zijn twee metalen rechthoekige beugels voor aanbrengen van een verhoogbord. | KC41: B8 | KV41: X | LF41: A | LG41: A | LH41: A
A42: 39 | C42: V 2013-0007 | E42: Tussen | F42: 1880 | G42: 1945 | H42: Karrenmuseum Essen vzw | M42: Afkomst | O42: Privé collectie Herman De Ridder. | S42: België | T42: B | U42: Ba | V42: Ab | W42: Kempische kruiwagen | X42: Kruiwagen, één wiel, twee S-vormige berriebomen, metalen kruiwagenvoet en vast voorbord. | Y42: wiel | Z42: hout | AA42: kruiwagenvoet | AB42: metaal | AC42: kruiwagen | AD42: hout | AE42: verbindingselementen | AF42: metaal | AK42: 1 | AL42: 1 | AM42: A | AN42: 510 | AO42: 8/4 | AP42: A | AQ42: 390 | AR42: 105 | AS42: 25 | AU42: 25 | AX42: 0° | BA42: 48 | BB42: 45 | BC42: Schuin oplopend, kwartrond, vlak. | BD42: Schuin oplopend, kwartrond, vlak. | BE42: K | BF42: B | BI42: 25 | BK42: 2K | BL42: 2S | BO42: 25 | EH42: AB0/4 | EJ42: B | EK42: B | FL42: X | GN42: 540 | GQ42: berrieframe | GR42: A4 | GS42: Ronde pennen steken 40 mm uit. | GT42: Op OV en OA van de dwarsregels is een afschuiningsprofiel met schuine zijde van 15 mm. | GX42: A | HB42: berrieboom | HC42: D | HD42: Voorbi het laadvlak naar de aseinden een inlopend afschuiningsprofiem met schuine zijde van 14 mm. Voor het laadvalk naar de handgrepen toe op OR een inlopend afschuiningsprofiel dat uitloopt voor de handgreep en bovenaan een inlopen afrondingsprofiel dat doorloopt. | HG42: 855 | HH42: 780 | HN42: D | HU42: 270 | HV42: C | HZ42: A | IG42: H | IH42: E | IJ42: De kruiwagen is voorzien van een losse beerkist. | IQ42: 405 | IR42: 720 | IT42: 700 | IU42: C | JB42: 130° | JE42: An0 | JU42: 280 | JV42: rong | JW42: AGA | JY42: ED2/0 | JZ42: Ronde pennen. | KA42: De bovenregel heeft op BV en BA een afschuingsprofie met schuine zijde an 15 mm en op de VO van de tussenstaanders een inlopend afschuiningsprofiel dat onderaan doorloop. Op de linkerstaander is op de VL en AL en op de rechterstaander op VR en AR een inlopend afrondingsprofiel. De breedte van de buitenstaander versmalt naar boven toe in de breedte. | KB42: De opening tussen de betimmering en de linker- en rechterstaande bedraagt 15 mm. | KC42: B8 | LF42: B | LG42: A | LH42: B | LI42: Verfsysteem na 1960. Zijborden niet aanwezig.
A43: 40 | C43: V 1969-1947 | D43: Linker draagboom | E43: Tussen | F43: 1850 | G43: 1910 | H43: Karrenmuseum Essen vzw | M43: Afkomst | P43: 2910 | Q43: Essen | R43: Antwerpen | S43: België | T43: D | U43: Df | V43: Ad | W43: Driewielaardkar | X43: Driewielkar, twee achterwielen, één voorwiel draaibaar verbonden met het draagframe. Draagframe scharnierbaar verbonden met karbak, sponnenzijbord, opzetborden en afneembaar voor- en achterbord. | Y43: wiel | Z43: hout | AA43: draagbomen | AB43: hout | AC43: kar | AD43: hout | AE43: verbindingselementen | AF43: metaal | AK43: 3 | AL43: 1 | AM43: A | AN43: 710 | AO43: 10/5 | AP43: A | AQ43: 380 | AR43: 172 | AS43: 62 | AU43: 44 | AX43: 0 | BA43: 75 | BB43: 88 | BC43: 1/8 hol, vlak, kwartrond, rkant, vlak. | BD43: 1/8 hol, vlak, kwartrond, rkant, vlak . | BE43: B | BF43: B | BK43: 2K | BL43: 2S | BO43: 30 | BQ43: 2 | BR43: A | BS43: 1366 | BT43: 12/6 | BU43: A | BV43: 450 | BW43: 291 | BX43: 73 | BZ43: 54 | CB43: 0 | CD43: 500 | CE43: 0 | CG43: 63 | CH43: 85 | CI43: Kwarthol, rkant, kwartrond. | CJ43: Rkant, kwartrond, vlak. | CK43: D | CM43: A | CO43: D | CP43: 48 | CQ43: 93 | CS43: 1M | CT43: 2S | CU43: 2K | CW43: 28 | CX43: 1482 | CY43: AA0/1 | DA43: A | DB43: A | DC43: 1BM4 | DD43: 2BB6 | DE43: 2BK4 | DG43: Beugel BM4 is ingekapt. | DH43: AC18 | DI43: Versmallend aan de bovenzijde door 1/8 hol, vlak en 1/8 hol profiel. | DJ43: Op BV en BA is een in- en uitlopend A10. De opsluitbeugel BK4 zitten in een uitsparing. | DT43: C | DV43: AB | DX43: laadboom | DY43: 70 | EA43: BB4 | EH43: AA0/1 | EJ43: C | EL43: B1 | FJ43: F | FL43: N | FP43: B | FS43: Trekbeugel ED. | GH43: 1800 | GI43: Ja | GJ43: B | GK43: A | GO43: 650 | GQ43: draagframe | GR43: BA3/1/0 | GS43: Vierkante pennen. | GU43: Opening tussen het laadvlak en voorschoot bedraagt 570 mm. | GX43: D | GY43: 650 | GZ43: CDA | HB43: draagboom | HC43: A | HD43: Op de bomen is een klein afrondingsprofiel. | HH43: 60 | HZ43: Ba6/0 | IA43: Ronde pennen. De pennen van de vierde en vijfde dwarsregels steken 95 mm uit. | IB43: De vierde dwarsregel is verbreed en voorzien van een 1/8 hol profiel in de lengte. Op OV en OA van de dwarsregels is een doorlopend A18. | IG43: D | IK43: B | IL43: Versmallend door schuioplopend. Aan de bovenzijde en onderzijde ingewerkt halfrond profiel met een breedte van 11 mm. | IM43: Aan de schuinoplopende zijde een ingewerkt bladmetaal tot aan het kopse eind. | IP43: 140 | IQ43: 80 | IR43: 820 | IT43: 1620 | IU43: A | IZ43: 98° | JB43: 90° | JD43: 90° | JE43: Ab4/0 | JH43: De rongen zijn aan de betimmerde zijde 95° schuin aangesneden. | JL43: 360 | JM43: A | JN43: Ronde armeinden steken 120 mm uit. Op de bovenregel op VO tussen rongen een in- en uitlopend afschuiningsprofiel. | JO43: Ter hoogte van de rongen zijn op de voorkant 4 rongenbeugels type A. | JR43: Ak4 | JS43: 255 | JU43: 520 | JV43: rong | JW43: BJA | JY43: BB3 | KA43: De buitenstaanders zijn 1/8 rond in de lengte. Op VB van de bovenregel is een ingewerkt halfrond profiel met breedte van 10 mm. Op VO tussen de staanders en de kopse einden een in- en uitlopend A20 mm. Op VL en VR van de staanders is een in- en uitlopend afrondingsprofiel met scherpe snede. | KF43: A | KG43: D | KJ43: BB3 | KL43: Op VB van de bovenregel is een ingewerkt halfrond profiel met breedte van 10 mm. Op VO tussen de staanders en de kopse einden een in- en uitlopend A20. De buitenstaanders zijn 1/8 rond in de lengte. Op VL en VR van de staanders is een in- en uitlopend afrondingsprofiel met scherpe snede. | KP43: A | KQ43: D | KV43: X | LF43: A | LG43: A | LH43: A
A44: 41 | C44: V 2000-0042 | D44: Linker lamoenboom | E44: Tussen | F44: 1880 | G44: 1930 | H44: Karrenmuseum Essen vzw | N44: Laatste gebruiker | O44: Wed. Verreth | P44: 2861 | Q44: Onze-Lieve-Vrouw-Waver | R44: Antwerpen | S44: België | T44: C | U44: Cg | V44: Ad | W44: Vlaamse aardkar | X44: Aardkar, twee wielen, lamoenframe scharnierbaar bevestigd met karbak, sponnenzijbord, zijleesten, opzetborden en afneembaar voor- en achterbord | Y44: wiel | Z44: hout | AA44: lamoenboomen | AB44: hout | AC44: kar | AD44: hout | AE44: karsteun | AF44: hout | AG44: verbindingselementen | AH44: metaal | AK44: 2 | BQ44: 2 | BR44: A | BS44: 1327 | BT44: 14/7 | BU44: A. | BV44: 395 | BW44: 277 | BX44: 67 | BZ44: 53 | CB44: =ASIN(CE44/CD44) * 180 / 3.14 -> 2.08499934 | CD44: 440 | CE44: 16 | CG44: 77 | CH44: 88 | CI44: Halfrond profiel, rkant, kwarthol, vlak, kwartrond, rkant, vlak. | CJ44: Kwartrond. | CK44: B. | CM44: B | CO44: A | CP44: 40 | CQ44: 80 | CR44: A | CS44: 1M | CT44: 2S | CU44: 2K | CW44: 30 | CX44: 1530 | CY44: AA0/1 | CZ44: Industrieel vervaardigd | DA44: A | DB44: A | DC44: 1BM4 | DD44: 2BB6 | DH44: AC40 | DI44: Versmallend door 1/8 hol profiel. | DT44: A | DX44: laadboom | DY44: 23 | EA44: BB4 | ER44: 610 | GI44: Ja | GJ44: A | GK44: A | GN44: 889 | GO44: 445 | GQ44: lamoenframe | GR44: A3/0/0 | GS44: Ronde pennen getapt, steken 77 mm uit. | GT44: Op OV en OA is een in- en uitlopend A15 mm. Scharniereinden kop B. | GX44: C | GZ44: A | HA44: C | HB44: lamoenboom | HC44: B | HD44: Voor de voorschoot is een inlopend afschuiningsprofiel op alle zijden dat dat doorloopt tot op de kopse einden. Achter het voorschot tot de scharniereinden een inlopend afschuiningsprofiel met schuine zijde van 15 mm dat doorloopt tot op het kopse eind. | HG44: 849 | HH44: 1870 | HI44: AA2 | HL44: AA | HP44: AA | HQ44: 960 | HZ44: Ba6/0 | IA44: Ronde pennen van de 1,2,5 en6 dwarsregel steken 35 mm uit | IB44: Op OV en OA van de dwarsregels is een in- en uitlopend A18. | IG44: A | IK44: B | IL44: Versmallend door schuioplopend. | IM44: Op de voorkant naast de beugelrong van het zijbord 1 en 6 is een rongebeugel type A voor het verbreedhek. | IP44: 210 | IQ44: 150 | IR44: 885 | IT44: 1830 | IU44: A | IV44: 30 | IW44: 30 | IZ44: 90° | JB44: 90° | JD44: 90° | JE44: Ad5/0 | JG44: Ronde pennen. | JH44: Op rong 1 en 6 is een metalen oog vastgezet met metalen kram. De functie onbekend. | JL44: 340 | JM44: A | JN44: Ronde armeinden steken 100 mm uit. Op VO tussen de rongen is een in- en uitlopend afschuiningsprofiel. | JO44: Ter hoogte van de rongen zijn op de voorkant 3 rongenbeugels type A. Op de voorkant is nabij de 1 en 5 rong een metalen kram voor het inhaken van de verbeedhekkens | JP44: B | JQ44: Breedte 260 mm. | JR44: Ak4 | JS44: 220 | JU44: 580 | JV44: rong | JW44: BOE | JY44: AB3 | KA44: Op VB en VO tussen de staanders doorlopend op de kopse einden een A15. De staanders versmallen in de dikte op 1/2 hoogte door 1/8 hol profiel en hebben op VL en VR een in- en uitlopend A15 mm. | KB44: Op de bovenregel zijn 2 rongenbeugels type. | KF44: A | KG44: B | KJ44: Achterbod AB3. Op VB en VO van de bovenregel is tussen de staanders doorlopend op de kopse einden een A15. De staanders versmallen in de dikte op 1/2 hoogte door 1/8 hol profiel en hebben een in- en uitlopend A15 mm. Op de bovenregel zijn 2 rongenbeugels type I. | KP44: A | KQ44: B | LF44: B | LG44: A | LH44: A | LI44: Verfsysteem na 1960.
A45: 42 | C45: V 1982-0115 | D45: Linker lamoenboom | E45: Tussen | F45: 1880 | G45: 1930 | H45: Karrenmuseum Essen vzw | N45: Laatste gebruiker | O45: J. Van Gastel - Germans | P45: 2180 | Q45: Ekeren | R45: Antwerpen | S45: België | T45: C | U45: Ef | V45: Ai | W45: Vlaamse aardkar met voortrein en draaistel D2 | X45: Aardkar, twee wielen, lamoenframe scharnierbaar bevestigd met karbak, onder de lamoenbomen een draaibaar vooronderstel, op de lamoenbomen een afneembaar laadvlak, sponnenzijbord, zijleesten en afneembaar voor- en achterbord | Y45: wiel | Z45: hout | AA45: lamoenboomen | AB45: hout | AC45: kar | AD45: hout | AE45: verbindingselementen | AF45: metaal | AK45: 4 | AL45: 2 | AM45: A. | AN45: 780 | AO45: 10/5 | AP45: A. | AQ45: 380 | AR45: 255 | AS45: 66 | AU45: 58 | AX45: 0 | AY45: 180 | AZ45: 0 | BA45: 75 | BB45: 95 | BC45: Rkant, kwarthol, vlak, kwartrond, rkant, vlak. | BD45: Rkant, vlak, 1/8 rond. | BE45: A | BF45: A | BG45: B. | BH45: 38 | BI45: 78 | BJ45: A | BK45: 1M | BL45: 2S | BM45: 1K | BO45: 30 | BP45: 1560 | BQ45: 2 | BR45: A. | BS45: 1380 | BT45: 12/6 | BU45: A. | BV45: 405 | BW45: 290 | BX45: 68 | BZ45: 63 | CB45: 2.606572686 | CD45: 440 | CE45: 20 | CG45: 90 | CH45: 97 | CI45: Rkant, kwarthol, vlak, kwartrond. | CJ45: Rkant, 1/8 rond. | CK45: A. | CM45: A | CO45: B | CP45: 60 | CQ45: 100 | CR45: A | CS45: 1M | CT45: 2S | CU45: 2K | CW45: 35 | CX45: 1565 | CY45: AA0/1 | CZ45: Industrieel vervaardigd | DA45: A | DB45: A | DC45: 1BM4 | DD45: 2BBVA4 | DE45: 2BK4 | DH45: AC18 | DI45: Versmallende door rkant, vlak en rkant. | DT45: A | DV45: BC | DX45: lamoenboom | DY45: 15 | EA45: BB4 en BBVA | EH45: AA0/1 | EJ45: A | EL45: D2 | EM45: A | ER45: 740 | ES45: C | ET45: 2BM4 | EU45: 2BK4 | EX45: CF | EY45: Versmallend door schuin neerlopend en kwarthol. | FD45: C | FE45: Voor en achter de asblok op buitenzijden een inlopend A18 dat naar de kopse einden overgaat in een afrondingprofiel.. | FF45: Achter de asblok zijn de voorarmen opgesloten doormiddel van een metalen opsluitpen. | FJ45: G | FK45: Voorarmbeugel A. | FL45: A | FO45: Bevestiging boom type A, B en C. | FT45: B | FV45: Op VB, AB en de kopse einden is een doorlopend A18. | GA45: Wagenrong type WD | GD45: C | GF45: Scharnierbaar verbonden met de asblok van de achterwielen. Vooraa,n opgelosten in de rongblok met de draaipil. | GH45: 2580 | GI45: Ja | GJ45: A | GK45: A | GL45: Op de binnenzijde van de boom zit de as gevat in een metalen beugel | GN45: 925 | GO45: 520 | GQ45: lamoenframe | GR45: A3/0/2 | GS45: Ronde pennen getapt, steken 38 mm uit. | GT45: Scharniereinden kop B | GX45: A | GY45: 1180 | GZ45: EB | HB45: lamoenboom | HC45: B | HD45: Voor de voorschoot is een inlopend afschuiningsprofiel op alle zijden dat dat doorloopt tot op de kopse einden. Achter het voorschot tot de scharniereinden een inlopend afschuiningsprofiel met schuine zijde van 15 mm dat doorloopt tot op het kopse eind. | HG45: 710 | HH45: 1810 | HZ45: Ba5/2 | IA45: Ronde pennen steken 75 uit | IB45: De dwarsregels hebben aan de onderzijde een doorlopend A14. | IC45: Op de lamoenbomen laadvlak type Ca3 | IG45: B | IK45: B | IP45: 170 | IQ45: 140 | IR45: 920 | IT45: 1640 | IU45: B | IZ45: 96° | JB45: 90° | JD45: 90° | JE45: Aa4/0 | JG45: Ronde pennen steken 30 mm uit. | JH45: De rongen zijn aan de betimmerde zijde 95° schuin aangesneden. | JL45: 385 | JM45: A | JN45: Ronde armeinden steken 115 mm uit. Op de bovenregel op VO tussen rongen een in- en uitlopend afschuiningsprofiel met schuine zijde van 18 mm. | JO45: 3 rongenbeugels type E. Op de voorkant is nabij de 1 en 5 rong een metalen kram voor het inhaken van de verbeedhekkens | JP45: C | JU45: 560 | JV45: rong | JW45: AIA | KF45: A | KG45: B | KJ45: Achterbord AB3. Op VL en VR van de staanders en VB en VO tussen de staanders doorlopend op de kopse einden een A14. Op de kopse einden van de betimmering buitenzijde is een repteiteve gutsinsijding. | KP45: Opsluiting bord type AB. | LF45: C | LG45: B | LH45: A | LI45: Sporen van restauratie. Verfsysteem na 1960. Voorbord niet aanwezig.
A46: 43 | C46: V 1969-1948 | D46: Linker voorarm | E46: Tussen | F46: 1880 | G46: 1930 | H46: Karrenmuseum Essen vzw | N46: Laatste gebruiker | O46: Jef Vrints | P46: 2910 | Q46: Wildert | R46: Antwerpen | S46: België | T46: C | U46: Eh | V46: Aj | W46: Vlaamse aardkar met voorloper | X46: Aardkar, twee wielen, het lamoenframe is afgenomen en vervangen door een draagframe scharnierbaar bevestigd met karbak, onder de lamoenbomen een draaibaar vooronderstel, op de lamoenbomen een afneembaar laadvlak, sponnenzijbord, zijleesten en afneembaar voor- en achterbord | Y46: wiel | Z46: hout | AA46: lamoenboomen | AB46: hout | AC46: kar | AD46: hout | AE46: verbindingselementen | AF46: metaal | AK46: 4 | AL46: 2 | AM46: A | AN46: 760 | AO46: 12/6 | AP46: A | AQ46: 430 | AR46: 272 | AS46: 72 | AU46: 57 | AX46: =ASIN(AZ46/AY46) * 180 / 3.14 -> 6.081087911 | AY46: 170 | AZ46: 18 | BA46: 63 | BB46: 78 | BC46: Rkant, kwarthol, vlak, kwartrond, vlak. | BD46: Rkant, 1/8 rond. | BE46: D | BF46: A | BG46: B | BH46: 30 | BI46: 91 | BK46: 1M | BL46: 2S | BM46: 1K | BO46: 30 | BP46: 1465 | BQ46: 2 | BR46: A. | BS46: 1350 | BT46: 12/6 | BU46: A | BV46: 475 | BW46: 302 | BX46: 70 | BZ46: 50 | CB46: 1.302949475 | CD46: 440 | CE46: 10 | CG46: 60 | CH46: 90 | CI46: Rkant, kwarthol, vlak, kwartrond, vlak. | CJ46: Rkant, 1/8 rond. | CK46: D. | CM46: A | CO46: B | CP46: 38 | CQ46: 91 | CS46: 1M | CT46: 2S | CU46: 2K | CW46: 30 | CX46: 1600 | CY46: AA0/1 | CZ46: Industrieel vervaardigd | DA46: A | DB46: A | DC46: 1BM4 | DD46: 2BB4 | DE46: 2BK4 | DH46: AC60 | DI46: Voorbij de draagboom op het kopse eind is hout meeopgesloten in de opsluitbeugel waardoor de asblok verbreed. Hierop is vervolgens het spatscherm opgetimmerd. | DT46: A | DV46: AB | DX46: laadboom | DY46: 40 | EA46: BB4 | EH46: AA0/1 | EJ46: A | EL46: E2 | ER46: 700 | ES46: C | ET46: 2BM4 | EU46: 2BK4 | EV46: 1BMS4 | EX46: CF | EY46: Versmallend door kwarthol. | FD46: C | FE46: Voor en achter de asblok op buitenzijden een inlopend A18 dat naar de kopse einden overgaat in een afrondingprofiel. | FF46: Achter de asblok zijn de voorarmen opgesloten doormiddel van een metalen opsluitpen. | FJ46: G | FK46: Voorarmbeugel B. Voorarmbeugel C. | FL46: A | FM46: BC | FO46: Bevestiging boom A. | FT46: C | FU46: Versmallend door kwarthol. | FV46: Op de kope einden een A10. | GH46: 2580 | GI46: Ja | GJ46: A | GK46: C | GN46: 820 | GQ46: draagframe | GR46: D2/1/0 | GU46: Vooraan zijn de draagbomen verbonden met bout en moer met de rongblok en 2 tussenblokken. | GY46: 1110 | GZ46: AA | HB46: draagboom | HC46: A | HD46: achteraan schiernierbaar punt op de laadboom, het achterst eind vanaf de eerste rong in de breedte vesmald (om de rong nog vast te kunnen zettten) dit kan veschillend gedfieernd orden maar veelal door een kwarthol profielen vervolgens vlak. Vanaf de daar naar de kopse eind versmallend ii nde breedte | HZ46: Ba5/0 | IA46: Ronde pennen opgespiëd, steken 100 uit. | IB46: De dwarsregels hebben aan de onderzijde een doorlopend A15 mm. De vierde dwarsregel is verbreed en voorzien van een 1/8 hol profiel in de lengte. | IC46: Vooraan: Laadbvlak type A. | IG46: D | IK46: B | IP46: 140 | IQ46: 85 | IR46: 855 | IT46: 1655 | IU46: A | IZ46: 97° | JB46: 90° | JD46: 90° | JE46: Ae4/0 | JG46: Ronde pennen. | JH46: De rongen zijn aan de betimmerde zijde 96° schuin aangesneden. | JL46: 360 | JM46: A | JN46: Ronde armeinden steken 115 mm uit. | JO46: 4 rongenbeugels type A. Op de voorkant is nabij de 1 en 4 rong een metalen kram voor het inhaken van de verbeedhekkens | JP46: B | JQ46: Breedte 220 mm. | JU46: 500 | JV46: rong | JW46: CLA | KF46: A | KG46: B | KP46: Opsluiting bord type A en B. | LF46: B | LG46: A | LH46: A | LI46: Verfsysteem na 1960.
A47: 44 | C47: V 1971-2251 | D47: Linker voorarm | E47: Bouwjaar | F47: 1946 | H47: Karrenmuseum Essen vzw | I47: Wagenmaker | J47: Karel Augustijns | K47: smid | L47: Toon Lambregts | M47: Afkomst | O47: Van de Keybus | P47: 2910 | Q47: Essen | R47: Antwerpen | S47: België | T47: E | U47: Ei | V47: Ad | W47: Kempische wagen | X47: Wagen, twee achterwielen, twee kleine voorwielen draaibaar bevestigd onder het laadvlak. Vast laadvlak, sponnenzijbord en afneembaar voor- en achterbord. | Y47: wiel | Z47: hout | AA47: draagbomen | AB47: hout | AC47: wagen | AD47: hout | AE47: verbindingselementen | AF47: metaal | AK47: 4 | AL47: 2 | AM47: A. | AN47: 830 | AO47: 10/5 | AP47: A. | AQ47: 440 | AR47: 250 | AS47: 68 | AU47: 54 | AX47: =ASIN(AZ47/AY47) * 180 / 3.14 -> 3.92529269 | AY47: 190 | AZ47: 13 | BA47: 70 | BB47: 80 | BC47: Rkant, kwarthol, rkant, kwartrond, rkant, vlak. | BD47: Rkant, 1/8 rond, vlak. | BE47: A | BF47: A | BG47: B | BH47: 45 | BI47: 98 | BJ47: A | BK47: 1M | BL47: 2S | BM47: 1K | BO47: 30 | BP47: 1545 | BQ47: 2 | BR47: A. | BS47: 1430 | BT47: 12/6 | BU47: A. | BV47: 440 | BW47: 353 | BX47: 90 | BZ47: 68 | CB47: 2.421101885 | CD47: 450 | CE47: 19 | CG47: 88 | CH47: 90 | CI47: Rkant, kwarthol, rkant, kwartrond, rkant, vlak. | CJ47: Rkant, 1/8 rond, vlak. | CK47: A. | CM47: A | CO47: B | CP47: 43 | CQ47: 98 | CR47: A | CS47: 1M | CT47: 2S | CU47: 2K | CW47: 30 | CX47: 1535 | CY47: AA0/1 | CZ47: Industrieel vervaardigd | DA47: A | DB47: A | DC47: 2BM4 | DD47: 2BB4 | DH47: AC30 | DI47: Versmallend door rkant, vlak en rkant. | DJ47: Op AO is een ingewerkt halfrond profiel met breedte van 15 mm. Op AB en VB is een A15. | DT47: A | DV47: AC | DX47: draagboom | DY47: 30 | EA47: BB4 | EH47: As AA0/1. | EJ47: A | EL47: E2 | ER47: 700 | ES47: C | ET47: 2BM4 | EU47: 2BK4 | EV47: 1BMS4. | EX47: CF | EY47: Versmallend door kwarthol. | EZ47: Daar waar de asblok versmalt is op VB en AB een A20. | FD47: C | FE47: Voor en achter de asblok op buitenzijden een inlopend A14 dat naar de kopse einden overgaat in een afrondingprofiel. | FF47: Achter de asblok zitten de voorarmen opgesloten doormiddel van een gat en ijzeren opsluitpen. | FJ47: G | FK47: Voorarmbeugel B. Voorarmbeugel H. | FL47: A | FM47: BC | FO47: Bevestiging boom A. | FP47: Niet aanwezig | FR47: A | FT47: C | FU47: Versmallend door kwarthol. | FV47: Op de kope einden een A10. | FY47: A | GH47: 2600 | GN47: 910 | GQ47: Draagframe | GR47: C12/0 | GS47: De pennen steken 20 mm uit. Pen A. | GT47: Op de kopse einden een inlopend A18. | HB47: draagboom | HC47: C | HD47: Op de voorkant zijn 3 rongenbeugels type A voor de rongen van de zijleesten | HU47: 1040 | HZ47: A | IG47: B | IP47: 110 | IQ47: 100 | IR47: 1075 | IT47: 4200 | IU47: A | IV47: 215 | IW47: 325 | IZ47: 90° | JB47: 90° | JD47: 90° | JE47: Af7/0 | JG47: Ronde pennen | JH47: Op halve hoogte is tussen de rongen een opgetimmerde middenregel met VB en VO een ingewerkt ogiefprofiel met breedte van 14 mm. | JL47: 490 | JM47: A | JN47: Ronde armeinden steken 115 mm uit. Op VO tussen de staanders en de kopse einden een in- en uitlopend A20 | JO47: 5 rongenbeugels type A. Op de voorkant is vooraan, midden en achter steeds 2 kramen voor het inhaken van de zijleesten. | JP47: C | JR47: Ak5 | JS47: 205 | JT47: 96° opgesteld t.o.v. het laadvlak. Rong type E. | JU47: 625 | JV47: rong | JW47: AIA | JY47: BC3. | KA47: Op VB en VO tussen de staanders doorlopend op de kopse einden een A15. Op VL en VR bovenaan een inlopend A15 dat onderaan doorloopt. Op de kopse einden van de betimmering een repetitieve gustinsnijdinng. Op VB van de onderegel een reptitevg gust insijding. | KB47: Op de boveregel 2 rongenbeugel type I. | KF47: A | KG47: B | KJ47: BC3 | KL47: Op VB en VO tussen de staanders doorlopend op de kopse einden een A15. Op VL en VR bovenaan een inlopend A15 dat onderaan doorloopt. Op de kopse einden een repetitieve gust insnijdinng. | KM47: Op de boveregel 2 rongenbeugel E. | KP47: A | KQ47: D | KV47: X | LF47: B | LG47: A | LH47: A | LI47: Verfsysteem na 1960.
A48: 45 | C48: V 2000-0028 | D48: Linker lamoenboom | E48: Tussen | F48: 1880 | G48: 1930 | H48: Karrenmuseum Essen vzw | M48: Afkomst | P48: 2920 | Q48: Kalmthout | R48: Antwerpen | S48: België | T48: C | U48: Cg | V48: Bg | W48: Tweewielbeerkar | X48: Kar, twee wielen, twee lamoenbomen met dwarsregels en betimmering. Kipbaar beerkast met bovenaan een scharnierbaar deksel. | Y48: wiel | Z48: hout | AA48: lamoenboomen | AB48: hout | AC48: kar | AD48: hout | AE48: karsteun | AF48: hout | AG48: verbindingselementen | AH48: metaal | AK48: 2 | BQ48: 2 | BR48: A. | BS48: 1330 | BT48: 12/6 | BU48: A | BV48: 450 | BW48: 270 | BX48: 75 | BZ48: 50 | CB48: 1.866720061 | CD48: 430 | CE48: 14 | CG48: 75 | CH48: 90 | CI48: Kwarthol, vlak, kwartrond. | CJ48: Rkant, 1/8 rond. | CK48: C. | CM48: A. | CO48: C. | CP48: 40 | CQ48: 88 | CS48: 1M | CT48: 2S | CU48: 2K | CW48: 320 | CX48: 1545 | CY48: AA0/1 | CZ48: Industrieel vervaardigd | DA48: A | DB48: A | DC48: 2BB4. | DH48: AE60 | DI48: Versmallend aan de bovenzijde door 1/8 hol. | DJ48: Op AB is een in- en uitlopend A14. Op AO is een ingewerkt halfrond profiel met breedte van 10 mm. | DT48: I4 | DX48: laadboom | DY48: 13 | EA48: BB4 | EB48: 4 verstevigingsdriehoeken | GI48: Ja. | GJ48: A | GK48: A | GN48: 845 | GO48: 450 | GQ48: lamoenframe | GR48: A3/0 | GS48: Ronde pennen getapt, steken 110 mm uit. | GT48: Scharniereinden kop B. | GX48: B | GY48: 980 | GZ48: H | HA48: E | HB48: lamoenboom | HC48: B | HD48: Voor de voorschoot is een inlopend afschuiningsprofiel op de buitenzijden dat dat doorloopt tot op de kopse einden. Achter het voorschot tot de scharniereinden een inlopend afschuiningsprofiel met schuine zijde van 15 mm dat doorloopt tot op het kopse eind. | HG48: 775 | HH48: 1970 | HI48: AA2 | HP48: AV | HQ48: 925 | HU48: 960 | HZ48: Ba6/0 | IA48: Ronde pennen steken 15mm uit. Pen A18. | IB48: De dwarsregels hebben aan de onderzijde een ingewerkt halfrond profiel met breedte van 10 mm. | IK48: B | IL48: Op VO een ingewerkt halfrond profiel met breedte van 10 mm | IP48: 180 bredte uitvloeiplank | IQ48: 130 | IR48: 870 | IT48: 1850 | IU48: A | IZ48: 93° | JB48: 90° | JD48: 90° | JE48: Ba5/0/4 | JG48: Ronde pennen. | JL48: 345 | JM48: A | JN48: Op VO is een doorgaand ingewerkt ogief profiel met breedte van 14mm. | JU48: 480 | JV48: staander | JW48: FHA | JY48: Ea2/3 | KA48: Op de VO van de bovenregel tussen de armejnden van de zijboorden een doorgaand ingewerkt ogief profie. | KJ48: EA2/2. | KL48: Op VO van de bovenregel is een doorgaand ingewerkt ogief profiel met breedte van 10 mm. Op VL en VR van de de staanders is een in- en uitlopend A14. | KR48: C | KS48: C1 | KT48: Scharnier C. Handgreep C. De verbindingstang van het achterbord loopt door in het scharnierblad en sluit het deksel op met een metalen spie. | LF48: B | LG48: A | LH48: A | LI48: Verfsysteem na 1960.
A49: 46 | C49: V 1969-1946 | D49: Linker lamoenboom | E49: Na | F49: 1950 | H49: Karrenmuseum Essen vzw | M49: Afkomst | P49: 2910 | Q49: Horendonck | R49: Antwerpen | S49: België | T49: C | U49: Cg | V49: Ad | W49: Vlaamse aardkar | X49: Aardkar, twee wielen, lamoenframe scharnierbaar bevestigd met karbak, sponnenzijbord, opzetborden en afneembaar voor- en achterbord | Y49: wiel | Z49: hout | AA49: lamoenboomen | AB49: hout | AC49: kar | AD49: hout | AE49: karsteun | AF49: hout | AG49: verbindingselementen | AH49: metaal | AK49: 2 | BQ49: 2 | BR49: A | BS49: 1380 | BT49: 12/6 | BU49: A. | BV49: 475 | BW49: 305 | BX49: 75 | BZ49: 53 | CB49: 4.172763325 | CD49: 440 | CE49: 32 | CG49: 70 | CH49: 86 | CI49: Rkant, kwarthol, vlak, kwartrond, rkant, vlak. | CJ49: Rkant, 1/8 rond, vlak. | CK49: A. | CM49: B | CO49: D | CP49: 56 | CQ49: 110 | CS49: 1M | CT49: 2S | CU49: 2K | CW49: 34 | CX49: 1547 | CY49: AA0/1 | CZ49: Industrieel vervaardigd | DA49: A | DB49: A | DC49: 1BM4 | DD49: 2BB4 | DE49: 2BK4 | DH49: AC25 | DI49: Versmallend door kwarthol, schuinneerlopend, schuinoplopend, kwarthol. | DJ49: Op VB en AB is een in- en uitlopend A16. | DT49: C | DX49: laadboom | DY49: 20 | EA49: BB4 | GI49: Ja. | GJ49: A | GK49: A | GN49: 840 | GO49: 430 | GQ49: lamoenframe | GR49: BA3/0 | GS49: Ronde pennen, steken 76 mm uit. Derde dwarsregel vastgezet met kruishoutverbinding met bout en moer | GT49: Scharniereinden kop B. | GX49: A | GZ49: C | HB49: lamoenboom | HC49: B | HG49: 925 | HH49: 1810 | HI49: AA2 | HL49: AA | HP49: AA | HQ49: 1010 | HZ49: Ba5/0 | IA49: Ronde pennen. De pennen van de laatste twee dwarsregels steken 120 mm uit. | IB49: De dwarsregels hebben aan de onderzijde een in- en uitopend A14. | IG49: D | IK49: A | IP49: 140 | IQ49: 140 | IR49: 780 | IT49: 1730 | IU49: A | IZ49: 93° | JB49: 93° | JD49: 93° | JE49: Ae4/0 | JG49: Ronde pennen. | JL49: 325 | JM49: A | JN49: Ronde armeinde steken 80 mm uit. Op VO tussen de staanders en armeinden is een in- en uitlopend A15. Op OB is een ingewerkt halfrond profiel met breedte van 17 mm. | JO49: Ter hoogte van de rongen zijn 4 rongenbeugels type A. | JR49: Ak4 | JS49: 275 | JU49: 530 | JV49: rong | JW49: CIA | JY49: BC3 | KA49: Op VO van de bovenregel tussen de staanders een in- en uitlopend en op VB een doorlopend A 15. | KB49: Op de bovenregel zijn 2 rongenbeugels type I. | KF49: A | KG49: D | KJ49: BC3. | KL49: Op VO tussen de staanders en VB van de bovenregels een in- en uitlopend A 15. Ter hoogte van de eerste en laatste rong op de bovenregel 2 rongenbeugels type I. | KP49: A | KQ49: D | LF49: C | LG49: A | LH49: A | LI49: Reconstructie.
A50: 47 | C50: V 1969-1935 | D50: Linker lamoenboom | E50: Tussen | F50: 1880 | G50: 1930 | H50: Karrenmuseum Essen vzw | M50: Afkomst | P50: 3583 | Q50: Paal | R50: Limburg | S50: België | T50: C | U50: Ca | V50: Ad | W50: Hoogkar | X50: Hoogkar, twee wielen, 2 rechte lamoenbomen met dwarsregels, betimmering, metalen opstapbeugel, sponnenzijbord, afneembaar voor- en achterbord. | Y50: wiel | Z50: hout | AA50: lamoenboomen | AB50: hout | AC50: kar | AD50: hout | AE50: verbindingselementen | AF50: metaal | AK50: 2 | BQ50: 2 | BR50: A | BS50: 1480 | BT50: 12/6 | BU50: A. | BV50: 480 | BW50: 306 | BX50: 80 | BZ50: 53 | CB50: 4.726221752 | CD50: 510 | CE50: 42 | CG50: 80 | CH50: 68 | CI50: Rkant, ogief. | CJ50: Rkant, 1/8 rond. | CK50: A. | CM50: C | CO50: A | CP50: 40 | CQ50: 80 | CR50: A | CS50: 1M | CT50: 2S | CU50: 2K | CW50: 40 | CX50: 1550 | CY50: AA0/1 | CZ50: Industrieel vervaardigd | DA50: A | DB50: A | DC50: 1BM4 | DD50: 2BB4 | DE50: 2BK4 | DH50: AC10 | DI50: Versmallend door kwarthol, vlak en kwarthol. | DJ50: Op VB en AB een doorlopend A14. | DT50: A | DV50: H | DX50: lamoenboom | DY50: 45 | EA50: BB4 | GN50: 810 | GQ50: lamoenframe | GR50: D10/2 | GS50: Ronde pennen. De pennen van de eerste dwarsregel steken 115 mm uit. | GT50: Op OV en OA een in- en uitlopend A15. | GU50: Op de eerste en laatste dwarsregel is metalen verbindingsrprofiel. | GV50: B | GW50: Verbreedboom ter hoogte van het zijbord. | GX50: A | HB50: lamoenboom | HC50: A | HE50: Op de kopse einden Op de kopse einden trekBeugel A, Broekhaak A, Beugel Z Ophangbeugels A, Haak A op de buitenzijde en op de 2 op de bijnenzijde van elke lamoenboom , opstalbeuel A | HG50: 790 | HH50: 1780 | HI50: AA2 | HK50: AD1 | HL50: AA | HM50: ED | HP50: AA | HQ50: 950 | HZ50: Ba5/2 | IB50: Verbreedboom: tussen de rpngenbeugels versmallend in de dikte met op de scherp snede repetitieve gutsinsnijdingen. | IG50: Rongenbeugel type A. | IP50: 230 | IR50: 970 | IT50: 3000 | IU50: A | IV50: 540 | IW50: 330 | IZ50: 90° | JB50: 90° | JD50: 90° | JE50: Am4/3 | JG50: De rongen steken 75 uit. | JH50: Op VLen VR hebben de tussenstaander een uitgewerkt accolademotief. Verbindingsregel met een uitgezaagde accoladebogen. | JI50: Op de tussenstaanders is ter hoogte van de beugels op de bovenregel rongebeugel type E. | JL50: 540 | JM50: A | JN50: Op VO ingewerkt ogief profiel. 2 rongenbeugels type E. | JU50: 570 | JV50: rong | JW50: CAC | JY50: CA1 | KA50: Middenstaander afgeleide profielering van de rongen. | KB50: Bovenzijde 1/8 rond in de lengte. | KF50: G | KG50: F | KJ50: CA1. | KL50: Bovenzijde 1/8 rond in de lengte. Middenstaander afgeleide profielering van de rongen. | KP50: E | KQ50: F | LF50: B | LG50: A | LH50: A | LI50: Verfsysteem na 1960.
A51: 48 | C51: V 1970-2085 | D51: Linker glijboom | E51: Na | F51: 1950 | H51: Karrenmuseum Essen vzw | M51: Afkomst | O51: Frans Peeters Schanker | P51: 2910 | Q51: Essen | R51: Antwerpen | S51: België | T51: A | U51: Aa | V51: Da | W51: Slede met houten glijbomen en sponnenzijborden of rongen | X51: Slede met twee houten glijbomen verbonden met dwarsregels en betimmering. | Y51: glijboom | Z51: hout | AA51: verbindingselementen | AB51: metaal | AK51: 0 | GN51: 685 | GQ51: glijframe | GR51: A5/0 | GU51: Op de eerste dwarsregels is een metalen trekhaak. De betimmering zit in de eerste en laatste dwarsregel gevat in een sponning. | HB51: glijboom | HC51: A | HD51: Voor- en achteraan, schuinoplopend. Op de kopse snede een repetitief gutsinsnijdingen. Op de oversteek vooraan en acheraan van de glijboom is een krot in en uitlopend A14 | HU51: 200 | HZ51: A | IP51: 100 | IQ51: 100 | IR51: 810 | IT51: 1450 | KV51: X | LF51: C | LG51: A | LH51: A | LI51: Reconstructie.
A52: 49 | C52: V 1969-1970 | D52: Linker voorarm | E52: Tussen | F52: 1880 | G52: 1930 | H52: Karrenmuseum Essen vzw | M52: Afkomst | P52: 2920 | Q52: Achterbroeck | R52: Antwerpen | S52: België | T52: C | U52: Ed | V52: Ak | W52: Hoogkar met voortrein | X52: Hoogkar, twee wielen, 2 rechte lamoenbomen met dwarsregels, betimmering, voorsteek, sponnenzijbord en afneembaar achterbord. Laadvloer op de lamoenbomen, rongen en draaimolen onder de lamoenbomen. | Y52: wiel | Z52: hout | AA52: lamoenboomen | AB52: hout | AC52: kar | AD52: hout | AE52: karsteun | AF52: hout | AG52: verbindingselementen | AH52: metaal | AK52: 4 | AL52: 2 | AM52: A. | AN52: 862 | AO52: 10/5 | AP52: A. | AQ52: 380 | AR52: 266 | AS52: 65 | AU52: 53 | AX52: =ASIN(AZ52/AY52) * 180 / 3.14 -> 2.867437651 | AY52: 200 | AZ52: 10 | BA52: 70 | BB52: 90 | BC52: Rkant, kwarthol, vlak, kwartrond, rkant, vlak. | BD52: Rkant, 1/8 rond. | BE52: C | BF52: B. | BG52: A. | BH52: 44 | BI52: 100 | BJ52: A | BK52: 1M | BL52: 2S | BM52: 1K | BO52: 33 | BP52: 1490 | BQ52: 2 | BR52: A. | BS52: 1500 | BT52: 14/7 | BU52: A. | BV52: 480 | BW52: 365 | BX52: 83 | BZ52: 58 | CB52: =ASIN(CE52/CD52) * 180 / 3.14 -> 4.2728265 | CD52: 470 | CE52: 35 | CG52: 78 | CH52: 90 | CI52: Rkant, kwarthol, vlak, kwartrond, rkant, vlak. | CJ52: Rkant, 1/8 rond. | CK52: C | CM52: B | CO52: A | CP52: 49 | CQ52: 117 | CR52: A | CS52: 1M | CT52: 2S | CU52: 2K | CW52: 40 | CX52: 1580 | CY52: AA0/1 | DA52: A | DB52: A | DC52: 2BM6 | DD52: 2BB6 | DE52: 2BK6 | DH52: AE35 | DT52: A | DV52: H | DX52: laadboom | DY52: 30 | EA52: BB4 | EB52: 4 verstevigingsdriehoeken. | EH52: AA0/1 | EJ52: A | EL52: E2 | ER52: 760 | ES52: C | ET52: 2BM4 | EU52: 2BK4 | EV52: 1BMS4 | EX52: CF | EY52: Versmallend door kwarthol. | EZ52: Daar waar de asblok versmalt is op VB en AB een A20. | FD52: C | FJ52: G | FK52: Voorarmbeugel B | FL52: A | FM52: BC | FN52: 125 x 130 mm | FO52: Bevestiging boom type A, B en C. | FT52: C | FY52: A | GA52: Wagenrong type WE. | GG52: Op de rongblok is een metalen stang vastgezet met haak die doormiddel van een ketting is verbonden met het achteronderstelt. | GH52: 2930 | GN52: 810 | GQ52: lamoenframe | GR52: D12/0 | GS52: Ronde pennen steken 150 uit. | GT52: Op OV en OA een in- en uitlopen A14. | GV52: A | GW52: Verbreedboom ter hoogte van het zijbord. | GX52: C | GY52: 1000 | HB52: lamoenboom | HC52: B | HE52: Voor de karkast is op de lamoenboom aan breide zijden een metalen gesmede haak. Op de linkerlamoenboom is een metalan gesmeede opstapbeugel. Achteraan op de onderzijde is een zwaar metalen dat doorlopt totop de bovenzijde | HG52: 745 | HH52: 1870 | HZ52: A | IC52: Laadvlak vooraan: Ca3 | IG52: D | IH52: F | IP52: 260 | IR52: 1090 | IT52: 2900 | IU52: A | IV52: 420 | IW52: 285 | IZ52: 90° | JB52: 90° | JD52: 90° | JE52: Aa5/0 | JG52: Ronde pennen. | JH52: Op halve hoogte is tussen de rongen een opgetimmerde middenregel met VB en VO een ingewerrkt halfrond profiel met breedte avn 14 mm. Op de eerste en laatste rong is een metalen ring vastgezet met kram. | JI52: Op de middenregel zijn 4 rongenbeugels type E. | JL52: 375 | JM52: A | JN52: Op VO tussen de staanders en armeinden is een in- en uitlopend A15. Ronde armeinden steken 100 mm uit. | JO52: 3 rongenbeugels type E. | JP52: C | JQ52: 3 rongenn waarvan de eerst op het het laadvlak op de lameonbomen. Breedte 290 mm Zijleesten zijn 118° gericht t.o.v. het laadvlak Rong zijleest type AA. | JU52: 675 | JV52: rong | JW52: CHF | KJ52: AB3. | KL52: Op VO van de bovernregel tussen de staanders en VB doorlopend op de kopse einden een in- en uitlopend A14. Op VL en VR van de staanders in- en uitlopend en vevolgens terug in- en uitlopend A14. | KP52: A | KQ52: B | LF52: C | LG52: A | LH52: A | LI52: Sporen van restauratie. Verfsysteem na 1960.
A53: 50 | C53: V 1972-2350 | D53: Linker lamoenboom | E53: Tussen | F53: 1880 | G53: 1930 | H53: Karrenmuseum Essen vzw | N53: Laatste gebruiker | O53: Keustermans | P53: 2910 | Q53: Essen | R53: Antwerpen | S53: België | T53: C | U53: Cb | V53: Ad | W53: Hoogkar | X53: Hoogkar, twee wielen, 2 rechte lamoenbomen met dwarsregels, betimmering, sponnenzijbord en afneembaar voor- en achterbord. | Y53: wiel | Z53: hout | AA53: lamoenboomen | AB53: hout | AC53: kar | AD53: hout | AE53: karsteun | AF53: hout | AG53: verbindingselementen | AH53: metaal | AK53: 2 | BQ53: 2 | BR53: A | BS53: 1510 | BT53: 12/6 | BU53: A. | BV53: 460 | BW53: 325 | BX53: 85 | BZ53: 68 | CB53: =ASIN(CE53/CD53) * 180 / 3.14 -> 4.684791852 | CD53: 490 | CE53: 40 | CG53: 85 | CH53: 90 | CI53: Rkant, schuin oplopend, kwarthol, kwartrond, recht rkant, vlak. | CJ53: Rkant, 1/8 rond. | CK53: C. | CM53: A | CO53: A | CP53: 40 | CQ53: 90 | CR53: A | CS53: 1M | CT53: 2S | CU53: 2K | CW53: 32 | CX53: 1565 | CY53: AA0/1 | CZ53: Industrieel vervaardigd | DA53: A | DB53: A | DC53: 3BM4 | DD53: 2BB4 | DH53: AA | DT53: A | DV53: H | DX53: lamoenboom | DY53: 10 mm diep die gevat zit op een tussen hout elemente type A | EA53: BB4 | GN53: 795 | GQ53: lamoenframe | GR53: D11/0 | GS53: Ronde pennen steken 145 mm uit. | GV53: A | GW53: Verbreedboom ter hoogte van het zijbord. | GX53: A | HB53: lamoenboom | HC53: B | HD53: Op BL ter hoogte van de voorschoot een in- en uitlopend A26. Op alle zijde voor de voorschoot ee afrondingsprofiel. | HE53: Voor de karkast is op de lamoenboom aan breide zijden een metalen gesmede haak. Op de linkerlamoenboom is een metalan gesmeede opstapbeugel. | HG53: 810 | HH53: 1840 | HI53: AA2 | HL53: AA | HP53: AA | HQ53: 960 | HZ53: A | IG53: D | IH53: G | IP53: 100 | IR53: 940 | IT53: 3000 | IU53: A | IV53: 390 | IW53: 380 | IZ53: 90° | JB53: 90° | JD53: 90° | JE53: Ab5/0. | JG53: Ronde pennen. | JH53: Op halve hoogte is tussen de rongen een opgetimmerde middenregel met VB en VO een ingewerrkt halfrond profiel met breedte an 12 mm. | JI53: Op de eerste en laatste rong zijn 2 metalen ringen boven elkaar vastgezet met kram. Op de middenregel zijn 4 rongebeugels type E. | JL53: 380 | JM53: A | JN53: Ronde armeinden steken 100 mm uit. Op VO tussen de staanders en armeinden is een in- en uitlopend A15. | JO53: 4 rongenbeugels type E. | JU53: 625 | JV53: rong | JW53: CIA | JY53: AB3 | KA53: S-vormige buitenztaanders. Ronde pennen getapt. Op VO van de bovenregel tussen de staander een in- en uitlopend en doorlopend op de kopseeinden en op VB A14. Op VL en VR van de staanders en VB van de onderregel een in- en uitlopend A14. | KB53: Op de bovenregel 2 rongebugels type I. | KF53: A | KG53: B | KJ53: AB3. | KL53: S-vormige buitenstaanders. Ronde pennen getapt. Op VO van de bovenregel tussen de staander en op VB doorlopend op de kopse einden een in- en uitlopend A14. Op VL en VR van de staanders een in- en uitloopend A14. Op VB van de onderregel een in- en uitlopend A14. Op de bovenregel 2 rongebugels type I. | KP53: A | KQ53: B | LF53: B | LG53: A | LH53: A | LI53: Verfsysteem na 1960.
A54: 51 | C54: V 1995-0051 | D54: Linker voorarm | E54: Tussen | F54: 1880 | G54: 1930 | H54: Karrenmuseum Essen vzw | M54: Afkomst | P54: 8380 | Q54: Dudzele | R54: West-Vlaanderen | S54: België | T54: E | U54: Ek | V54: Ce | W54: Polderwagen met afneembare zijborden | X54: Wagen, achteronderstel met twee achterwielen, verbonden doormiddel van een langboom met het vooronderstel. vooronderstel met twee kleine voorwielen draaibaar verbonden met voorarmen, woelhout en draaispil. Afneembaar laadvlak, metalen rongen en afneembaar zij-, voor- en achterbord. De bovenregel van het zijbord is hol gebogen in de lengte. | Y54: wiel | Z54: hout | AA54: langboom | AB54: hout | AC54: wagen | AD54: hout | AE54: verbindingselementen | AF54: metaal | AK54: 4 | AL54: 2 | AM54: A. | AN54: 875 | AO54: 10/5 | AP54: A. | AQ54: 415 | AR54: 302 | AS54: 68 | AU54: 52 | AX54: =ASIN(AZ54/AY54) * 180 / 3.14 -> 3.018491556 | AY54: 190 | AZ54: 10 | BA54: 90 | BB54: 93 | BC54: Rkant, halfrond, half hol, vlak, kwartrond, rkant, vlak. | BD54: Rkant, ogief. | BE54: C. | BF54: A. | BG54: C | BI54: 30 | BJ54: A | BK54: 1M | BL54: 2S | BM54: 1K | BO54: 30 | BP54: 1595 | BR54: A. | BT54: 12/6 | BU54: A. | BV54: 390 | BW54: 327 | BX54: 75 | BZ54: 60 | CB54: =ASIN(CE54/CD54) * 180 / 3.14 -> 2.097718412 | CD54: 410 | CE54: 15 | CG54: 98 | CH54: 88 | CI54: Rkant, halfrond, half hol, vlak, kwartrond, vlak. | CJ54: Rkant, kwartrond, vlak. | CK54: C. | CM54: A | CO54: C | CQ54: 31 | CR54: A | CS54: 1M | CT54: 2S | CU54: 2K | CW54: 31 | CX54: 1640 | CY54: AA0/1 | CZ54: Industrieel vervaardigd | DA54: A | DB54: B | DC54: 4BM4 | DD54: 2BK4 | DH54: BB | DI54: Versmallend door kwarthol, vlak en kwarthol. | DJ54: Op VB en AB een A8. | DL54: A | DM54: Versmallend door kwarthol en vlak. | DN54: Daar waar de bovenblok versmald is op VO en AO een A8. | DP54: B | DQ54: E | DR54: B | DS54: Voor en achter de asblok op alle zijden een inlopend A15. | DT54: C | DV54: C | DX54: langboom | EC54: B | EH54: As AA0/1. | EJ54: A | EL54: A2 | EM54: A | EN54: CM | EO54: CR | EP54: EM | ER54: 380 | ES54: C | ET54: 2BM4 | EU54: 1BK4 | EV54: 1BMS4 | EX54: CB | EY54: Versmallend door kwarthol. | EZ54: Daar waar de asblok versmalt is op VB en AB een A15. | FD54: A | FE54: Voorkomend afschuiningsprofiel. | FG54: B | FH54: Voorkomend afschuiningsprofiel. | FI54: Op de bovenzijde is een metalen glijprofiel. | FJ54: D0 | FK54: Voorarmbeugel B. | FL54: C | FO54: Bevestiging langboom A. | FP54: A | FQ54: 1600 | FR54: B | FS54: Trekbeugel B. Disselboomscharnierbeugel type A | FT54: A | GA54: AC | GB54: AC | GD54: A | GH54: 2230 | HU54: 1085 | HZ54: Da3/3/2 | ID54: A | IE54: Versmallend door 1/8 hol en vlak. | IR54: 1010 | IT54: 3600 | IU54: A | IV54: 50 | IW54: 50 | IZ54: 99° | JB54: 90° | JD54: 113° | JE54: Ca8 | JG54: Vierkante pennen, getapt. | JH54: Op VL en VR vaan de staanders is een ingewerkt halfrond profiel met breedte van 11 mm. Staanders vooraan 90° rechtopstaande achteraan 113° naar achter t.o.v. het laadvlak. | JL54: 425 | JM54: C | JN54: Ronde armeinden steken 150 mm uit. Op VO is een ingewerkt halfrond profiel met breedte van 11 mm | JO54: 4 rongenbeugels type E. Op de voorkant is vooraan en achteraan een metalen kram. | JR54: Ak4 | JT54: Onderzijde volgt de kromming van de bovenregel. Bovenzijde recht | JU54: Vooraan 500 mm, laagste punt: 390 mm, achteraan 750 | JV54: staander | JW54: FNA | JX54: Ingewerkt halfrond profiel. | KD54: A | KF54: A | KG54: B | KN54: B | KP54: A | KQ54: B | KV54: X | LF54: A | LG54: B | LH54: A | LI54: Voorbord niet aanwezig. Licht verzwakt.
A55: 52 | C55: V 2011-0002 | D55: Linker voorarm | E55: Na. | F55: 1950 | H55: Karrenmuseum Essen vzw | M55: Afkomst | P55: 2910 | Q55: Essen | R55: Antwerpen | S55: België | T55: E | U55: Eg | V55: Cd | W55: Kipbare platte wagen | X55: Platte wagen, 2 achterwielen met luchtbanden en twee voorwielen met luchtbanden en draaimolen. 2-delige laadvloer waarvan het achterste gedeelte kipbaar is. Neerklapbare zijborden en afneembaar voor- en achterbord. | Y55: wiel | Z55: metaal/luchtband | AA55: draagbomen | AB55: hout | AC55: wagen | AD55: hout | AE55: verbindingselementen | AF55: metaal | AK55: 4 | AL55: 2 | AM55: C | AN55: 730 | BP55: 1620 | BQ55: 2 | BR55: A. | BS55: 780 | CX55: 1580 | CY55: AA2/1 | DA55: I | DY55: De 2 langbomen zijn vastegezet met bout en moer doorheen het uitvulframe. De as is vastgezet doormiddel van de flezen met bout en moer met het metalen uitvulframe met de draagbomen. | EH55: AA2/1 | EJ55: D | EL55: F2 | ER55: 670 | FD55: D | FJ55: H | FO55: Bevestiging boom type A,B en C. De as is vastgezet doormiddel van de flezen met bout en moer doorheen de uitvulblokken. | FP55: A | GH55: 2150 | GI55: Ja | GJ55: A | GK55: A | GN55: 1530 | GO55: 1320 | GQ55: Draagframe | GR55: AA3/0/0 | GX55: A | GZ55: CA | HB55: draagboom | HC55: A | HH55: 30 | HU55: 965 | HW55: C | HY55: Linkerzijde, voorarmframe, boven. | HZ55: Ba5/0 | IG55: A | IK55: A | IP55: 25 | IQ55: 25 | IR55: 1690 | IT55: 2000 | IU55: A | IZ55: 90° | JB55: 90° | JD55: 90° | JE55: Da3 | JU55: 270 | JY55: BA2 | KF55: C | KG55: P | KJ55: BA2 | KP55: C | KQ55: P | KV55: X | LF55: A | LG55: A | LH55: A
A56: 53 | C56: V 1992-0015 | D56: Disselhout | E56: Tussen | F56: 1880 | G56: 1930 | H56: Karrenmuseum Essen vzw | M56: Afkomst | O56: Museum 'Den Doem' Edegem | P56: 2910 | Q56: Essen | R56: Antwerpen | S56: België | T56: D | U56: Dg | V56: Da | W56: Platte drieiwielkar | X56: Driewielkar, twee achterwielen draaiend onder het laadvlak, één klein voorwiel draaibaar verbonden met draagframe. Kipbaar laadvlak. | Y56: wiel | Z56: hout | AA56: draagbomen | AB56: hout | AC56: kar | AD56: hout | AE56: verbindingselementen | AF56: metaal | AK56: 3 | AL56: 1 | AM56: A | AN56: 700 | AO56: 10/5 | AP56: A | AQ56: 360 | AR56: 220 | AS56: 61 | AU56: 48 | AX56: 0 | BA56: 60 | BB56: 70 | BC56: Vlak, kwarthol, vlak, schuin oplopend, rkant, vlak. | BD56: Vlak, kwarthol, vlak, schuin oplopend, rkant, vlak. | BE56: B | BF56: A | BI56: 35 | BJ56: A | BK56: 2K | BL56: 2S | BO56: 35 | BQ56: 2 | BR56: A | BS56: 880 | BT56: 10/5 | BU56: A | BV56: 250 | BW56: 245 | BX56: 65 | BZ56: 42 | CB56: =ASIN(CE56/CD56) * 180 / 3.14 -> 2.606572686 | CD56: 220 | CE56: 10 | CG56: 78 | CH56: 100 | CI56: Rkant, kwartrond. | CJ56: Rkant, kwarthol, vlak, kwartrond, rkant. | CK56: D | CM56: A | CO56: C | CP56: 0 | CQ56: 30 | CR56: A | CS56: 1M | CT56: 2S | CU56: 2K | CW56: 30 | CX56: 1310 | CY56: AE0/1 | DA56: A | DB56: A | DC56: 2BBSVV6. | DH56: AC25 | DT56: H6 | DV56: F | DX56: draagboom | DY56: 25 | EA56: BBSVV | EH56: AA0/1 | EJ56: C | EL56: B1 | ER56: 530 | FJ56: F | FL56: N | FP56: B | FS56: Trekbeugel AA. Disselmetaal A. | GH56: 2000 | GI56: Ja | GJ56: C | GK56: F | GN56: 350 | GO56: 500 | GQ56: draagframe | GR56: BH2 | GX56: D | GZ56: GC | HB56: draagboom | HC56: A | HD56: Op VO een ingewerkt halfrond profiel met breedte van 12 mm | HU56: 1020 | HZ56: Ba4/1 | IK56: B | IP56: 120 | IQ56: 110 | IR56: 1700 | IT56: 2800 | LF56: A | LG56: A | LH56: A
A57: 54 | C57: V 2007-0601 | D57: Linker voorarm | E57: Tussen | F57: 1880 | G57: 1930 | H57: Karrenmuseum Essen vzw | M57: Afkomst | P57: 2910 | Q57: Essen | R57: Antwerpen | S57: België | T57: C | U57: Ee | V57: Al | W57: Vlaamse aardkar met voortrein en draaistel E2 | X57: Aardkar, twee wielen, lamoenframe scharnierbaar bevestigd met karbak, onder de lamoenbomen een draaibaar vooronderstel, op de lamoenbomen een afneembaar laadvlak, sponnenzijbord, zijleesten en afneembaar voor- en achterbord | Y57: wiel | Z57: hout | AA57: lamoenboomen | AB57: hout | AC57: kar | AD57: hout | AE57: verbindingselementen | AF57: metaal | AK57: 4 | AL57: 2 | AM57: A. | AN57: 780 | AO57: 10/5 | AP57: A. | AQ57: 460 | AR57: 260 | AS57: 68 | AU57: 46 | AX57: =ASIN(AZ57/AY57) * 180 / 3.14 -> 4.78261643 | AY57: 180 | AZ57: 15 | BA57: 65 | BB57: 90 | BC57: Rkant, schuin oplopend, kwarthol, vlak, kwartrond, rkant, vlak. | BD57: Rkant, 1/8 rond. | BE57: E. | BF57: A. | BG57: C. | BH57: 50 | BI57: 80 | BK57: 1M | BL57: 2S | BM57: 1K | BO57: 28 | BP57: 1585 | BQ57: 2 | BR57: A | BS57: 1345 | BT57: 12/6 | BU57: A. | BV57: 450 | BW57: 265 | BX57: 72 | BY57: 65 | BZ57: 50 | CB57: =ASIN(CE57/CD57) * 180 / 3.14 -> 6.368673255 | CD57: 460 | CE57: 51 | CG57: 80 | CH57: 90 | CI57: Rkant, ogief. | CJ57: Rkant, 1/8 rond. | CK57: E. | CM57: A | CO57: C | CP57: 35 | CQ57: 105 | CS57: 1M | CT57: 2S | CU57: 2K | CW57: 30 | CX57: 1580 | CY57: AA0/1 | CZ57: Industrieel vervaardigd | DA57: A | DB57: A | DC57: 1BM6 | DD57: 2BB6 | DE57: 2BK6 | DH57: AC20 | DJ57: Op de achterkant in het midden is een metalen rechthoekige opsluitbeugel waarin de metalen verbindingsstang die het voor onderstel met het achteronderstel verbind in opgesloten. | DT57: I4 | DX57: lamoenboom | EA57: BB6 en BB4 | EB57: 4 verstevigingsdriehoeken 1/8 rond in de lengte. | EH57: AA0/1 | EJ57: A | EL57: E2 | ER57: 870 | ES57: C | ET57: 1BMS6 | EU57: 2BK6 | EX57: CE | EY57: Versmallend door kwarthol. | EZ57: Daar waar de asblok versmalt is op VB en AB een A10. | FD57: C | FE57: Voor de asblok op de buitenzijde tot 3X kort in- en uitlopend A20, vervolgens inlopend A20 dat overgaat in afrondingsprofiel. | FJ57: G | FK57: Voorarmbeugel B. Voorarmbeugel D. | FL57: I4 | FM57: D | FO57: Bevestiging boom type B,C en D | FT57: G | FV57: Op de kopse zijde een A10. Kop N. | FY57: B | FZ57: Kop L. Uitgewerkte profielering aan de onderkant. | GA57: Wagenrong type D. | GH57: 2630 | GI57: Ja | GJ57: A | GK57: A | GN57: 890 | GO57: 500 | GQ57: lamoenframe | GR57: A3/0/0 | GS57: Ronde pennen opgespiëd, steken 100 mm uit. | GT57: Scharniereinden kop B. | GX57: A | GY57: 1350 | GZ57: EBA | HB57: lamoenboom | HC57: C | HD57: Voor de voorschoot een inlopend afschuiingsprofiel dat overgaat in afrondingsprofiel. Achter voorschoot een afrondingsprofiel | HG57: 700 | HH57: 1900 | HP57: AA | HQ57: 980 | HU57: 920 | HZ57: Ba6/2 | IG57: D | IK57: A | IM57: Op de voorkant zijn twee zware metalen rongebeugels type E. | IP57: 180 | IQ57: 110 | IR57: 960 | IT57: 1570 | IU57: A | IZ57: 100° | JB57: 90° | JD57: 90° | JE57: Aa4/0 | JG57: Ronde pennen. | JH57: Zijbord voorstuk: Horizontale betimmering met 2 opgetimmerde staanders en 2 liggers. | JI57: Op de bovenregel 3 rongenbeugels type A. | JL57: 400 | JM57: A | JN57: Vierkante armeinden steken 130 uit. Op VO een ingewerkt halfrond profiel met breedte van 10 mm. | JO57: Op de voorkant zijn twee metalen krammen. | JR57: Ak2 en Ak3 | JU57: 580 | JV57: rong | JW57: BID | KJ57: CA1 | KP57: A | KQ57: B | LF57: B | LG57: A | LH57: A | LI57: Verfsysteem na 1960.
A58: 55 | C58: V 2004-0010 | D58: Linker lamoenboom | E58: Tussen | F58: 1880 | G58: 1930 | H58: Karrenmuseum Essen vzw | I58: Wagenmaker | J58: Druyts | M58: Afkomst | P58: 2320 | Q58: Hoogstraten | R58: Antwerpen | S58: België | T58: C | U58: Cb | V58: Ad | W58: Hoogkar | X58: Hoogkar, twee wielen, 2 rechte lamoenbomen met dwarsregels, betimmering, sponnenzijbord en afneembaar voor- en achterbord. | Y58: wiel | Z58: hout | AA58: lamoenboomen | AB58: hout | AC58: kar | AD58: hout | AE58: karsteun | AF58: hout | AG58: verbindingselementen | AH58: metaal | AK58: 2 | BQ58: 2 | BR58: A | BS58: 1580 | BT58: 14/7 | BU58: A. | BV58: 480 | BW58: 314 | BX58: 76 | BZ58: 60 | CB58: =ASIN(CE58/CD58) * 180 / 3.14 -> 5.125114314 | CD58: 560 | CE58: 50 | CG58: 85 | CH58: 70 | CI58: Rkant, kwarthol, vlak, kwartrond, rkant, vlak. | CJ58: 1/8 hol, vlak | CK58: D. | CM58: C | CO58: A | CP58: 40 | CQ58: 108 | CS58: 1M | CT58: 2S | CU58: 2K | CW58: 33 | CX58: 1640 | CY58: AA0/1 | CZ58: Industrieel vervaardigd | DA58: A | DB58: A | DC58: 1BM6 | DD58: 2BB6 | DE58: 2BK6 | DH58: AC30 | DT58: A | DV58: D | DX58: laadboom | DY58: 28 | EA58: BB4 en BBVA | GN58: 765 | GQ58: lamoenframe | GR58: DA11 | GS58: Ronde pennen, eerste en laatste steken 105 uit. De eertse dwarsregel is opgesloten met een metalen opsluitpen. | GT58: Op OV en OA van de dwqrsregels is een in- en uitlopend A15. | GV58: B | GW58: Verbreedboom ter hoogte van het zijbord. Op de verbreedboom 2 rognenbeugel A (zijleest) | GX58: A | HB58: lamoenboom | HC58: B | HD58: Terhoog te va de zijborden inlopende afrondingprofiel aar voor. Tussen de kopse einden en het voorscoot is op de bovenkant een metalen oog vastgezet met metalen kramg op beide bomen. Achter de achtreste dwarsregel inlopend afschuiningsprofiel, schuin oplopend versmallend in de breedte | HG58: 725 | HH58: 1700 | HI58: AA2 | HL58: AA | HP58: AA | HQ58: 780 | HU58: 1100 | HZ58: A | IG58: D | IP58: 280 | IR58: 1100 | IT58: 2360 | IU58: A | IV58: 505 | IW58: 270 | IZ58: 90° | JB58: 90° | JD58: 90° | JE58: Am4/3. | JH58: De rongen steken 80 uit. Op VL en VR van de tussenstaanders en VO van de bovenregel is een ingewerkt ogiefprofiel met breedte van 10 mm. | JL58: 475 | JP58: F | JQ58: De stsanders van de zijleest zijn strerk S-vormig gebogen. | JU58: 590 | JV58: rong | JW58: BFA | LF58: A | LG58: A | LH58: B | LI58: Voorbord niet aanwezig.
A59: 56 | C59: V 2009-0001 | D59: Linker lamoenboom | E59: Tussen | F59: 1880 | G59: 1930 | H59: Karrenmuseum Essen vzw | M59: Afkomst | P59: 2400 | Q59: Mol | R59: Antwerpen | S59: België | T59: C | U59: Cb | V59: Ad | W59: Hoogkar | X59: Hoogkar, twee wielen, 2 rechte lamoenbomen met dwarsregels, betimmering, sponnenzijbord en afneembaar voor- en achterbord. | Y59: wiel | Z59: hout | AA59: lamoenboomen | AB59: hout | AC59: kar | AD59: hout | AE59: karsteun | AF59: hout | AG59: verbindingselementen | AH59: metaal | AK59: 2 | BQ59: 2 | BR59: A | BS59: 1400 | BT59: 12/6 | BU59: A. | BV59: 470 | BW59: 295 | BX59: 68 | BZ59: 48 | CB59: =ASIN(CE59/CD59) * 180 / 3.14 -> 2.195956468 | CD59: 470 | CE59: 18 | CG59: 78 | CH59: 65 | CI59: Rkant, kwarthol, 1/8 rond, Rkant, vlak. | CJ59: Rkant, 1/8 rond. | CK59: B. | CM59: A | CO59: A | CP59: 50 | CQ59: 105 | CS59: 1M | CT59: 2S | CU59: 2K | CW59: 34 | CX59: 1530 | CY59: AA0/1 | CZ59: Industrieel vervaardigd | DA59: A | DB59: A | DC59: 1BM6 | DD59: 2BB6. | DH59: AE50 | DI59: Versmallend door 1/8 hol. | DT59: A | DV59: AC | DW59: 230 x 120 | DX59: laadboom | DY59: 25 | EA59: BB4 en BBVA | GN59: 810 | GQ59: lamoenframe | GR59: DA9/3 | GS59: Ronde pennen, eerste pen steekt 100 uit. | GT59: Op OV en, OA van de dwarsregels is een in- en uitlopend A15. | GU59: Op de onderkant van de achtste dwarsregel is een metalen oog vastgezet met metalen kram. | GV59: B | GW59: Verbreedboom ter hoogte van het zijbord. | GX59: A | HB59: lamoenboom | HC59: D | HG59: 790 | HH59: 1800 | HI59: AA2 | HL59: BA | HP59: AA | HQ59: 930 | HU59: 1000 | HZ59: A | IG59: A | IP59: 170 | IR59: 1060 | IT59: 310 | IU59: A | IV59: 500 | IW59: 330 | IZ59: 90° | JB59: 90° | JD59: 90° | JE59: Al4/0. | JG59: Ronde pennen steken 15 mm uit. | JH59: Op halve hoogte is doorheen de betimmering een zwaar metalen oog met ring aan de binnezijde. | JL59: 570 | JM59: B | JN59: Op VO is een in- en uitlopend A20. | JO59: Op de voorkant zijn terhoogte van de rongen 4 rongebeugel type A. | JU59: 570 | JV59: rong | JW59: BIA | JY59: CA1 | KA59: Op de VL en VR van de staanders is een ingewerkt halfrond profiel met beedte van 10 mm. | KF59: B | KG59: E | KJ59: CA1. | KL59: Op de VL en VR van de staanders is een ingewerkt halfrond profiel met beedte van 10 mm. | KP59: B | KQ59: E | LF59: A | LG59: A | LH59: B | LI59: Voor- en achterbord niet aanwezig.
A60: 57 | C60: V 2013-0008 | E60: Tussen | F60: 1930 | G60: 1950 | H60: Karrenmuseum Essen vzw | M60: Afkomst | P60: 4416 RJ | Q60: Sint-Pieterspolder | R60: Zeeland | S60: Nederland | T60: E | U60: Eb | V60: Da | W60: Rolwagen | X60: Rolwagen, twee masieve achterwielen, twee voorwielen draaibaar bevestigd onder het laadvlak. | Y60: wiel | Z60: hout | AA60: draagbomen | AB60: hout | AC60: wagen | AD60: hout | AE60: verbindingselementen | AF60: metaal | AK60: 4 | AL60: 2 | AM60: B | AN60: 440 | AQ60: 190 | AR60: 120 | AX60: 0 | BA60: 60 | BG60: A. | BP60: 1310 | BQ60: 2 | BR60: B. | BS60: 530 | BV60: 190 | CB60: 0 | CX60: 1320 | CY60: AA2/1 | DA60: I | DT60: B | DY60: De as is vastgezet doormiddel van de flezen met bout en moer met het metalen uitvulframe met de draagbomen. | EH60: As AA0/1. | EJ60: D | EL60: G2 | ER60: 800 | FD60: DA | FJ60: I | FL60: A | FO60: Gelast | FP60: A | FQ60: 1030 | GH60: 1440 | GQ60: draagframe | GR60: WB4 | GT60: Laadbomen uit metalen I-profielen. | HC60: Rechte metalen Iprofile. Op de voorkant 2 rongenbeugels typ E. | HU60: 550 | HZ60: A | IG60: E | IR60: 1010 | IT60: 2000 | KV60: X | LF60: A | LG60: A | LH60: A
A61: 58 | C61: V 1993-0355 | D61: Linker laadboom | E61: Tussen | F61: 1880 | G61: 1930 | H61: Karrenmuseum Essen vzw | N61: Laatste gebruiker | O61: De Rijcke | P61: 4416 RJ | Q61: Kruiningen | R61: Zeeland | S61: Nederland | T61: D | U61: Db | V61: Da | W61: Rolkar | X61: Rolkar, twee achterwiel, één houten masief voorwiel draaibaar bevestigd onder het laadvlak. | Y61: wiel | Z61: hout | AA61: draagbomen | AB61: hout | AC61: kar | AD61: hout | AE61: verbindingselementen | AF61: metaal | AK61: 3 | AL61: 1 | AM61: B | AN61: 360 | AP61: A | AQ61: 180 | AR61: 90 | AX61: 0 | BA61: 75 | BC61: Vlak | BD61: Vlak | BI61: 25 | BK61: 2K | BQ61: 2 | BR61: A | BS61: 600 | BT61: 10/5 | BU61: A | BV61: 200 | BW61: 200 | BX61: 50 | BZ61: 40 | CB61: 0 | CG61: 55 | CH61: 95 | CI61: Rkant, vlak. | CJ61: Rkant, 1/8 rond. | CK61: C | CM61: A | CO61: C | CQ61: 25 | CS61: 1M | CT61: 2S | CU61: 2K | CW61: 28 | CX61: 1400 | CY61: BA0/1 | DA61: H | DT61: A | DX61: draagboom | DZ61: Uitvulblok A. | EH61: AA0/1 | EL61: D1 | FL61: E | FP61: BA | FS61: Trekbeugel EF. | GH61: 1300 | GN61: 880 | GQ61: draagframe | GR61: C4/0 | GS61: Vierkante pennen, gebout. | GT61: De eerste dwarsregel is verbreed zodat het centergat hierin is gevat. | HB61: draagboom | HC61: A | HE61: 2 rongenbeugels type E. | HU61: 550 | HZ61: A | IG61: E | IP61: 95 | IQ61: 95 | IR61: 1050 | IT61: 1870 | KV61: X | LF61: A | LG61: A | LH61: A
A62: 59 | C62: V 1983-0116 | D62: Linker laadboom | E62: Tussen | F62: 1880 | G62: 1930 | H62: Karrenmuseum Essen vzw | M62: Afkomst | P62: 2910 | Q62: Essen | R62: Antwerpen | S62: België | T62: D | U62: Db | V62: Ad | W62: Driewielkar, klein | X62: Kar, twee achterwielen, één klein voorwiel draaibaar bevestigd met het draagframe en sponnenzijbord | Y62: wiel | Z62: hout | AA62: draagbomen | AB62: hout | AC62: kar | AD62: hout | AE62: verbindingselementen | AF62: metaal | AK62: 3 | AL62: 1 | AM62: A | AN62: 460 | AO62: 4/4 | AP62: A | AQ62: 320 | AR62: 134 | AS62: 55 | AU62: 48 | AX62: 0 | BA62: 55 | BB62: 70 | BC62: Vlak, rkant, kwarthol, vlak, rkant, | BD62: Vlak, rkant, kwarthol, vlak, rkant, | BE62: B | BF62: A | BI62: 28 | BK62: 2K | BL62: 2S | BO62: 28 | BQ62: 2 | BR62: A | BS62: 762 | BT62: 12/6 | BU62: A | BV62: 415 | BW62: 300 | BX62: 70 | BZ62: 45 | CB62: =ASIN(CE62/CD62) * 180 / 3.14 -> 12.23198969 | CD62: 170 | CE62: 36 | CG62: 68 | CH62: 85 | CI62: Ogief. | CJ62: Vlak. | CK62: C | CM62: B | CO62: D | CP62: 25 | CQ62: 85 | CS62: 1M | CT62: 2S | CU62: 2K | CW62: 25 | CX62: 1550 | CY62: AA0/1 | DA62: A | DB62: A | DC62: 2BBS4. | DT62: I6 | DX62: draagboom | EA62: BBS | EB62: 4 verstevigingsdriehoeken, 1/8 rond in de lengte. | EH62: AA0/1 | EJ62: D | EL62: E1 | ER62: 500 | FL62: E | FP62: B | FQ62: 430 | FS62: Trekbeugel EF. | GH62: 1300 | GN62: 850 | GQ62: draagframe | GR62: C5/0 | GS62: Ronde pennen, getapt. | HB62: draagboom | HC62: A | HE62: 3 rongenbeugels type A. | HU62: 650 | HZ62: A | IG62: A | IP62: 100 | IQ62: 100 | IR62: 1000 | IT62: 1950 | IU62: B | JE62: Ak3 | JL62: 700 | JU62: 300 | JV62: rong | JW62: BCC. | JY62: BA2 | KJ62: BA2 | KV62: X | LF62: B | LG62: A | LH62: A | LI62: Verfsysteem na 1960.
A63: 60 | C63: V 2001-0077 | D63: Linker lamoenboom | E63: Tussen | F63: 1880 | G63: 1930 | H63: Karrenmuseum Essen vzw | N63: Laatste gebruiker | O63: Marck | P63: 2500 | Q63: Lier | R63: Antwerpen | S63: België | T63: C | U63: Cg | V63: Ad | W63: Vlaamse aardkar | X63: Aardkar, twee wielen, lamoenframe scharnierbaar bevestigd met karbak, sponnenzijbord, zijleesten en afneembaar voor- en achterbord | Y63: wiel | Z63: hout | AA63: lamoenboomen | AB63: hout | AC63: kar | AD63: hout | AE63: karsteun | AF63: hout | AG63: verbindingselementen | AH63: metaal | AK63: 2 | BQ63: 2 | BR63: A | BS63: 1325 | BT63: 12/6 | BU63: A. | BV63: 420 | BW63: 295 | BX63: 70 | BZ63: 50 | CB63: =ASIN(CE63/CD63) * 180 / 3.14 -> 1.866720061 | CD63: 430 | CE63: 14 | CG63: 74 | CH63: 55 | CI63: Rkant, ogief. | CJ63: Rkant, 1/8 hol, 1/8 rond. | CK63: B. | CM63: A | CO63: B | CP63: 50 | CQ63: 88 | CR63: A | CS63: 1M | CT63: 2S | CU63: 2K | CW63: 32 | CX63: 1475 | CY63: AA0/1 | CZ63: Industrieel vervaardigd | DA63: A | DB63: A | DC63: 1BM4 | DD63: 2BBB4 | DH63: AC10 | DJ63: Geprofileerd door accolade vorm. | DT63: A | DV63: AC | DW63: 200 x 150 mm | DX63: laadboom | DY63: 25 | EA63: BBS | GI63: Ja. | GJ63: A | GK63: AA | GN63: 870 | GO63: 520 | GQ63: lamoenframe | GR63: A3/0/0 | GS63: Ronde pennen gebout, steken 78 mm uit. | GT63: Scharniereinden kop B. | GX63: C | GZ63: A | HB63: lamoenboom | HC63: C | HD63: Voor de voorschoot inlopen A15. Achter de voorschoot inlopende A15. | HG63: 850 | HH63: 1770 | HI63: AA2 | HP63: AA | HQ63: 790 | HU63: 900 | HZ63: Ba5/0 | IA63: Doorgaande ronde pennen steken 15 mm uit. | IG63: B | IK63: B | IL63: Versmallend door schuin oplopend. Met laadhoutbeugel type A. | IP63: 170 | IQ63: 140 | IR63: 930 | IT63: 1870 | IU63: A | IZ63: 90° | JB63: 90° | JD63: 90° | JE63: Ab5/0 | JG63: Ronde pennen steken 40 uit. | JH63: Verbindingsregel met een uitgezaagde accoladebogen. | JL63: 450 | JM63: A | JN63: Ronde armeinden steken 100 uit. Op VO een in- en uitlopend A15. Op VB is een doorgaand ingewerkt halfrond profiel met breedte van 10 mm. | JO63: Ter hoogte van de ronge zijn 4 rongenbeugels type E. | JP63: B | JU63: 600 | JV63: Rong APA. | JY63: DA2 | KA63: Voorkomend doorloopend A 25. | KF63: A | KG63: C en E | KJ63: FB. | KP63: A | KQ63: B | LF63: B | LG63: A | LH63: A | LI63: Verfsysteem na 1960.
A64: 61 | C64: V 2000-0067 | D64: Linker voorarm | E64: Tussen | F64: 1880 | G64: 1930 | H64: Karrenmuseum Essen vzw | M64: Afkomst | O64: A. Coppieters | P64: 8210 | Q64: Loppem | R64: West-Vlaanderen | S64: België | T64: E | U64: Ek | V64: Bf | W64: Boerenwagen met paneel, vast | X64: Wagen, achteronderstel met twee achterwielen, verbonden doormiddel van een langboom met het vooronderstel. vooronderstel met twee kleine voorwielen draaibaar verbonden met voorarmen, woelhout en draaispil. Afneembaar laadvlak, metalen rongen en afneembaar voor- en achterbord. Het zijbord is vast verbonden met het laadvlak en bestaat uit één paneel. | Y64: wiel | Z64: hout | AA64: langboom | AB64: hout | AC64: wagen | AD64: hout | AE64: verbindingselementen | AF64: metaal | AK64: 4 | AL64: 2 | AM64: A | AN64: 870 | AO64: 12/6 | AP64: B. | AQ64: 240 | AR64: 260 | AS64: 70 | AU64: 45 | AX64: =ASIN(AZ64/AY64) * 180 / 3.14 -> 5.193635515 | AY64: 210 | AZ64: 19 | BA64: 80 | BB64: 75 | BE64: C. | BF64: A. | BP64: 1600 | BQ64: 2 | BR64: A | BS64: 1400 | BT64: 12/6 | BU64: C. | BV64: 280 | BW64: 290 | BX64: 80 | BZ64: 75 | CB64: 0.6 | CC64: 5.7 | CD64: 450 | CE64: Spaak 1 = 5 Spaak 2 = 45 | CG64: 75 | CH64: 75 | CK64: B. | CL64: Versmallend in de dikte. | CM64: A | CX64: 1645 | CY64: AA0/1 | DA64: A | DB64: A | DC64: 2BK4 | DH64: BB | DI64: Versmallend door kwarthol. | DL64: A | DM64: Versmallend door kwarthol en vlak. | DN64: Daar waar de bovenblok versmald is op VO en AO een A8. | DP64: A | DT64: D | DY64: Bevestiging langboom type A en C. | EH64: As AA0/1. | EJ64: A | EL64: A1 | EM64: A | EN64: CMA | EO64: AL | ES64: C | ET64: 2BM4 | EU64: 2BK4 | EX64: CB | EY64: Versmallend door 1/8 rond. | FA64: B | FB64: Versmallend door kwarthol. | FD64: A | FG64: AA | FH64: L-profiel | FJ64: D0 | FK64: Voorarmbeugel B. Voorarmbeugel D. Voorarmmetaal A | FL64: D | FO64: Bevestiging langboom type A | FP64: Disselboom type A. L. 1630 TrekBeugel B. Disseboom handgreep type A. Disselboomscharnierbeugel type A | FR64: A | FT64: A | FU64: Versmallend door schuinoplopend, recht, vlak en 1/8 hol. | GA64: IE | GB64: IE | GD64: A | GF64: Langboombeugel A | GH64: 2140 | HU64: 960 | HW64: J | HY64: Linkerzijde, zijbord, onderkant, midden. | HZ64: Db6/0/2 | IR64: 980 | IT64: 3200 | IU64: A | IZ64: 90° | JB64: 90° | JD64: 90° | JE64: Bh5/5 | JI64: De verbindingsregels van het zijbord zijn verbonden met metalen bladprofielen met de verbindingsregels van het laadvlak. Op de bovenzijde zijn 3 rongenbeugels type E. Verbindingselement D. | JU64: 400 | KV64: X | LF64: A | LG64: A | LH64: A
A65: 62 | C65: V 2009-0003 | E65: Tussen | F65: 1880 | G65: 1930 | H65: Karrenmuseum Essen vzw | M65: Afkomst | P65: 8950 | Q65: Nieuwkerke | R65: West-Vlaanderen | S65: België | T65: E | U65: En | V65: Ad | W65: Boerenwagen met sponnenzijbord | X65: Wagen, achteronderstel met twee achterwielen, verbonden doormiddel van een langboom met het vooronderstel. vooronderstel met twee kleine voorwielen draaibaar verbonden met voorarmen, woelhout en draaispil. Afneembaar laadvlak, metalen rongen en afneembaar voor- en achterbord. Het zijbord is bestaat uit paneel, bovenregel en sponnen vastgezet op met beugel op de laadboom. | Y65: wiel | Z65: hout | AA65: langboom | AB65: hout | AC65: wagen | AD65: hout | AE65: verbindingselementen | AF65: metaal | AK65: 4 | AL65: 2 | AM65: A | AN65: 875 | AO65: 12/6 | AP65: A | AQ65: 410 | AR65: 283 | AS65: 70 | AU65: 53 | AX65: =ASIN(AZ65/AY65) * 180 / 3.14 -> 4.303403947 | AY65: 200 | AZ65: 15 | BA65: 75 | BB65: 90 | BC65: Rkant, 1/8 hol, vlak, kwart rond, rkant, vlak. | BD65: Rkant, 1/8 rond, rkant, vlak. | BE65: D. | BF65: B. | BG65: C. | BH65: 8 | BI65: 40 | BJ65: A | BK65: 1M | BL65: 2S | BM65: 1K | BO65: 33 | BP65: 1480 | BQ65: 2 | BR65: A | BS65: 1420 | BT65: 14/7 | BU65: A. | BV65: 400 | BW65: 313 | BX65: 70 | BZ65: 50 | CB65: 2.8 | CC65: 6 | CD65: 450 | CE65: Spaak 1 = 22 Spaak 2 = 47 | CG65: 85 | CH65: 90 | CI65: Rkant, 1/8 hol, Vlak, kwart rond, Rkant, vlak. | CJ65: Rkant, 1/8 rond, rkant, vlak. | CK65: D. | CM65: B | CO65: C | CP65: 10 | CQ65: 40 | CR65: A | CS65: 1M | CT65: 2S | CU65: 2K | CW65: 33 | CX65: 1480 | CY65: AA0/1 | CZ65: Industrieel vervaardigd | DA65: A | DB65: B | DC65: 4BM4 | DH65: BB | DI65: Versmallend door kwarthol. | DJ65: Op VO, VB, AB en AO is een doorgaand ingewerkt halfrond profiel met breedte van 10 mm. | DL65: A | DM65: Versmallend door kwarthol en vlak. | DP65: B | DS65: Op alle zijden een in- en uitlopend A14. | DT65: C | DV65: C | DY65: Langboom opsluiting type A en B. | EH65: As AA0/1. | EJ65: A | EL65: A1 | EM65: ES | ER65: 200 | ES65: C | ET65: 2BM4 | EU65: 1BMS4 | EX65: CB | EY65: Versmallend door kwarthol. | EZ65: Op VO, VB, AB en AO is een doorgaand ingewerkt halfrond profiel met breedte van 10 mm | FA65: A | FB65: Versmallend door kwarthol en vlak. Kop E. | FC65: Op VO is een ingewerkt halfrond profiel met breedte van 10 mm. | FD65: A | FG65: C | FJ65: D0 | FL65: C | FO65: Bevestiging langboom type A | FT65: A | FV65: Kop O. | GA65: AC | GB65: AC | GD65: A | GH65: 2600 | HU65: 1070 | HZ65: Dc4/4/2 | ID65: A | IE65: Versmallend door 1/8 hol. | IG65: B | IR65: 1100 | IT65: 4100 | IU65: A | IV65: 50 | IW65: 50 | IZ65: 90° | JB65: 90° | JD65: 90° | JE65: Ae10/0 | JH65: De staanders zijn 95° schuin naar achteren gericht. | JL65: 355 | JM65: A | JN65: Vierkante armeinden steken 110 mm uit. | JO65: 5 rongebeugels type E. | JU65: 450 | JV65: rong | JW65: AHA | KF65: A | KG65: B | KP65: A | KQ65: B | KV65: X | LF65: A | LG65: B | LH65: A | LI65: Licht verzwakt.
A66: 63 | C66: 1972-2358 | D66: Linker voorarm | E66: Bouwjaar | F66: 1914 | H66: Karrenmuseum Essen vzw | M66: Afkomst | O66: Mr. Schoonjans | P66: 3000 | Q66: Leuven | R66: Vlaams-Brabant | S66: België | T66: D | U66: Dg | V66: Ad | W66: Driewielkar met rechte draagboom | X66: Driewielkar, twee achterwielen, één klein voorwiel draaibaar bevestigd met de draagbomen met voorschoot. Kipbare karbak, sponnenzijbord, opzetborden en afneembaar voor- en achterbord. | Y66: wiel | Z66: hout | AA66: draagbomen | AB66: hout | AC66: kar | AD66: hout | AE66: verbindingselementen | AF66: metaal | AK66: 3 | AL66: 1 | AM66: A | AN66: 640 | AO66: 10/5 | AP66: A | AQ66: 360 | AR66: 175 | AS66: 52 | AU66: 46 | AX66: 0 | BA66: 63 | BB66: 60 | BC66: 1/8 hol, vlak. | BD66: 1/8 hol, vlak. | BE66: B | BF66: A | BI66: 20 | BJ66: A | BK66: 2K | BL66: 2S | BO66: 30 | BQ66: 2 | BR66: A | BS66: 1045 | BT66: 12/6 | BU66: A | BV66: 335 | BW66: 283 | BX66: 66 | BZ66: 53 | CB66: =ASIN(CE66/CD66) * 180 / 3.14 -> -0.09554144551 | CD66: 300 | CE66: -0.5 | CG66: 65 | CH66: 65 | CI66: Rkant, halfrond, ogief. | CJ66: Schuinoplopend, vlak. | CK66: B | CM66: A | CO66: C | CP66: 14 | CQ66: 55 | CR66: A | CS66: 1M | CT66: 2S | CU66: 2K | CW66: 33 | CX66: 1620 | CY66: AA0/1 | DA66: A | DB66: A | DC66: 1BM6 | DD66: 2BBVV6 | DH66: AC30 | DT66: I6 | DX66: draagboom | EA66: BBVV6 gelast aan de draagboom | EH66: AB0/5 | EJ66: D | EL66: F1 | ER66: 550 | FD66: C | FJ66: A2 | FK66: Voorarmbeugel A. | FL66: O | FP66: A | FQ66: 550 | FR66: A | FS66: Trekbeugel EB. | GH66: 1750 | GI66: Ja | GJ66: B | GK66: D | GM66: A | GN66: 550 | GO66: 590 | GQ66: draagframe | GR66: BC3/0 | GU66: Betimmering deksel gericht volgens de breedte. Scharnier A. | GX66: A | GZ66: K | HB66: draagboom | HC66: Rechte metalen U profiel draagboom. | HE66: Op de buitenzijde U-vormige beugesl voor de rembalk. | HU66: 820 | HW66: K | HY66: Linkerzijde, draagframe, boven, voor het laadvlak. | HZ66: Ba5/0 | IA66: Vierkante pennen steken 25 uit. | IG66: C | IK66: A | IM66: Metaal D | IP66: 130 | IQ66: 100 | IR66: 950 | IT66: 1900 | IU66: A | IZ66: 90° | JB66: 90° | JD66: 90° | JE66: Ae4/0 | JG66: Pennen getapt | JI66: De rongen zijn aan de betimmerde zijde schuin aangesneden. | JL66: 490 | JM66: A | JN66: Vierkabte armeinden steken 140 uit. Op VO tussen de staanders een in- en uitlopend AD | JO66: 3 rongebeugels typ E. | JR66: Ak3 | JS66: 180 | JU66: 510 | JV66: rong | JW66: AHA | JY66: AA4 | KA66: Op VO tussen de staanders van de bovenregel een in- en uitlopend A30 | KB66: 2 rongenbeugels type E. | KF66: A | KG66: B | KJ66: AA4 | KL66: Op VO tussen de staanders van de bovenregel een in- en uitlopend A30. | KM66: 2 rongenbeugels E. | KP66: A | KQ66: B | KV66: X | LF66: B | LG66: A | LH66: A | LI66: Verfsysteem na 1960.
A67: 64 | C67: V 1989-0045 | D67: Linker voorarm | E67: Tussen | F67: 1880 | G67: 1930 | H67: Karrenmuseum Essen vzw | N67: Laatste gebruiker | O67: A.D. Munck | P67: 1750 | Q67: Eizeringen | R67: Vlaams-Brabant | S67: België | T67: D | U67: Dg | V67: Ac | W67: Brabantse driewielkar | X67: Driewielkar, twee achterwielen, één voorwiel draaibaar bevestigd met draagframe. Draagframe scharnierbaar bevestigd met karbak, sponnenzijbord, vast schuingeplaatste voorbord, afneembaar achterbord en opzetborden. | Y67: wiel | Z67: hout | AA67: draagbomen | AB67: hout | AC67: kar | AD67: hout | AE67: verbindingselementen | AF67: metaal | AK67: 3 | AL67: 1 | AM67: A | AN67: 600 | AO67: 8/4 | AP67: A | AQ67: 340 | AR67: 185 | AS67: 60 | AU67: 46 | AX67: 0 | BA67: 60 | BB67: 65 | BC67: Rkant, kwarthol, 1/8 rond | BD67: Rkant, kwarthol, 1/8 rond | BE67: J | BF67: A | BI67: 23 | BJ67: A | BK67: 2K | BL67: 2S | BO67: 25 | BQ67: 2 | BR67: A | BS67: 1130 | BT67: 12/6 | BU67: A | BV67: 350 | BW67: 272 | BX67: 78 | BZ67: 52 | CB67: =ASIN(CE67/CD67) * 180 / 3.14 -> 2.258835801 | CD67: 330 | CE67: 13 | CG67: 75 | CH67: 72 | CI67: Rkant, kwarthol, ogief. | CJ67: Rkant, ogief | CK67: D | CM67: A | CO67: C | CP67: 55 | CQ67: 80 | CR67: A | CS67: 1M | CT67: 2S | CU67: 2K | CW67: 30 | CX67: 1610 | CY67: AD2/1 | CZ67: In het midden aan elkaar gesmeed. | DA67: A | DB67: A | DC67: 2BBSVV6. | DH67: AC10 | DT67: I6 | DX67: draagboom | DY67: 10 | EA67: BBSVV6 | EH67: AA0/1 | EJ67: D | EL67: G1 | ER67: 730 | FD67: C | FJ67: A1 | FK67: Voorarmbeugel A | FL67: E | FP67: A | FQ67: 550 | FR67: A | FS67: Trekbeugel E. | GH67: 1420 | GI67: Ja | GJ67: D | GK67: D | GM67: A | GN67: 680 | GO67: 770 | GQ67: draagframe | GR67: BC3/0 | GT67: De eerste dwarsregels is halfrond in de lengte. | GU67: Het frame is aan de buitenzijde over de volledige lengte belegd met bladstaal. Betimmering deksel gericht volgens de breedte. Scharnier type B. | GX67: D | GZ67: L | HB67: draagboom | HC67: A | HE67: Op de buitenzijde U-vormige beugesl voor de rembalk. | HU67: 850 | HW67: K | HY67: Linkerzijde, draagframe, boven, voor het laadvlak. | HZ67: Ba5/0 | IA67: Niet doorgaande pennen. | IG67: C | IK67: A | IM67: Achteraan metaal D | IP67: 100 | IQ67: 80 | IR67: Vooraan: 920; Achteraan: 1350 | IT67: 1850 | IU67: A | IZ67: 105° | JB67: 105° | JD67: 90° | JE67: Ae4/0 | JG67: Pennen getapt | JI67: Rongen acheraan 90° en naar voren tot lopend tot 105° | JL67: 490 | JM67: A | JN67: Vooraan vierkante armeinden steken 120 mm uit, achteraan ronde armeinden.. Op VO is tussen de staanders een in- en uitlopend A25. | JO67: In de bovenregel zijn twee sleuven waarin de metalen rongen van de opzetstukken gevat zitten. | JR67: Ak2 | JS67: 190 | JU67: 490 | JV67: rong | JW67: AHA | JY67: EA3 | KA67: Op VO tussen de staanders van de bovenregel een in- en uitlopend A30. | KB67: De linker en rechterstaander zijn 105° gericht t.o.v. het laadvlak. 2 rongenbeugels type E. | KJ67: AA3 | KL67: Op VO tussen de staanders van de bovenregel een in- en uitlopend A30. Op de kopse einden van de betimmering een repetitieve gutsinsnijdingen. | KM67: De linker en rechterstaander zijn 105° gericht t.o.v. het laadvlak. 2 rongenbeugels type E. | KP67: A | KQ67: B | KV67: X | LF67: A | LG67: A | LH67: A
A68: 65 | C68: V 2010-0004 | D68: Linker voorarm | E68: Tussen | F68: 1880 | G68: 1930 | H68: Karrenmuseum Essen vzw | N68: Laatste gebruiker | O68: Guido Paridaens | P68: 1502 | Q68: Lembeek | R68: Vlaams-Brabant | S68: België | T68: D | U68: Dg | V68: Ac | W68: Brabantse driewielkar | X68: Driewielkar, twee achterwielen, één voorwiel draaibaar bevestigd met draagframe. Draagframe scharnierbaar bevestigd met karbak, sponnenzijbord, vast schuingeplaatste voorbord, afneembaar achterbord en opzetborden. | Y68: wiel | Z68: hout | AA68: draagbomen | AB68: hout | AC68: kar | AD68: hout | AE68: verbindingselementen | AF68: metaal | AK68: 3 | AL68: 1 | AM68: A | AN68: 660 | AO68: 8/4 | AP68: A | AQ68: 370 | AR68: 220 | AS68: 62 | AU68: 50 | AX68: 0 | BA68: 70 | BB68: 65 | BC68: Vlak, kwarthol, vlak, Schuinoplopend, rkant, vlak | BD68: Vlak, kwarthol, vlak, Schuinoplopend, rkant, vlak | BE68: B | BF68: A | BI68: 30 | BJ68: A | BK68: 2K | BL68: 2S | BO68: 30 | BQ68: 2 | BR68: A | BS68: 1120 | BT68: 12/6 | BU68: A | BV68: 315 | BW68: 265 | BX68: 65 | BZ68: 48 | CB68: 0 | CG68: 68 | CH68: 70 | CI68: Rkant, halfrond, Ogief, rkant, vlak, | CJ68: Rkant, 1/8 rond, rkant, vlak. | CK68: B | CM68: A | CO68: C | CP68: 29 | CQ68: 70 | CR68: A | CS68: 1M | CT68: 2S | CU68: 2K | CW68: 33 | CX68: 1540 | CY68: AD2/1 | CZ68: In het midden aan elkaar gesmeed. | DA68: A | DB68: A | DC68: 2BBSVV6. | DH68: AC48 | DT68: I6 | DV68: EC | DW68: 180 x 140 mm | DX68: draagboom | DY68: 38 | EA68: BBSVV6 | EH68: AA0/1 | EJ68: D | EL68: G1 | ER68: 680 | FD68: C | FJ68: B | FK68: Trekbeugelframe A | FL68: E | FP68: a | FQ68: 560 | FS68: Trekbeugel E. | GH68: 1500 | GI68: Ja | GJ68: D | GK68: D | GM68: A | GN68: 660 | GO68: 730 | GQ68: draagframe | GR68: BC2/2 | GU68: Betimmering deksel gericht volgens de lengte. Scharnier type B. | GX68: A | GZ68: L | HB68: draagboom | HC68: A | HE68: Op de buitenzijde U-vormige beugesl voor de rembalk. | HU68: 880 | HW68: K | HY68: Linkerzijde, draagframe, boven, voor het laadvlak. | HZ68: Ba5/0 | IA68: Niet doorgaande pennen. | IK68: A | IL68: Op VB tussen de staanders een in- en uitlopend A15 | IP68: 160 | IQ68: 60 | IR68: Vooraan: 880; Achteraan: 1240 | IT68: 1900 | IU68: A | IZ68: 90° | JB68: 100° | JD68: 90° | JE68: Ba4/0/1 | JG68: Pennen getapt | JH68: Op VL en VR van de staanders een in- en uitlopend A15. Achteraan is een reflector. | JI68: Staanders achteraan 90°, voorste staander 100°. | JL68: 515 | JM68: A | JN68: Ronde armeinden steken 130 uit. Op VO is tussen de staanders een in- en uitlopend A25. | JO68: Vooraan is een metalen houten met metlaen beuhgel. Op de voorkant zijn 3 rongebeugels type A. | JR68: Ak3 | JS68: 200 | JU68: 460 | JY68: AA3 | KA68: Op VO tussen de staanders van de boven- en onderregel en op VL en VR van de staanders een in- en uitlopend A15. Bovenzijde is lichtjes rond. | KB68: Op de bovenregel 2 rongebeugel I. | KF68: Vast op de armeinden met bout | KG68: Vast tegen opgetimmerrde klos | KJ68: AA3 | KL68: Op VO tussen de staanders van de boven- en onderregel en op VL en VR van de staanders een in- en uitlopend A15. Bovenzijde is lichtjes rond. | KM68: Op de bovenregel 2 rongebeugel I. | KP68: A | KQ68: B | KV68: X | LF68: B | LG68: A | LH68: A | LI68: Verfsysteem na 1960.
A69: 66 | C69: V 2010-0005 | E69: Tussen | F69: 1880 | G69: 1930 | H69: Karrenmuseum Essen vzw | N69: Laatste gebruiker | O69: Guido Paridaens | P69: 1502 | Q69: Lembeek | R69: Vlaams-Brabant | S69: België | T69: D | U69: Dd | V69: Ad | W69: Driewielkar, klein | X69: Kar, twee achterwelen, één klein voorwiel draaibaar bevestigd met het draagframe, sponnenzijbord en afneembaar voor- en achterbord. | Y69: wiel | Z69: hout | AA69: draagbomen | AB69: hout | AC69: kar | AD69: hout | AE69: verbindingselementen | AF69: metaal | AK69: 3 | AL69: 1 | AM69: A | AN69: 500 | AO69: 8/4 | AP69: A | AQ69: 275 | AR69: 171 | AS69: 56 | AU69: 45 | AX69: 0 | BA69: 55 | BB69: 55 | BC69: Rkant, kwarthol, vlak, kwartrond. | BD69: Rkant, kwarthol, vlak, kwartrond. | BE69: B | BF69: A | BI69: 30 | BJ69: A | BK69: 2K | BL69: 2S | BO69: 20 | BQ69: 2 | BR69: A | BS69: 780 | BT69: 10/5 | BU69: A | BV69: 305 | BW69: 228 | BX69: 65 | BZ69: 48 | CB69: =ASIN(CE69/CD69) * 180 / 3.14 -> 2.867437651 | CD69: 200 | CE69: 10 | CG69: 60 | CH69: 70 | CI69: Rkan, halfrond profiel met breedt van 10 mm, kwarthol, vlak, kwartrond, | CJ69: Rkant, schuinoplopend, kwartrond. | CK69: D | CM69: A | CO69: C | CP69: 38 | CQ69: 70 | CR69: A | CS69: 1M | CT69: 2S | CU69: 2K | CW69: 27 | CX69: 1350 | CY69: AD2/1 | CZ69: In het midden aan elkaar gesmeed. | DA69: A | DB69: A | DC69: 2BBS6. | DH69: AC20 | DI69: Versmallen aan de bovenzijde door 1/8 hol profiel. | DJ69: Op VO en AO is een in- en uitlopend A30. | DT69: I6 | DV69: AC | DW69: 350 x 130 mm | DX69: draagboom | DY69: 25 | EA69: BS6 | EH69: AA0/1 | EJ69: D | EL69: G1 | ER69: 570 | FD69: C | FJ69: B. | FK69: Trekbeugelframe A. Voorarmbeugel I. | FL69: E | FP69: A | FQ69: 560 | FS69: Trekbeugel E. Disselmetaal A. | GH69: 1430 | GJ69: A | GN69: 520 | GQ69: draagframe | GR69: CS6/0 | GT69: De betimmering van de laadvloer is niet op de dwarsregels maar doormiddel van een aantal verbindingsregels en ligt los op het draagframe. | GX69: A | HB69: draagboom | HC69: A | HE69: Op de buitenzijde U-vormige beugesl voor de rembalk. | HU69: 670 | HW69: K | HY69: Linkerzijde, draagframe, boven, voor het laadvlak. | HZ69: A | IG69: A | IP69: 50 | IQ69: 80 | IR69: Vooraan: 600; Achteraan: 1000 | IT69: 2160 | IU69: A | IV69: 380 | IW69: 60 | IZ69: 90° | JB69: 90° | JD69: 90° | JE69: Ag4 | JG69: Pennen getapt. | JL69: 510 | JM69: A | JU69: 610 | JV69: rong | JW69: BEE | JY69: AA2 | KA69: Op VO van de bovenregel, VB van de onderregel tussen de staandders en VL en VR van de staanders is een in- en uitlopend A10. | KB69: Op de kopse einden van de bovenregel is een metalen U-beugel voor het opsluiten van dde armeinden van het zijbord. | KF69: A | KG69: B | KJ69: AA3 | KL69: Op VO van de bovenregel, VB van de onderregel tussen de staandders en VL en VR van de staanders is een in- en uitlopend A10. | KM69: Op de kopse einden van de bovenregel is een metalen U-beugel voor het opsluiten van dde armeinden van het zijbord. | KP69: A | KQ69: B | KV69: X | LF69: B | LG69: A | LH69: A | LI69: Verfsysteem na 1960.
A70: 67 | C70: V 2013-0009 | E70: Na. | F70: 1950 | H70: Karrenmuseum Essen vzw | M70: Afkomst | Q70: Loenhout | R70: Antwerpen | S70: België | T70: E | U70: Eg | V70: Cd | W70: Kipbare platte wagen | X70: Platte wagen, 2 achterwielen met luchtbanden en twee voorwielen met luchtbanden en draaimolen. 2-delige laadvloer waarvan het achterste gedeelte kipbaar is. Neerklapbare zijborden en afneembaar voor- en achterbord. | Y70: wiel | Z70: metaal/luchtband | AA70: draagbomen | AB70: hout | AC70: wagen | AD70: hout | AE70: verbindingselementen | AF70: metaal | AK70: 4 | AL70: 2 | AM70: C | AN70: 750 | BP70: 1580 | BQ70: 2 | BR70: C. | BS70: 830 | CX70: 1620 | CY70: EB2/2 | DA70: I | DV70: F | DX70: Uitvulframe | EH70: EB2/2 | EJ70: D | EL70: F2 | ER70: 700 | FD70: D | FJ70: H | FL70: P | FM70: F | FO70: met bout en moer vastgezet doorheen de twee dwarregels bevestid op de bovenschamelring | FP70: AA | FQ70: 1300 | FR70: A | FS70: Disselboomframe type A. | GH70: 2200 | GI70: Ja | GJ70: B | GK70: A | GN70: 800 | GO70: 1700 | GQ70: Draagframe | GR70: AD5/0 | GT70: Op alle zijden van de dwarsreegels een doorgaand A5. | GU70: De buitenste betimmeringplank is dikter en kan beschout worden als regel, in deze regel zijn twee vierkatne gaten voor het ontvangen van rongen. Koen vooraan gelijk klopt niet | GX70: A | GY70: 1700 | GZ70: CAA | HB70: draagboom | HC70: A | HD70: Halfweg versmallend door 1/8 hàol profiel in de breedte. Doorgaand A14 | HU70: 950 | HZ70: Ba6/0 | IA70: De dwarsregels zijn halfhouts verbonden met de laadbomen. | IB70: De betimmering aan de zijde is dikker en kunnen beshouwd worden als regels. In deze regel zijn 3 vierkant gaten woor het opsluiten van de rongen. De regel is aan de buitenzijde belegd met bladstaal en slutien de rongen op. | IC70: Op de eerste en laatste dwarsregel zijn 2 rongenbeugel type E. | IG70: U-sponinng in de zijregel opgesloten door bladstaal | IH70: E | IK70: B | IL70: Versmallend door schuinoplopend. Op VO is een afrondingsprofiel. | IR70: 1700 | IT70: 1620 | IU70: A | IZ70: 90° | JB70: 90° | JD70: 90° | JE70: Ak3 | JH70: Kop B. | JL70: 660 | JU70: 250 | JV70: rong | JW70: AGA | JY70: BA2 | KB70: Breedte: 250 mm. | KF70: T | KG70: D | KJ70: BA2 | KM70: Breedte: 250 mm. | KP70: T | KQ70: D | KV70: B | KW70: A | KX70: A | LF70: A | LG70: A | LH70: A
A71: 68 | C71: V 1977-2746 | D71: Linkjer draagboom | E71: Tussen | F71: 1880 | G71: 1930 | H71: Karrenmuseum Essen vzw | M71: Afkomst | S71: Duitsland | T71: C | U71: Ci | V71: Ba | Y71: wiel | Z71: hout | AA71: lamoenboomen | AB71: hout | AC71: kar | AD71: hout | AE71: verbindingselementen | AF71: metaal | AK71: 2 | BQ71: 2 | BR71: A | BS71: 1435 | BT71: 12/6 | BU71: B. | BV71: 300 | BW71: 240 | BX71: 80 | BZ71: 65 | CB71: =ASIN(CE71/CD71) * 180 / 3.14 -> 5.524712432 | CD71: 530 | CE71: 51 | CG71: 60 | CH71: 70 | CI71: Vlak, kwarthol. | CJ71: Vlak, kwarthol. | CK71: D | CL71: Versmallend in de breedte. | CM71: A | CX71: 1590 | CY71: AA0/1 | DA71: A | DT71: M | DX71: Uitvulblok A | GN71: 920 | GU71: 2 rechte draagbomen verbonde met 2 regels en vooraan een trehoutregel. Tussen de de twee regels is in hetm idden een middenligger. Het draaframe is betimmert in ee sponing in de draagboom, middenligger en tussenregels Op de voorste trekregel is in het midden, link e rechts drie metalen kliene metalen oog vastgezet met een lichaam op de oderkant van de regels. voeneaan is metalen baldprofiel functie onbekend. | HB71: draagboom | HC71: A | HU71: 820 | HZ71: A | IR71: 1080 | IT71: 2370 | IU71: A | IV71: 370 | IZ71: 90° | JB71: 90° | JD71: 90° | JE71: Bk | JI71: 2 buitenstaanders gevat in de draagboom en bovenregel verbonden met pen gat . Tussenin 2 verbindingstangen en 3 opgetimmerde kruisen met regels halfhouts vebonden gevat tussen de buitenstaander, bovernregel en onderegel. De zijden van de regels, en staanders hebben afrondingsprifel. De kruisen in- en uitlopend afrondingsprofiel. Op het paneel zijn 14 metalen beugeltjes. | JM71: A | JN71: Vierkante armeinde steken 60 uit. | JU71: 610 | LF71: A | LG71: A | LH71: A
A72: 69 | C72: V 1983-0017 | D72: Linker voorarm | E72: Tussen | F72: 1880 | G72: 1930 | H72: Karrenmuseum Essen vzw | I72: Wagenmaker | J72: L. Bartelen | K72: Smid | L72: Smeyers | N72: Laatste gebruiker | O72: Stess Vandekeybus | P72: 2910 | Q72: Essen-Hoek | R72: Antwerpen | S72: België | T72: C | U72: Eh | V72: Aj | W72: Vlaamse aardkar met voorloper | X72: Aardkar, twee wielen, het lamoenframe is afgenomen en vervangen door een draagframe scharnierbaar bevestigd met karbak, onder de lamoenbomen een draaibaar vooronderstel, op de lamoenbomen een afneembaar laadvlak, sponnenzijbord, zijleesten en afneembaar voor- en achterbord | Y72: wiel | Z72: hout | AA72: lamoenboomen | AB72: hout | AC72: kar | AD72: hout | AE72: verbindingselementen | AF72: metaal | AK72: 4 | AL72: 2 | AM72: A | AN72: 800 | AO72: 12/6 | AP72: A | AQ72: 400 | AR72: 260 | AS72: 78 | AU72: 50 | AX72: =ASIN(AZ72/AY72) * 180 / 3.14 -> 2.293605536 | AY72: 200 | AZ72: 8 | BA72: 70 | BB72: 90 | BC72: Kwarthol, vlak, kwartrond | BD72: 1/8 rond. | BE72: D | BF72: B | BG72: D | BH72: 32 | BI72: 70 | BK72: 1M | BL72: 2S | BM72: 1K | BO72: 33 | BP72: 1585 | BQ72: 2 | BR72: A. | BS72: 1390 | BT72: 12/6 | BU72: A | BV72: 415 | BW72: 325 | BX72: 75 | BZ72: 60 | CB72: =ASIN(CE72/CD72) * 180 / 3.14 -> 4.564753071 | CD72: 440 | CE72: 35 | CG72: 78 | CH72: 85 | CI72: Rkant. kwarthol, vlak, kwartrond | CJ72: Rkant, 1/8 rond. | CK72: D | CM72: B | CO72: D | CP72: 40 | CQ72: 88 | CS72: 1M | CT72: 2S | CU72: 2K | CW72: 35 | CX72: 1570 | CY72: AA0/1 | DA72: A | DB72: A | DC72: 1BM4 | DD72: 2BB4 | DE72: 2BK4 | DH72: AC20 | DI72: Versmallend door kwartrond, 1/8 rond, kwartrond. | DJ72: Op VB en AB een in- en uitlopend A25. Op VO een ingewerkt ogief profiel met breedte van 15 mm. Op de achterkant in het midden is een metalen haak vastzet doorheen de dikte van de asblok. | DT72: H4 | DV72: EB | DX72: laadboom | DY72: 35 | EA72: BB4 | EB72: 4 verstevigingsdriehoeken. | EH72: AA0/1 | EJ72: A | EL72: EA2 | ER72: 625 | ES72: C | ET72: 2BM4 | EU72: 2BK4 | EV72: 2BMVA4 | EX72: CD | EY72: Versmallend door kwarthol en vlak. | FD72: C | FJ72: G | FK72: Voorarmbeugel F. | FL72: H4 | FM72: EB | FN72: 220 x 160 mm | FO72: Bevestiging boom type A, B en D. | FR72: A | FY72: A | GA72: Wagenrong type WBC | GD72: Het achterstel is verbonden met het voorstel doormiddel van een ketting ingehaakt in een haak van de achterasblok en voorablok | GH72: 2450 | GI72: Ja. | GJ72: A | GK72: A | GN72: 870 | GQ72: draagframe | GR72: D1/1/0 | GU72: De eerste dwarsregel is vastgzet aan de onderzijde van de boom met bout en moer. | GY72: 980 | GZ72: C | HB72: draagboom | HC72: A | HU72: 910 | HZ72: Ba7/0 | IA72: Doorgaande ronde pennen. | IB72: Op OV e OA is een in en uitlopend A14 mm. | IG72: D | IK72: B | IL72: Versmallend door schuinoplopend. | IP72: 140 | IQ72: 140 | IR72: 910 | IT72: 1660 | IU72: A | IZ72: 98° | JB72: 90° | JD72: 90° | JE72: Af4/0 | JG72: Ronde pennen. | JL72: 360 | JM72: A | JN72: Tussen de staanders is een in- en uitlopend A30 mm. Ronde armeinden steken 110 uit. | JO72: Ter hoogte van de rongen zijn rongebeugels AA. | JP72: B | JU72: 520 | JV72: Rong BLA. | LF72: B | LG72: B | LH72: A | LI72: Verfsysteem na 1960. Licht verzwakt.
A73: 70 | C73: V 1987-0022 | E73: Tussen | F73: 1914 | G73: 1945 | H73: Karrenmuseum Essen vzw | R73: Antwerpen | S73: België | T73: E | Y73: wiel | Z73: hout | AA73: wagen | AB73: hout | AC73: verbindingselementen | AD73: metaal | AM73: A. | BR73: A. | IZ73: 90° | JB73: 90° | JD73: 90° | LF73: A | LG73: A | LH73: A
A74: 71 | C74: 42 | D74: Linker zijbord vooraan | E74: Tussen | F74: 1890 | G74: 1930 | H74: Heemkundig Museum 'De botermolen' | N74: Laatste gebruiker | O74: Coremans, Doornlaar | P74: 2820 | Q74: Rijmenam | R74: Antwerpen | S74: België | T74: C | U74: Cf | V74: Ag | W74: Geveerde tweewielkar met sponnenzijbord | X74: Kar, twee wielen, twee halve elipsveren, twee S- vormige lamoenbomen met dwarsregels, betimmering, voorschoot, schutbord, zijbord met sponnen, vaste zijleesten en afneembaar achterbord. | Y74: wiel | Z74: hout | AA74: lamoenboomen | AB74: hout | AC74: kar | AD74: hout | AE74: karsteun | AF74: hout | AG74: verbindingselementen | AH74: metaal | AK74: 2 | BQ74: 2 | BR74: A | BS74: 1310 | BT74: 14/7 | BU74: A | BV74: 320 | BW74: 258 | BX74: 68 | BZ74: 48 | CB74: =ASIN(CE74/CD74) * 180 / 3.14 -> 2.345761726 | CD74: 440 | CE74: 18 | CG74: 72 | CH74: 62 | CI74: Rkant, halfrond, kwarthol, vlak, kwartrond, | CJ74: Rkant, halfrond, 1/8 rond. | CK74: B | CM74: A | CO74: C | CP74: 38 | CQ74: 72 | CR74: A | CS74: 1M | CT74: 2S | CU74: 2K | CW74: 26 | CX74: 1510 | CY74: CC2/1 | CZ74: In het midden aan elkaar gesmeed. Diepte: 90 | DA74: F | DT74: I6 | ED74: Ja | EE74: 1600 | EF74: 10 | EG74: ADA | GJ74: E | GN74: 760 | GQ74: lamoenframe | GR74: C | GX74: A | GY74: 1070 | HB74: lamoenboom | HC74: C | HD74: Voor het laadvlak een inlopend afrondingsprofiel | HG74: 680 | HH74: 1980 | HI74: AA2 | HL74: BA | HP74: AA | HQ74: 1860 | HU74: 970 | HZ74: Ba7/0 | IA74: Vierkante pennen getapt, steken 20 mm uit. | IB74: Pen type C. Op OV en OA is een doorgaand A18. | IC74: Op het laadvlak is vooraan een verbindingsmetaal A. | IG74: A | IK74: A | IL74: Op VB en VO een ingewerkt halfrond profiel met breedte van 10 mm. Kopse eind vooraan halfrond in de dikte. Kopse eind achetraan versmallend in de dikte door schuinoplopend. | IM74: Op linkerzijde opstapbeugel B. | IP74: 150 | IQ74: 85 | IR74: 1070 | IT74: 2550 | IU74: A | IV74: 570 | IZ74: 90° | JC74: 90° | JD74: 90° | JE74: Ab5/0 | JG74: Ronde pennen steken 20 uit. | JH74: Op de binnenzijde is een opgetimmerde regel waarop de zitbank geplaatst kan worden. Verbindingsregel met een uitgezaagde accoladebogen. | JL74: 380 | JM74: A | JN74: Vierkante armeinden steken 80 mm uit. Op VO is een tussen de staandes een in- en uitlopend A35. De kopse einden van de armeinden zijn halfrond in de breedte. | JP74: A | JQ74: 107° gericht t.o.v. het zijbord. Breedte: 130 mm | JU74: 580 | JV74: rong | JW74: BKA | JY74: DA2 | KB74: Het bovenvoorbord ontbreekt | KH74: A | KI74: C | KJ74: AC3 | KK74: Pennen getapt | KL74: Op VO van de bovenregel en VB van de onderregel tussen de staanders en VL en VR van de staanders een in- en uitlopend A30. De liinker en rechter staander is 1/8 rond gebogen. | KP74: A | KQ74: B | KU74: horziontale betimmering vastgezet op zeware metalen beugel type A en leidbeugel type A | LF74: C | LG74: A | LH74: A | LI74: Sporen van restauratie. Verfsysteem na 1960.
A75: 72 | C75: 33 | D75: Linker zijbord vooraan | E75: Tussen | F75: 1890 | G75: 1930 | H75: Heemkundig Museum 'De botermolen' | N75: Laatste gebruiker | O75: Lenders Joseph. | P75: 2812 | Q75: Muizen | R75: Antwerpen | S75: België | T75: C | U75: Cf | V75: Af | W75: Geveerde tweewielkar met sponnenzijbord | X75: Kar, twee wielen, twee halve elipsveren, twee S- vormige lamoenbomen met dwarsregels, betimmering, voorschoot, schutbord, zijbord met sponnen, vaste zijleesten en afneembaar achterbord. | Y75: wiel | Z75: hout | AA75: lamoenboomen | AB75: hout | AC75: kar | AD75: hout | AE75: verbindingselementen | AF75: metaal | AK75: 2 | BQ75: 2 | BR75: A | BS75: 1050 | BT75: 12/6 | BU75: A | BV75: 270 | BW75: 208 | BX75: 52 | BZ75: 44 | CB75: 0.9554582504 | CD75: 360 | CE75: 6 | CG75: 60 | CH75: 52 | CI75: Rkant, halfrond, halfhol, vlak, kwartrond, | CJ75: Rkant, 1/8 rond. | CK75: B | CM75: A | CO75: C | CP75: 20 | CQ75: 50 | CR75: A | CS75: 1M | CT75: 2S | CU75: 2K | CW75: 25 | CX75: 1440 | CY75: CC2/1 | CZ75: In het midden aan elkaar gesmeed. Diepte: 90 | DA75: F | DT75: I6 | ED75: Ja | EE75: 1380 | EF75: 9 | EG75: ADA | GJ75: E | GN75: 860 | GQ75: lamoenframe | GR75: CA | GX75: A | GY75: 1000 | HB75: lamoenboom | HC75: C | HD75: Voor het laadvlak een inlopend A23 overgaand in een afrondingsprofiel. | HG75: 680 | HH75: 1960 | HP75: AA | HQ75: 2000 | HU75: 795 | HZ75: Ba6/0 | IA75: Vierkante pennen getapet steken 20 mm uit. | IB75: Op OV en Oa is een doorgaand A15. Pen B. | IC75: Op het laadvlak is vooraan een verbindingsmetaal A. | IG75: A | IK75: C | IL75: Op VB en VO een ingewerkt halfrond profiel met breedte van 10 mm. Kopse eind vooraan versmallend door schuinoplopend aan de onderzijde en schuinneerlopend aan de bovenzijde in de dikte. Kopse eind achetraan versmallend in de dikte door schuinoplopend onderzijde. | IM75: Op linker en rechterzijde opstapbeugel B | IP75: 130 | IQ75: 70 | IR75: 1000 | IT75: 1900 | IU75: A | IV75: 490 | IZ75: 90° | JC75: 90° | JD75: 90° | JE75: Ab4/0 | JG75: Ronde pennen steken 50 uit. | JH75: Verbindingsregel met een uitgezaagde accoladebogen. | JI75: Op de binnenzijde is een opgetimmerde regel waarop de zitbank geplaatst kan worden. | JL75: 330 | JM75: A | JN75: Vierkante armeinden vooraan steken 55 mm uit en ronde achteraan steken 90 mm uit. Op VO is een tussen de staandes een in- en uitlopend afrondingsprofiel. Op de bovenregels en rongen zijn metalen hoekbeugels vastezety van de zijleesten. Het kopse einde vooraan van de armeinden zijn halfrond in de breedte. | JP75: A | JQ75: 122° gericht t.o.v. het zijbord. Breedte 150 mm | JU75: 500 | JV75: rong | JW75: BKA | KF75: A | KJ75: AC3 | KK75: Pennen getapt | KL75: Buitenstaanders S-vormig. Op Vl en VR van de staanders is een in- en uitlopend afrondingsprofiel. Op VO van de bovenregel en VB van de onderregel is tussen de staanders een in- en uitlopend afrondingsprofiel. Kop E. | KP75: A | KQ75: B | KU75: horziontale betimmering vastgezet op zeware metalen beugel type A en leidbeugel type A | LF75: C | LG75: A | LH75: A | LI75: Sporen van restauratie. Verfsysteem na 1960.
A76: 73 | C76: 41 | D76: Linker zijbord vooraan | E76: Tussen | F76: 1890 | G76: 1930 | H76: Heemkundig Museum 'De botermolen' | N76: Laatste gebruiker | O76: Schroons W. | P76: 3140 | Q76: Keerbergen | R76: Vlaams-Brabant | S76: België | T76: C | U76: Cf | V76: Af | W76: Geveerde tweewielkar met sponnenzijbord | X76: Kar, twee wielen, twee halve elipsveren, twee S- vormige lamoenbomen met dwarsregels, betimmering, voorschoot, schutbord, zijbord met sponnen, vaste zijleesten en afneembaar achterbord. | Y76: wiel | Z76: hout | AA76: lamoenboomen | AB76: hout | AC76: kar | AD76: hout | AE76: verbindingselementen | AF76: metaal | AK76: 2 | BQ76: 2 | BR76: A | BS76: 1310 | BT76: 14/7 | BU76: A | BV76: 370 | BW76: 300 | BX76: 75 | BZ76: 50 | CB76: 1.638075512 | CD76: 420 | CE76: 12 | CG76: 70 | CH76: 75 | CI76: Rkant, halfhol, halfhol, kwarthol, vlak, kwartrond, rkant, vlak. | CJ76: Rkant, ogief, rkant, vlak. | CK76: B | CM76: A | CO76: A | CP76: 38 | CQ76: 68 | CR76: A | CS76: 1M | CT76: 2S | CU76: 2K | CW76: 30 | CX76: 1520 | CY76: AC2/1 | DA76: F | DT76: A | ED76: Ja | EE76: 1600 | EF76: 10 | EG76: ADA | GJ76: E | GN76: 770 | GQ76: lamoenframe | GR76: C | GX76: A | GY76: 1085 | HB76: lamoenboom | HC76: C | HD76: Voor het laadvlak een inlopend afrondingsprofiel | HG76: 770 | HH76: 1980 | HK76: AD1 | HM76: BD | HP76: AA | HQ76: 1850 | HU76: 1010 | HW76: L | HY76: Linkerzijde, zijbord, midden, vooraan. | HZ76: Ba8/0 | IA76: Vierkante pennen getapet steken 14 mm uit | IB76: Pen A14. Op OV en Oa is een doorgaand A15. | IC76: Op het laadvlak is vooraan een verbindingsmetaal A. | IG76: A | IK76: A | IL76: Op VO een ingewerkt halfrond profiel met breedte van 10 mm. Kopse eind zie foto Kopse eind rechte, met inlopend A30. | IM76: Op linkerzijde opstapbeugel B. | IP76: 145 | IQ76: 110 | IR76: 1080 | IT76: 2800 | IU76: A | IV76: 590 | IZ76: 90° | JC76: 90° | JD76: 90° | JE76: Ab4/0 | JG76: Ronde pennen steken 32 uit. | JH76: Op de binnenzijde is een opgetimmerde regel waarop de zitbank geplaatst kan worden. Verbindingsregel met een uitgezaagde accoladebogen. | JL76: 340 | JM76: A | JN76: Vierkante armeinden vooraan steken 90 mm uit en ronde achteraan steken 100 mm uit. Het voorste kopse eind heeft versieringmotfief type fotod Op VO is een tussen de staandes een in- en uitlopend afrondingsprofiel. Op de bovenregels en rongen zijn metalen hoekbeugels vastezety van de zijleesten. Het kopse einde vooraan van de armeinden zijn halfrond in de breedte. | JP76: A | JQ76: 105° gericht t.o.v. het zijbord. Breedte 140 mm | JU76: 612 | JV76: rong | JW76: BKA | JY76: DA2 | KB76: Het bovenvoorbord ontbreekt | KH76: C | KI76: E | KJ76: AC3 | KK76: Pennen getapt | KL76: Buitenstaanders S-vormig. Op VLen VR van de staanders is een in- en uitlopend afrondingsprofiel. Op VO tussen de staander van de bovenregel is een in- en uitllopend afrondingsprofiel. Kop E. | KP76: A | KQ76: B | KU76: horziontale betimmering vastgezet op zeware metalen beugel type A en leidbeugel type B | LF76: C | LG76: A | LH76: A | LI76: Sporen van restauratie. Verfsysteem na 1960.
A77: 74 | C77: 43 | D77: Linker zijbord vooraan | E77: Tussen | F77: 1890 | G77: 1930 | H77: Heemkundig Museum 'De botermolen' | N77: Laatste gebruiker | O77: Van Haecjt | P77: 3110 | Q77: Rotselaar | R77: Vlaams-Brabant | S77: België | T77: C | U77: Cb | V77: Ad | W77: Hoogkar | X77: Hoogkar, twee wielen, 2 rechte lamoenbomen met dwarsregels, betimmering, sponnenzijbord en afneembaar voor- en achterbord. | Y77: wiel | Z77: hout | AA77: lamoenboomen | AB77: hout | AC77: kar | AD77: hout | AE77: karsteun | AF77: hout | AG77: huif | AH77: zeildoek | AK77: 2 | BQ77: 2 | BR77: A | BS77: 1565 | BT77: 14/7 | BU77: A | BV77: 460 | BW77: 345 | BX77: 80 | BZ77: 60 | CB77: 4.705920793 | CD77: 500 | CE77: 41 | CG77: 93 | CH77: 70 | CI77: Rkant, schuinoplopend, rkant, kwarthol, vlak, kwartrond, rkant, vlak. | CJ77: 1/8 rond. | CK77: D | CM77: C | CO77: A | CP77: 55 | CQ77: 100 | CR77: A | CS77: 1M | CT77: 2S | CU77: 2K | CW77: 35 | CX77: 1540 | CY77: AA0/1 | CZ77: Industrieel vervaardigd | DA77: A | DB77: A | DC77: 1BM4 | DD77: 2BBB4 | DH77: AC30 | DT77: A | DV77: AC | DW77: 290 x 150 mm | DX77: lamoenboom | DY77: 50 | EA77: BB4 | GN77: 750 | GQ77: lamoenframe | GR77: DB13/0 | GS77: Ronde pennen. De pennen van de eerste dwarsregel steken 80 mm uit. | GT77: Op de dwarsregels OV en OA een doorlopend A15 mm. | GU77: Ruimte tusen de voorlaatste en laatste dwarsregel is 150 mm. | GV77: B | GW77: Verbreedboom ter hoogte van het zijbord. | GX77: A | GY77: 930 | HB77: lamoenboom | HC77: B | HD77: S-vormig recht onde kast en achter de asblok naar achtern toe schuinopopen en naar het einde 1/8 rond naar boven toe. Zeer zware afmetingen. Afronding A. | HG77: 820 | HH77: 1720 | HI77: AA2 | HL77: CA | HP77: AA | HQ77: 1800 | HU77: 1080 | HZ77: A | IG77: A | IP77: 700 | IR77: 930 | IT77: 2700 | IU77: A | IV77: 500 | IW77: 25 | IZ77: 90° | JB77: 90° | JD77: 90° | JE77: Ag4/0 | JI77: Op de betimmierng zijn op halve hoogte 4 houten vierkante klossen waarop rongenbeugels type E voorzien is. | JL77: 590 | JM77: A | JN77: Vooraan vierkante armeinden steken 100 mm uit. Vooraan kop A. Achteraan ronde armeinden steken 100 mm uit. Tussen de rongen is een in- en uitlopend afschuiningsprofiel in accolade vorm. | JO77: 4 rongenbeugels type E. | JU77: 640 | JV77: Rong | JW77: BLC | JY77: DA2 | KB77: Het bovenvoorbord ontbreekt | KF77: A | KG77: F | KN77: A | KP77: A | KQ77: B | LF77: C | LG77: A | LH77: A | LI77: Sporen van restauratie. Verfsysteem na 1960.
A78: 75 | C78: 40 | D78: Voorbord | E78: Tussen | F78: 1890 | G78: 1930 | H78: Heemkundig Museum 'De botermolen' | N78: Laatste gebruiker | O78: Gebroeders Verschoren, Miel en Frans. Mispeldonkhoeve | P78: 2820 | Q78: Bonheiden | R78: Antwerpen | S78: België | T78: C | U78: Cb | V78: Ad | W78: Hoogkar, Malbroeck | X78: Hoogkar, twee wielen, 2 rechte lamoenbomen met neergebogen lamoenboomeinden met dwarsregels, betimmering, voorsteek, vast metalen steunen, sponnenzijbord, opzetborden en afneembaar voor- en achterbord. | Y78: wiel | Z78: hout | AA78: lamoenboomen | AB78: hout | AC78: kar | AD78: hout | AE78: karsteun | AF78: metaal | AG78: verbindingselementen | AH78: metaal | AK78: 2 | BQ78: 2 | BR78: A | BS78: 1540 | BT78: 14/7 | BU78: A | BV78: 470 | BW78: 390 | BX78: 98 | BZ78: 60 | CB78: 0.7477365177 | CD78: 460 | CE78: 6 | CG78: 96 | CH78: 105 | CI78: Rkant, schuinoplopend, rkant, vlak, kwartrond, rkant, vlak. | CJ78: Rkant, vlak. | CK78: B | CM78: B | CO78: A | CP78: 50 | CQ78: 105 | CR78: A | CS78: 1M | CT78: 2S | CU78: 2K | CW78: 35 | CX78: 1510 | CY78: AA0/1 | CZ78: Industrieel vervaardigd | DA78: A | DB78: A | DC78: 2BM4 | DD78: 2BB4 | DE78: 2BK4 | DH78: AE75 | DI78: Versmallend aan de onderzijde door 1/8 hol. | DT78: A | DV78: AC | DW78: 260 x 90 mm | DX78: lamoenboom | DY78: 30 | EA78: BB4 | GN78: 820 | GQ78: lamoenframe | GR78: D11/2 | GS78: Ronde pennen. De pennen van de eerste en tweede dwarsregek steken 100 mm uit en zijn opgespiëd. | GT78: Ter hoogte van het zijbord is een verbreedboom. Op de dwarsregels OV en OA een doorlopend A15 mm. | GV78: B | GW78: 2 metalen haken met bevestigingslichaam. | GX78: C | GY78: 1000 | HB78: lamoenboom | HC78: B | HD78: Afronding A | HE78: Trekbeugel A. De lameonboom is voor het laadvlak voorzien van 5 bouten met moer in de breedte. Achteraan aan de onderzijde is een metalen ingewerkte staallat. Profiel type A. Zeer zware afmetiingen. Broekhaak type A. . Metaal A | HF78: Naar de kopse einden zijn de lamoenbomen over een lengte van 200 mm bekleed met leer. | HG78: 790 | HH78: 2000 | HI78: AA2 | HJ78: CA2 | HL78: BA | HP78: AA | HQ78: 2000 | HU78: 1150 | HZ78: A | IG78: F | IH78: G | IP78: 190 | IR78: 1000 | IT78: 3520 | IU78: A | IV78: 530 | IW78: 260 | IZ78: 90° | JB78: 90° | JD78: 90° | JE78: Ad6/0 | JG78: Ronde pennen steken 35mm uit. | JI78: Op de betimmierng zijn op halve hoogte 4 houten ronde klossen waarop rongenbeugels type E voorzien is. Op het linkerzijbord tussen de voorlaatse en laatste rong is een opgetimmerd opbergbakje. | JL78: 430 | JM78: A | JN78: Ronde armeinden steken 130 uit. Tussen de rongen is een in- en uitlopend A28. | JO78: 5 rongenbeugels E. Ter hoogte van de rongen zijn metalen ringen vastgezet met kram. Op de eerste rong zijn 2 metalen ringen met kram. | JR78: Ak4 | JS78: 270 | JU78: 620 | JV78: rong | JW78: BEE | JY78: AC3 | KA78: Op VB van de onderregel en VO van de bovenregel is tussen de staanders een in- en uitlopend A18. | KF78: A | KG78: B | KJ78: AC3 | KL78: Op VB van de onderregel en VO van de bovenregel is tussen de staanders een in- en uitlopend A18. | KP78: A | KQ78: B | LF78: C | LG78: A | LH78: A | LI78: Sporen van restauratie. Verfsysteem na 1960.
A79: 76 | C79: 25 | D79: Linker zijbord vooraan | E79: Tussen | F79: 1890 | G79: 1930 | H79: Heemkundig Museum 'De botermolen' | N79: Laatste gebruiker | O79: Golvers Frans | P79: 2820 | Q79: Rijmenam | R79: Antwerpen | S79: België | T79: C | U79: Cb | V79: Ad | W79: Hoogkar, Malbroeck | X79: Hoogkar, twee wielen, 2 rechte lamoenbomen met neergebogen lamoenboomeinden met dwarsregels, betimmering, voorsteek, vast metalen steunen, sponnenzijbord, opzetborden en afneembaar voor- en achterbord. | Y79: wiel | Z79: hout | AA79: lamoenboomen | AB79: hout | AC79: kar | AD79: hout | AE79: karsteun | AF79: metaal | AG79: verbindingselementen | AH79: metaal | AK79: 2 | BQ79: 2 | BR79: A | BS79: 1515 | BT79: 14/7 | BU79: A | BV79: 460 | BW79: 375 | BX79: 90 | BZ79: 60 | CB79: 0.609850235 | CD79: 470 | CE79: 5 | CG79: 80 | CH79: 98 | CI79: Rkant, schuinoplopend, rkant, vlak, kwartrond, rkant, vlak, rkant, vlak. | CJ79: Rkant, vlak. | CK79: B | CM79: B | CO79: A | CP79: 48 | CQ79: 102 | CR79: A | CS79: 1M | CT79: 2S | CU79: 2K | CW79: 35 | CX79: 1570 | CY79: AA0/1 | CZ79: Industrieel vervaardigd | DA79: F | DB79: A | DC79: 1BM4 | DD79: 2BB4 | DH79: AC20 | DI79: Versmallend aan de onderzijde door lichtjes 1/8 hol. | DT79: A | DV79: H | DX79: lamoenboom | DY79: 30 | EA79: BB4 | GN79: 825 | GQ79: lamoenframe | GR79: D9/1 | GS79: Ronde pennen. De pen van de eerste dwarsregel steekt 100 mm uit en is opgespiëd met metalen spie. | GT79: Op de dwarsregels OV en OA een doorlopend A15 mm. | GV79: B | GW79: Verbreedboom ter hoogte van het zijbord. | GX79: B | GY79: 1010 | HB79: lamoenboom | HC79: B | HD79: Afronding A. | HE79: Voor het laadvlak op alle zijden een inlopend A40 overgaand in afrondingsprofiel. Broekhaak type A. Trekbeugel A. Metaal A. | HG79: 780 | HH79: 1910 | HI79: AA2 | HJ79: CA2 | HL79: BA | HP79: AA | HQ79: 1820 | HU79: 1030 | HZ79: A | IG79: F | IH79: G | IP79: 390 | IR79: 1010 | IT79: 2800 | IU79: A | IV79: 420 | IW79: 55 | IZ79: 90° | JB79: 90° | JD79: 90° | JE79: Ad6/0. | JG79: Ronde pennen, getapt steken 45 mm uit. Pen D. | JI79: Op de betimmierng zijn op halve hoogte 4 houten ronde klossen waarop rongenbeugels type E voorzien is. | JL79: 380 | JM79: A | JN79: Vooraan vierkante armeinden steken 120 uit. Kop A. Achteraan ronde armeinden steken 150 uit. Tussen de rongen is een in- en uitlopend A25. | JO79: Op de bovenregel zijn 5 rongenbeugels type E en nog twee kleinere rongenbeugels type E. Op de eerste en laatste rong zijn 2 metalen ringen met kram. | JU79: 640 | JV79: rong | JW79: BQG | JY79: DD | KF79: B | KG79: N | KH79: C | KI79: A | KJ79: AB3 | KL79: Op VB van de onderregel en VO van de bovenregel is tussen de staanders een in- en uitlopend A18. Op Vl en VR van de staanders is een in- en uitlopend A18 dat vervolgens nog eens kort in en uitloopt. | KP79: A | KQ79: B | LF79: C | LG79: A | LH79: A | LI79: Sporen van restauratie. Verfsysteem na 1960.
A80: 77 | C80: 26 | D80: Linker zijbord vooraan | E80: Tussen | F80: 1890 | G80: 1930 | H80: Heemkundig Museum 'De botermolen' | N80: Laatste gebruiker | O80: Van Rompaey G. | P80: 2235 | Q80: Houtvenne | R80: Antwerpen | S80: België | T80: C | U80: Cb | V80: Ad | W80: Vlaamse aardkar met vaste karsteun | X80: Aardkar, twee wielen, lamoenframe scharnierbaar bevestigd met karbak met vast metalen steunen, sponnenzijbord, zijleesten en afneembaar voor- en achterbord | Y80: wiel | Z80: hout | AA80: lamoenboomen | AB80: hout | AC80: kar | AD80: hout | AE80: karsteun | AF80: metaal | AG80: verbindingselementen | AH80: metaal | AK80: 2 | BQ80: 2 | BR80: A | BS80: 1480 | BT80: 14/7 | BU80: A | BV80: 480 | BW80: 365 | BX80: 80 | BZ80: 65 | CB80: 0.3738603074 | CD80: 460 | CE80: 3 | CG80: 85 | CH80: 105 | CI80: Rkant, kwarthol, vlak, kwartrond, rkant, vlak. | CJ80: Kwartrond, vlak. | CK80: D | CM80: A | CO80: A | CP80: 63 | CQ80: 105 | CS80: 1M | CT80: 2S | CU80: 2K | CW80: 35 | CX80: 1520 | CY80: AA0/1 | CZ80: Industrieel vervaardigd | DA80: A | DB80: A | DC80: 1BM4 | DD80: 2BB4 | DH80: AE50 | DT80: A | DV80: H | DX80: lamoenboom | DY80: 50 | EA80: BB4 | GK80: A | GN80: 800 | GQ80: lamoenframe | GR80: A3/1/0 | GS80: Ronde pennen getapt. De pen van de eerste dwarsregel steek 88 mm uit. | GV80: A | GX80: C | GY80: 935 | GZ80: CA | HB80: lamoenboom | HC80: B | HD80: Voor het laadvlak op alle zijden een inlopend afrondingprofiel. | HE80: Broekhaak type A. Afronding A. Trekbeugel A. Bovenzijde lamoenboom halfweg kram met metalen ring. Broekhaak halfweg de lamoenboom omgekeerd gericht. | HG80: 840 | HH80: 1820 | HI80: AA2 | HJ80: CA2 | HL80: BA | HP80: AA | HQ80: 1820 | HU80: 1040 | HZ80: Ba7/0 | IB80: Op OV en OA een doorgaand A14. | IG80: A | IK80: B | IL80: Versmallend door ogief in de lengte. | IP80: 90 | IQ80: 130 | IR80: 1100 | IT80: 2400 | IU80: A | IV80: 15 | IW80: 230 | IZ80: 90° | JB80: 90° | JD80: 90° | JE80: Ag5/0 | JH80: Opgetimmerde middenregel waarop ronde klossen zijn bevestigd met 5 rongenbeugels type E. De eerste en laatste rong is ondenderaan opgespiede met een houten spie. Op de eerste en laatste rong is eeen metalen ring met kram | JL80: 420 | JM80: A | JN80: Ronde armeinden steken vooraan 75 mm en achteraan 115 mm uit. Tussen de rongen is een in- en uitlopend A25. | JO80: Op de bovenregel zijn 5 rongenbeugels type E | JU80: 690 | JV80: rong | JW80: BQG | JX80: Op verschilende plaatsen decoratieve kerfinsnijdingen. | JY80: AF4 | KA80: Op VB van de onderregel en VO van de bovenregel tussen de staanders is een in- en uitlopend A18. De buitenstaanders zijn S-vormig gebogen en hebben een afgeleide profielring als de rongen. | KB80: Op de bovenrgel 2 rongenbeugels type AA. | KF80: A | KG80: E | KJ80: AF4 | KL80: Op VB van de onderregel en VO van de bovenregel tussen de staanders is een in- en uitlopend A18. De buitenstaanders zijn S-vormig gebogen en hebben een afgeleide profielring als de rongen. | KM80: Op de bovenrgel 2 rongenbeugels type AA. | KP80: A | KQ80: E | LF80: C | LG80: A | LH80: A | LI80: Sporen van restauratie. Verfsysteem na 1960.
A81: 78 | C81: 45 | D81: Linker zijbord vooraan | E81: Tussen | F81: 1890 | G81: 1930 | H81: Heemkundig Museum 'De botermolen' | N81: Laatste gebruiker | O81: Dits | P81: 2820 | Q81: Rijmenam | R81: Antwerpen | S81: België | T81: C | U81: Cf | V81: Be | W81: Veekar, geveerd | X81: Veekar, twee wielen, u-vormige metalen as, twee halve elipsveren, veekast met kipbaar achterbord, twee S-vormige lamoenbomen. | Y81: wiel | Z81: hout | AA81: veren | AB81: metaal | AC81: kar | AD81: hout | AE81: karsteun | AF81: metaal | AG81: verbindingselementen | AH81: metaal | AK81: 2 | BQ81: 2 | BR81: A | BS81: 1330 | BT81: 14/7 | BU81: A | BV81: 340 | BW81: 242 | BX81: 63 | BZ81: 42 | CB81: 1.370942089 | CD81: 460 | CE81: 11 | CG81: 65 | CH81: 65 | CI81: Rkant, halfrond, halfhol, vlak, kwartrond, rkant, vlak. | CJ81: 1/8 rond. | CK81: B | CM81: A | CO81: C | CP81: 38 | CQ81: 65 | CR81: A | CS81: 1M | CT81: 2S | CU81: 2K | CW81: 30 | CX81: 1740 | CY81: CC2/1 | CZ81: In het midden aan elkaar gesmeed. Diepte: 290 | DA81: A | DT81: I6 | ED81: Ja | EE81: 1560 | EF81: 11 | EG81: ADC | GJ81: E | GN81: 950 | GO81: 510 | GP81: Betimmering op de lamoenbomen dient als voetplank met schuine opzet. | GQ81: lamoenframe | GR81: CB | GT81: De voorschoot is betimmerd op de lamoenbomen met vooraan één schuine voetplank. | GX81: A | GY81: 1200 | HB81: lamoenboom | HC81: A | HD81: Voor de voorschoot inlopend afrondingsprofiel. | HE81: Aan de linkerzijde is ee opstapbeugel type B. Broekhaak type A op 750 mm van kopse eind op de bovenzijde. Broekhaak type A op 2000 op de binnenzijde van de lamoenboom | HG81: 610 | HH81: 2000 | HI81: DE2 | HK81: EE2 | HP81: AV | HQ81: 750 | HR81: AA | HS81: 2000 | HU81: 730 | HZ81: Bd6/0 | IK81: A | IL81: Vooraan: kop C. Tussen de staanders van het zijbord is een in- en uitlopend A25. | IQ81: 100 | IR81: 1200 | IT81: 2580 | IU81: A | IZ81: 90° | JB81: 90° | JD81: 90° | JE81: Bk | JH81: Het zijbord bestaat uit 6 staanders, één bovenregel en tussen de staanders in het midden een middenregel. De binnenzijden hebben tussen de staanders en regels van een in- en uilopend A40. Het raamwerk is betimmerd met planken van 110 mm breed en hebben aan de onderzijde een ingewerkt halfrond profiel met breedte van 12 mm. Op de voorzijde is een metalen handgreep A. | JM81: B | JN81: Op VB van de bovenregel is een V-vormige groef met breedte van 7 mm. | JU81: 1060 | KB81: Vast voorbord met het zij bord. Bestaat uit twee tussenstaanders en een bovenregels op halve hoogte van het zijbord betimmerd aan de binnenzijde. | KF81: vast | KG81: vast | KJ81: X | KL81: Raamwerk bestaande uit 4 staander, een boven- en onderegel en in het midden tussen de staandes tussenregels. | KP81: G | KQ81: P | LF81: C | LG81: A | LH81: A | LI81: Sporen van restauratie. Verfsysteem na 1960.
A82: 79 | C82: 56 | D82: Linker zijbord vooraan | E82: Tussen | F82: 1890 | G82: 1930 | H82: Heemkundig Museum 'De botermolen' | N82: Laatste gebruiker | O82: Louis Van Hemelrijck | P82: 1981 | Q82: Zemst-laar | R82: Vlaams-Brabant | S82: België | T82: D | U82: Dg | V82: Ad | Y82: wiel | Z82: hout | AA82: draagbomen | AB82: hout | AC82: kar | AD82: hout | AE82: verbindingselementen | AF82: metaal | AK82: 3 | AL82: 1 | AM82: A | AN82: 650 | AO82: 10/5 | AP82: A | AQ82: 400 | AR82: 200 | AS82: 65 | AU82: 50 | AX82: 0 | BA82: 70 | BB82: 75 | BC82: Rkant, vlak, kwarhol, vlak, kwartrond, rondkant, vlak. | BD82: Rkant, vlak, kwarhol, vlak, kwartrond, rondkant, vlak. | BE82: B | BF82: A | BI82: 30 | BJ82: A | BK82: 2K | BL82: 2S | BO82: 30 | BQ82: 2 | BR82: A | BS82: 1125 | BT82: 14/7 | BU82: A | BV82: 450 | BW82: 290 | BX82: 70 | BY82: 63 | BZ82: 48 | CB82: 1.01166735 | CD82: 340 | CE82: 6 | CG82: 70 | CH82: 70 | CI82: Rkant, kwarthol, vlak, kwartrond, rkant, vlak. | CJ82: Rkant, kwarthok, 1/8 rond. | CK82: C | CM82: A | CO82: A | CP82: 53 | CQ82: 90 | CR82: A | CS82: 1M | CT82: 2S | CU82: 2K | CW82: 32 | CX82: 1480 | CY82: AA0/1 | CZ82: In het midden aan elkaar gesmeed. | DA82: A | DB82: A | DC82: 1BM4 | DD82: 2BBSVV4 | DH82: AC18 | DI82: Versmallend aan de bovvenzijde door 1/8 hol. | DT82: A | DV82: AC | DW82: 220 x 130 mm | DX82: draagboom | EA82: BMVV4 | EH82: AA0/1 | EJ82: D | EL82: G1 | ER82: 620 | FD82: E | FJ82: C2 | FK82: Trekbeugel EA. Handgreep A | FL82: E | GH82: 1640 | GI82: Ja | GJ82: B | GK82: D | GM82: B | GN82: 580 | GO82: 620 | GP82: Opening tussen de voorschoot en laadvlak 220 mm | GQ82: draagframe | GR82: BC3/0 | GU82: Betimmering deksel gericht volgens de lengte los gevat in sponning van het draagframe. | GX82: A | GZ82: CA | HB82: draagboom | HC82: D | HT82: 750 | HU82: 840 | HW82: D | HY82: Linkerzijde, draagframe, boven, voorl het laadvlak. | HZ82: Ba7/0 | IA82: Doorgaande vierkante pennen | IB82: Op OV en OA een doorgaand A14. | IG82: C | IK82: B | IL82: Versmallend achteraan door kwarthol en schuinoplopend. Vooraan door schuinoplopend. | IM82: 2 rongenbeugels type A van de zijleesten. Op het achterste kopse eind metaal A. | IP82: 160 | IR82: 950 | IS82: 1010 | IT82: 2000 | IU82: A | IV82: 160 | IY82: 880 | IZ82: 90° | JB82: 90° | JD82: 90° | JE82: Aa5/0 | JG82: Vierkante pennen steken 20 mm uit. | JI82: Op de kopse einden geen verbindingslat. | JL82: 330 | JM82: A | JN82: Vierkante armeinden steken 120 mm uit. | JO82: 3 rongenbgeugels type A. | JP82: B | JQ82: De rongen zijn in de lengte 1/8 rond gebogen. | JR82: Ak3 | JS82: 220 | JU82: 580 | JV82: rong | JW82: ARA | JY82: AA3 | KA82: Op VO van de bovenegel en VB van de onderegels tussen de staanders een in- en uitlopend A20. De staanders hebben een in- en uitlopend A18 dat vervolgens kort in- en uitloopt. | KB82: Aan de binnenzijde op de bovenregel zijn 2 rongenbeugels E. | KF82: A | KG82: B | KJ82: AA3 | KL82: Op VO van de bovenegel en VB van de onderegels tussen de staanders een in- en uitlopend A20. De staanders hebben een in- en uitlopend A18 dat vervolgens kort in- en uitloopt. | KM82: Aan de binnenzijde is op de bovenregel 2 rongenbeugels type E. | KP82: A | KQ82: B | KV82: X | LF82: C | LG82: A | LH82: A | LI82: Sporen van restauratie. Verfsysteem na 1960.
A83: 80 | C83: 31 | D83: Linker zijbord vooraan | E83: Tussen | F83: 1890 | G83: 1930 | H83: Heemkundig Museum 'De botermolen' | N83: Laatste gebruiker | O83: Florenty Haacht | P83: 3150 | Q83: Haacht | R83: Vlaams-Brabant | S83: België | T83: C | U83: Cf | V83: Bh | Y83: wiel | Z83: hout | AA83: veren | AB83: metaal | AC83: kar | AD83: hout | AE83: verbindingselementen | AF83: metaal | AK83: 2 | BQ83: 2 | BR83: A | BS83: 1225 | BT83: 14/7 | BU83: A. | BV83: 310 | BW83: 260 | BX83: 62 | BZ83: 46 | CB83: 0 | CD83: 390 | CE83: 0 | CG83: 78 | CH83: 68 | CI83: Rkant, halfrond, 1/8 hol, vlak, kwartrond. | CJ83: Rkant, 1/8 rond. | CK83: B | CM83: A | CO83: C | CP83: 13 | CQ83: 45 | CR83: A | CS83: 1M | CT83: 2S | CU83: 2K | CW83: 30 | CX83: 1600 | CY83: CC2/1 | CZ83: In het midden aan elkaar gesmeed. Diepte: 90 | DA83: F | DT83: I6 | ED83: Ja | EE83: 1520 | EF83: 11 | EG83: ADA | GJ83: E | GN83: 750 | GQ83: lamoenframe | GR83: C | HB83: lamoenboom | HC83: C | HE83: Broekhaak type A. | HG83: 640 | HH83: 1940 | HP83: AA | HQ83: 1840 | HU83: 880 | HZ83: Ba7/0 | IC83: De laadbomen ziten gevat in een metalen L-profiel. | IG83: Vast met bout en moer. | IR83: 1120 | IT83: 2570 | IU83: A | IV83: 550 | IZ83: 90° | JC83: 90° | JD83: 90° | JE83: Ak5 | JI83: Rongen: metalen U-profielen horizontaal betimmerd met 3 planken. | JL83: 450 | JU83: 490 | JV83: Metalen U- profiel. | KJ83: X | KL83: Metalen hengsel horziontaal betimmerd met 3 planken | KP83: G | KQ83: N | KU83: vast schutbord. L beugel met handgreep waarop horizontaal 2 planken zijn vatstezet. | LF83: C | LG83: A | LH83: A | LI83: Sporen van restauratie. Verfsysteem na 1960.
A84: 81 | C84: 1 | D84: Voorbord | E84: Tussen | F84: 1890 | G84: 1930 | H84: Heemkundig Museum 'De botermolen' | O84: Kempen | Q84: Kempen | S84: België | T84: E | U84: Ek | V84: Ce | W84: Brabantse wagen | X84: Wagen, achteronderstel met twee achterwielen, verbonden doormiddel van een langboom met het vooronderstel. Vooronderstel met twee kleine voorwielen draaibaar verbonden met voorarmen, woelhout en draaispil. Afneembaar laadvlak, metalen rongen en afneembaar zij-, voor- en achterbord. Op de kopse einden van de onderrgel is een afneembaar voor- en achteropsluitbord. | Y84: wiel | Z84: hout | AA84: langboom | AB84: hout | AC84: wagen | AD84: hout | AE84: verbindingselementen | AF84: metaal | AK84: 4 | AL84: 2 | AM84: A | AN84: 855 | AO84: 10/5 | AP84: A | AQ84: 425 | AR84: 285 | AS84: 75 | AU84: 55 | AX84: =ASIN(AZ84/AY84) * 180 / 3.14 -> 6.895598354 | AY84: 200 | AZ84: 24 | BA84: 70 | BB84: 100 | BC84: Rkant, kwarthol, kwartrond, rkant, vlak. | BD84: Rkant, 1/8 rond. | BE84: D | BF84: A. | BG84: A | BH84: 62 | BI84: 104 | BJ84: A | BK84: 1M | BL84: 2S | BM84: 1K | BO84: 30 | BP84: 1525 | BQ84: 2 | BR84: A | BS84: 1395 | BT84: 12/6 | BU84: A | BV84: 385 | BW84: 308 | BX84: 75 | BZ84: 65 | CB84: =ASIN(CE84/CD84) * 180 / 3.14 -> 6.397172288 | CD84: 440 | CE84: 49 | CG84: 80 | CH84: 100 | CI84: Rkant, kwarthol, vlak, kwartrond, rkant, vlak. | CJ84: Rkant, 1/8 hol, vlak. | CK84: D | CM84: A | CO84: A | CP84: 35 | CQ84: 80 | CR84: A | CS84: 1M | CT84: 2S | CU84: 2K | CW84: 35 | CX84: 1570 | CY84: AA0/1 | CZ84: Industrieel vervaardigd | DA84: A. 1/3 in asblok, 2/3 onder asblok. | DB84: B | DC84: 4BM4 | DD84: 2BKA | DH84: BB | DI84: Versmallend door rkant, vlak en rkant. | DL84: A | DM84: Versmallend door 1/8 hol. | DP84: B | DQ84: A | DR84: B | DT84: A | DV84: C | DX84: langboom | EC84: B | EH84: AA0/1 | EJ84: A. 1/3 in asblok, 2/3 onder asblok | EL84: A2 | EM84: G | ES84: C | ET84: 1BMS4 | EU84: 2BM4 | EV84: 2KBA | EX84: CG | EY84: Versmallend door kwarthol en vlak. | FA84: A | FB84: Versmallend door 1/8 hol. | FC84: Beugel C. | FD84: B | FE84: Doorlopend afrondingsprofiel. | FJ84: D0 | FK84: De voorarmen zijn op het kopse eind en achter het disselhuis samen met de disselboom vastgezet met gesloten metalen band. Achter de voorwieeln metalen U-vormige beugel waarin de rembalk gevat zit. | FL84: A | FO84: Bevestiging langboom type A. | FP84: C | FQ84: 1620 | FR84: A | FS84: Trekbeugel B. | FT84: A | FU84: Versmallend door 1/8 hol. Beugel C. Glijbeugel 2CR. | GA84: CA | GB84: FC | GD84: A | GE84: A | GH84: 2520 | HU84: 990 | HW84: E | HY84: Vooraan, voorarmframe, boven, midden. | HZ84: Da0/5/0 | ID84: A | IE84: Versmallend door 1/8 hol en schuinoplopend | IR84: 990 | IT84: 3960 | IU84: A | IZ84: 104° | JB84: 90° | JD84: 90° | JE84: Cd10/4 | JG84: Pennen getapt. | JL84: 365 | JM84: A | JN84: Ronde armeinden steken 120 uit | JO84: 4 Rongenbeugel I. | JR84: Ak4 | JS84: 210 | JU84: 520 | JY84: FD | KB84: Op de kopse einden metalen opsluitbeugels. | KF84: A | KG84: A | KJ84: FD | KL84: Op de kopse einden metalen opsluitbeugels. | KP84: A | KQ84: A | KV84: X | LF84: B | LG84: A | LH84: A | LI84: Verfsysteem na 1960.
A85: 82 | C85: 2 | D85: Voorbord | E85: Tussen | F85: 1890 | G85: 1930 | H85: Heemkundig Museum 'De botermolen' | T85: E | U85: Ef | V85: Al | W85: Vlaamse aardkar met voortrein en draaistel D2 | X85: Aardkar, twee wielen, lamoenframe scharnierbaar bevestigd met karbak, onder de lamoenbomen een draaibaar vooronderstel, op de lamoenbomen een afneembaar laadvlak, sponnenzijbord, zijleesten en afneembaar voor- en achterbord | Y85: wiel | Z85: hout | AA85: lamoenboomen | AB85: hout | AC85: kar | AD85: hout | AE85: verbindingselementen | AF85: metaal | AK85: 4 | AL85: 2 | AM85: A | AN85: 815 | AO85: 10/5 | AP85: A | AQ85: 325 | AR85: 225 | AS85: 60 | AU85: 52 | AX85: =ASIN(AZ85/AY85) * 180 / 3.14 -> 2.867437651 | AY85: 200 | AZ85: 10 | BA85: 60 | BB85: 75 | BC85: Rkan, kwarthol, vlak, kwartrond, vlak. | BD85: Rkant, 1/8 rond. | BE85: B | BF85: A. | BG85: B | BH85: 24 | BI85: 60 | BJ85: A | BK85: 1M | BL85: 2S | BM85: 1K | BO85: 30 | BP85: 1520 | BQ85: 2 | BR85: A | BS85: 1400 | BT85: 14/7 | BU85: A | BV85: 405 | BW85: 322 | BX85: 80 | BZ85: 58 | CB85: =ASIN(CE85/CD85) * 180 / 3.14 -> 4.161279483 | CD85: 455 | CE85: 33 | CG85: 70 | CH85: 78 | CI85: Rkant, kwarthol, vlak, kwartrond, rkant. | CJ85: 1/8 rond. | CK85: A | CM85: A | CO85: B | CP85: 47 | CQ85: 75 | CS85: 1M | CT85: 2S | CU85: 2K | CW85: 35 | CX85: 1460 | CY85: AA0/1 | CZ85: Industrieel vervaardigd, in het midden aan elkaar gesmeed. | DA85: A | DB85: A | DC85: 2BM4 | DD85: 2BBVV4 | DE85: 2BK4 | DH85: AC25 | DI85: Versmallend door kwarthol, vlak en kwarthol. | DJ85: Op VB en AB een A14. Op VO en AO is een ingewerkt ogief profiel met breedte van 12 mm. | DK85: In het midden twee metalen ogen vastgezet met bout en moer voor het opsluiten van de langboom. | DT85: A | DV85: AC | DW85: 200 x 100 mm | DX85: laadboom | DY85: 40 mm | EA85: BBVV4 | EB85: 2 verstevigingsdriehoeken achteraan | EC85: De langboom die het vooronderstel verbind met het achteronderstel is verbonden met 2 metalen ogen vasgezet op de asblok en metalen spil me sl euf en splitpen. | EH85: AA0/1 | EI85: In het midden een verdikking met centergat voor het opsluiten van de draaispil. | EJ85: A | EL85: D2 | ER85: 740 | ES85: C | ET85: 2BMVV4 | EU85: 2BK4 | EX85: CF | EY85: Versmallend door kwarthol. | EZ85: Versmalling met een A14. Op VO en AO een doorlopend A14. | FD85: C | FE85: Tussen de schamelblokken en asblok in- en uitlopende A14. | FF85: De voorarmen zitten opgesloten achter de asblok doormiddel van een metalen pin. | FJ85: G | FK85: Voorarmbeugel A. | FL85: A | FM85: BC | FN85: 150 x 70 mm | FO85: Bevestiging boom type B en C. | FP85: C | FR85: A | FS85: Trekbeugel B. | FT85: H | FU85: Versmallend door kwarhol en vlak. | FV85: Op het kopse is op de voorzijde repetitieve gutsisnijdingen. | GA85: MA | GD85: C | GF85: Metalen I-profiel | GH85: 2550 | GI85: Ja. | GJ85: A | GK85: A | GN85: 910 | GO85: 800 | GQ85: lamoenframe | GR85: B3/1 | GS85: Ronden pennen steken 110 mm uit. | GX85: E | GY85: 1040 | GZ85: A | HB85: lamoenboom | HC85: C | HD85: Voor de betimmering inlopend A20 dat overgaat in afrondingsprofiel. Achter de betimmering inlopend A20. Ter hoogte van de betimmering op VB en VO een groef op 10 mm van de zijde. Scharniereinden halfrond in de breedte. | HG85: 760 | HH85: 1780 | HU85: 970 | HZ85: Ba5/2 | IA85: Ronde doorgaande pennen. | IB85: Op OV en OA een in- en uitlopend A12 mm. | IC85: Laadvlak op lamoenboom: Ca3 waarbij de buitenliggers aan de bovenzijde zijn betimmerd. | IG85: B | IH85: F | IK85: B | IL85: Versmallend door schuinoplopend. | IM85: Op de beide kopse einden metaal C. | IP85: 260 | IQ85: 130 | IR85: 980. (Laadvlak op lamoenboom 1270) | IT85: 1680. (Laadvlak op lamoenboom 1740) | IU85: A | IZ85: 94° | JD85: 90° | JE85: Ab4/0 | JG85: Ronde pennen steken 50 mm uit. | JH85: Verbindingsregel met accolade profielering. Zijbord voorstuk: horizontale betimmering met voor de wagenrong een opgetmmerde staander en achter de wagenrong twee opgetimmerde staander en een bovenregel. Op de binnenzijde van de staanders en regels is een ingewerkte profielering met breedte van 18 mm. | JL85: 400 | JM85: A | JN85: Ronde armeindne steken 120 mm uit. Tussen de rongen is een in- en uitlopend A18 mm. | JO85: 3 rongenbeugels A. | JR85: Ak3 | JS85: 220 | JU85: 610 | JV85: rong | JW85: AIA | JY85: FC | KF85: A | KG85: B | KJ85: FC | KP85: A | KQ85: B | KV85: X | LF85: B | LG85: A | LH85: A | LI85: Verfsysteem na 1960.
A86: 83 | E86: Tussen | F86: 1890 | G86: 1930 | H86: Heemkundig Museum 'De botermolen' | M86: Afkomst | P86: 3140 | Q86: Keerbergen | R86: Vlaams-Brabant | S86: België | T86: C | U86: Cf | V86: Af | W86: Geveerde tweewielkar met sponnenzijbord | X86: Kar, twee wielen, twee halve elipsveren, twee S- vormige lamoenbomen met dwarsregels, betimmering, voorschoot, metalen opstapbeugel, schutbord, zijbord met sponnen, vaste zijleesten en afneembaar achterbord. | Y86: wiel | Z86: hout | AA86: lamoenboomen | AB86: hout | AC86: kar | AD86: hout | AE86: verbindingselementen | AF86: metaal | AK86: 2 | BQ86: 2 | BR86: A | BS86: 1260 | BT86: 14/7 | BU86: A | BV86: 290 | BW86: 245 | BX86: 65 | BZ86: 45 | CB86: =ASIN(CE86/CD86) * 180 / 3.14 -> 1.91118206 | CD86: 420 | CE86: 14 | CG86: 66 | CH86: 60 | CI86: Rkant, halfrond, schuinoplopend, halfrond, kwartrond. | CJ86: Rkant, 1/8 rond. | CK86: B | CM86: A | CO86: C | CP86: 12 | CQ86: 48 | CR86: A | CS86: 1M | CT86: 2S | CU86: 2K | CW86: 30 | CX86: 1510 | CY86: CC2/1 | CZ86: Diepte: 130 mm. | DA86: F | DT86: I6 | ED86: Ja | EE86: 1450 | EF86: 9 | EG86: ADA | GJ86: E | GN86: 770 | GQ86: lamoenframe | GR86: C | HB86: lamoenboom | HC86: C | HE86: Halfweg de lamoenboom aan de onderzijde ring A, op de buitenzijde broekhaak AV en beugel D. Nabij het schutbord is op de buitenzijden een broekhaak AA | HG86: 770 | HH86: 1970 | HI86: AA2 | HK86: AD1 | HL86: BA | HP86: AV | HQ86: 1120 | HR86: AA | HS86: 1910 | HU86: 860 | HZ86: Ba8/0 | IA86: Vierkante pennen getapt steken 20 mm uit. Pen A24. | IC86: Verbindingsmetaal A. | IG86: A | IK86: A | IL86: Op VB en VO is een ingewerk halfrond profiel met breedte van 10 mm. | IM86: Op de linker en rechterzijde vooraan opstapbeugel B. | IP86: 1700 | IR86: 1050 | IT86: 2620 | IU86: A | IV86: 600 | IZ86: 90° | JC86: 90° | JD86: 90° | JE86: Ab5/0 | JG86: Vierkante pennen steken 35 uit. Pen E. | JH86: Op de binnenzijde is een opgetimmerde regel waarop de zitbank geplaatst kan worden. Verbindingsregel met een uitgezaagde accoladebogen. | JL86: 380 | JM86: A | JN86: Vooraan: vierkante armeinden steken 60 mm uit, kop A. Achteraan ronde armeinden steken 90 mm uit. Op VO is een tussen de staandes een in- en uitlopend afrondingsprofiel. | JO86: Op de bovenregels en rongen zijn metalen hoekbeugels vastgezet van de zijleesten. | JP86: A | JQ86: 105° gericht t.o.v. het zijbord. Breedte 150 mm | JU86: 570 | JV86: rong | JW86: BKH | KJ86: AC3 | KL86: Buitenstaanders S-vormig. Op VL en VR van de staanders is een in- en uitlopend afrondingsprofiel. Op VO van de bovenregel en VB van de onderrgel tussen de staanderrs is een in- en uitlopend afrondingsprofiel. | KP86: J | KQ86: B | KU86: Horizontale plank vasteget met 2 schutbordbeugel A en schutbordhandgreep A. | LF86: B | LG86: A | LH86: A | LI86: Verfsysteem na 1960.
A87: 84 | C87: 34 | D87: Linker zijbord vooraan | E87: Tussen | F87: 1890 | G87: 1930 | H87: Heemkundig Museum 'De botermolen' | M87: Afkomst | P87: 3140 | Q87: Keerbergen | R87: Vlaams-Brabant | S87: België | T87: C | U87: Cf | V87: Af | W87: Geveerde tweewielkar met sponnenzijbord | X87: Kar, twee wielen, twee halve elipsveren, twee S- vormige lamoenbomen met dwarsregels, betimmering, voorschoot, metalen opstapbeugel, schutbord, zijbord met sponnen, vaste zijleesten en afneembaar achterbord. | Y87: wiel | Z87: hout | AA87: lamoenboomen | AB87: hout | AC87: kar | AD87: hout | AE87: verbindingselementen | AF87: metaal | AK87: 2 | BQ87: 2 | BR87: A | BS87: 1255 | BT87: 14/7 | BU87: A | BV87: 320 | BW87: 257 | BX87: 60 | BZ87: 45 | CB87: 0 | CG87: 70 | CH87: 65 | CI87: Rkant, halfrond, Kwarthol, vlak, kwartrond, | CJ87: Rkant, 1/8 rond. | CK87: B | CM87: A | CO87: C | CP87: 32 | CQ87: 60 | CR87: A | CS87: 1M | CT87: 2S | CU87: 2K | CW87: 28 | CX87: 1530 | CY87: CC2/1 | CZ87: Diepte: 110 mm. | DA87: F | DT87: I6 | ED87: Ja | EE87: 1550 | EF87: 9 | EG87: ADA | GJ87: E | GN87: 800 | GQ87: lamoenframe | GR87: C | HB87: lamoenboom | HC87: C | HE87: Halfweg de lamoenboom op de buitenzijde broekhaak BV gericht naar voren. Nabij het schutbord is op de buitenzijden een broekhaak AA. Op de lamoenboom boven en onderzijde terhoogte van het schutbord is een opgelegd bladstalen profiiel over een lenget an 800 mm. Op de linker en rechter zijde is een opstapbeugel B. | HG87: 750 | HH87: 1960 | HI87: AA2 | HK87: AD1 | HL87: BA | HP87: AV | HQ87: 830 | HR87: AA | HS87: 1900 | HU87: 880 | HZ87: Ba7/0 | IA87: Vierkante pennen getapt steken 20 mm uit | IB87: Pen F | IC87: 2 verbindingsmetalen A | IG87: A | IK87: A | IL87: Op VB en VO is een ingewerk halfrond profiel met breedte van 10 mm. Kop D. | IP87: 150 | IQ87: 90 | IR87: 1080 | IT87: 2620 | IU87: A | IV87: 670 | IZ87: 90° | JC87: 90° | JD87: 90° | JE87: Ab5/0 | JG87: Vierkante pennen steken 35 uit. Pen E | JH87: Op de binnenzijde is een opgetimmerde regel waarop de zitbank geplaatst kan worden. Verbindingsregel met een uitgezaagde accoladebogen. | JL87: 370 | JM87: A | JN87: Vooraan vierkante armeinden steek 50 mm uit, kop B. Achteraan ronde armeinden steken 110 mm uit. Op VO is een tussen de staandes een in- en uitlopend afrondingsprofiel. | JO87: Op de bovenregels en rongen zijn metalen hoekbeugels vastgezet van de zijleesten. | JP87: A | JQ87: 105° gericht t.o.v. het zijbord. Breedte 170 mm | JU87: 590 | JV87: rong | JW87: BKH | KJ87: AE9 | KP87: A | KQ87: B | KU87: Horziozntale plank vastgezet met 2 schutbordbeugels B. | LF87: B | LG87: A | LH87: A | LI87: Verfsysteem na 1960.
A88: 85 | C88: 39 | D88: Linker zijbord vooraan | E88: Tussen | F88: 1890 | G88: 1930 | H88: Heemkundig Museum 'De botermolen' | N88: Laatste gebruiker | O88: Van den Eynde Juul | P88: 3150 | Q88: Wakkerzeel | R88: Vlaams-Brabant | S88: België | T88: C | U88: Cb | V88: Ad | W88: Hoogkar, Malbroeck | X88: Hoogkar, twee wielen, 2 rechte lamoenbomen met neergebogen lamoenboomeinden met dwarsregels, betimmering, voorsteek, vast metalen steunen, sponnenzijbord, opzetborden en afneembaar voor- en achterbord. | Y88: wiel | Z88: hout | AA88: lamoenboomen | AB88: hout | AC88: kar | AD88: hout | AE88: karsteun | AF88: metaal | AG88: verbindingselementen | AH88: metaal | AK88: 2 | BQ88: 2 | BR88: A | BS88: 1595 | BT88: 14/7 | BU88: A | BV88: 470 | BW88: 360 | BX88: 88 | BZ88: 65 | CB88: =ASIN(CE88/CD88) * 180 / 3.14 -> 1.146573262 | CD88: 500 | CE88: 10 | CG88: 98 | CH88: 105 | CI88: Rkant, kwarthol, vlak, kwartrond, rkant, vlak. | CJ88: Rkant, 1/8 rond. | CK88: A | CM88: B | CO88: A | CP88: 45 | CQ88: 95 | CR88: A | CS88: 1M | CT88: 2S | CU88: 2K | CW88: 33 | CX88: 1525 | CY88: DA0/1 | DA88: A | DB88: A | DC88: 1BM4 | DD88: 2BB4 | DE88: 2BK4 | DH88: AC15 | DI88: Versmallend aan de onderzijde door 1/8 hol. | DT88: A | DV88: IC | DW88: 250 x 100 mm | DX88: laadboom | DY88: 40 | EA88: BB4 | GN88: 805 | GQ88: lamoenframe | GR88: DB10/0. | GS88: Ronde pennen gebout. De eerste pen steekt 130 mm | GT88: Op de dwarsregels OV en OA een doorlopend A22 mm. | GU88: Ter hoogte van het zijbord is een verbreedboom. Ruimte tusen de voorlaatste en laatste dwarsregel is 160 mm. | GV88: B | GX88: F | HB88: lamoenboom | HC88: B | HD88: Afronding A. Voor het laadvlak op VO en VB een inlopend A25 dat overgaat in afrondingsprofiel. Op overige zijden afrondingsprofiel. | HE88: Trekbeugel A. Broekhaak A. Halfweg de linker en rechte lamoemboom op de bovenzijde is ring A en op de linker ring B. | HG88: 860 | HH88: 1840 | HI88: AA2 | HJ88: CA2 | HL88: BA | HP88: AA | HQ88: 930 | HU88: 1040 | HZ88: A | IG88: F | IP88: 160 | IR88: 1000 | IT88: 3100 | IU88: A | IV88: 445 | IW88: 45 | IZ88: 90° | JB88: 90° | JD88: 90° | JE88: Ad6/0 | JG88: Ronde pennen getapt steken 38 uit. | JI88: Op de betimmierng zijn op halve hoogte 4 houten ronde klossen waarop rongenbeugels type E voorzien is. | JL88: 430 | JM88: A | JN88: Ronde armeinden steken 120 uit. Op VO tussen de staanders is een in- en uitlopend A20 mm. Op VB een ingewerkt profiel (carré, kwartrond, carré). | JO88: 7 rongenbeugels I | JU88: 655 | JV88: rong | JW88: BMC | JY88: DC3 | KA88: Op alle binnenzijde van het onderbordstuk een ingewerkt profiel (carré, kwartrond, carré). | KF88: A | KG88: N | KH88: C | KI88: E | KJ88: AB3 | KL88: Op VB van de onderregel en VO van de bovenregel tussen de staanders een in- en uitlopend A18. De profielering van de staanders is afgeleid van de rongen, onderaan vierkant profiel, haak ingesneden met doorlopend A18, haaks stopend, vierkant profiel. | KP88: A | KQ88: B | LF88: B | LG88: A | LH88: A | LI88: Verfsysteem na 1960.
A89: 86 | C89: 21 | D89: Voorbord. | E89: Tussen | F89: 1890 | G89: 1930 | H89: Heemkundig Museum 'De botermolen' | N89: Laatste gebruiker | O89: Cornelis Doornlaar | P89: 2820 | Q89: Rijmenam | R89: Antwerpen | S89: België | T89: C | U89: Cg | V89: Bg | W89: Tweewielbeerkar | X89: Kar, twee wielen, twee lamoenbomen met dwarsregels en betimmering. Kipbaar beerkast met bovenaan een scharnierbaar deksel. | Y89: wiel | Z89: hout | AA89: lamoenboomen | AB89: hout | AC89: kar | AD89: hout | AE89: karsteun | AF89: hout | AG89: verbindingselementen | AH89: metaal | AK89: 2 | BQ89: 2 | BR89: A | BS89: 1505 | BT89: 14/7 | BU89: A | BV89: 470 | BW89: 298 | BX89: 78 | BZ89: 55 | CB89: =ASIN(CE89/CD89) * 180 / 3.14 -> -0.3307220698 | CD89: 520 | CE89: -3 | CG89: 72 | CH89: 55 | CI89: Rkant, schuinoplopend, rkant, vlak, kwartrond, rkant, vlak, rkant, vlak. | CJ89: Rkant, 1/8 rond. | CK89: B | CM89: A | CO89: A | CP89: 38 | CQ89: 95 | CR89: A | CS89: 1M | CT89: 2S | CU89: 2K | CW89: 33 | CX89: 1470 | CY89: DA0/1 | DA89: A | DB89: A | DC89: 1BM4 | DD89: 2BB4 | DH89: AC13 | DI89: Versmallend aan de onderzijde door 1/8 hol. | DT89: A | DV89: EB | DW89: 170 x 230 mm | DX89: laadboom | DY89: 10 | EA89: BB4 | GI89: Ja | GJ89: A | GK89: A | GN89: 840 | GO89: 400 | GQ89: lamoenframe | GR89: B3/0 | GS89: Vierkante pennen getapt steken 90 uit. De verdiepte regel is vastgezet met bout en moer. | GT89: Op OV en OA een doorgaand A15. | GX89: B | GY89: 980 | GZ89: CB | HB89: lamoenboom | HC89: C | HD89: Voor de betimmering op alle zijden een inlopend A22. | HE89: Metaalbeslag A | HG89: 775 | HH89: 1820 | HP89: AV | HQ89: 880 | HR89: AA | HS89: 1720 | HU89: 960 | HZ89: Ba8/0 | IB89: Op OV en OA een doorlopend A18. | IK89: B | IL89: Achteraan versmallend door 1/8 hol en schuinoplopend. Op de zijden van het kopeind inlopend en tussen de staanders een in- en uitlopend A18. | IP89: 180 | IQ89: 100 | IR89: 850 | IT89: 1700 | IU89: A | IZ89: 90° | JB89: 90° | JD89: 90° | JE89: Ba5/0/4 | JH89: Op VL en VR van de staanders een in- en uitlopend A40. | JL89: 335 | JM89: A | JN89: Vierkante armeinden steken 80 uit. Op VO tussen de staanders een A40 en op alle zijden van de kopse einden een A10. | JU89: 430 | JV89: staander | JW89: FHA | JY89: Eb2/2 | KA89: Op VO van de bovenregel en VL en VR van de staanders een in- en uitlopend A40. | KJ89: EB2/2. | KL89: Op VO van de bovenregel en VL en VR van de staanders een in- en uitlopend A40. | KM89: Tussen de twee staanders is een opgetimmerde tussenregel met metalen aftappunt | KR89: B | KS89: A1 | KT89: Scharnier C. De verbindingstang van het zijbord loopt door in het scharnierblad en sluit op het deksel op met een metalen spie. Handgreep A. Deksel 860 x 560 | LF89: B | LG89: A | LH89: A | LI89: Verfsysteem na 1960.
A90: 87 | C90: 20 | D90: Voorbord | E90: Tussen | F90: 1890 | G90: 1930 | H90: Heemkundig Museum 'De botermolen' | N90: Laatste gebruiker | O90: Carnelis Juul | P90: 2580 | Q90: Putte | R90: Antwerpen | S90: België | T90: C | U90: Cd | V90: Bg | Y90: wiel | Z90: hout | AA90: lamoenboomen | AB90: hout | AC90: kar | AD90: hout | AE90: verbindingselementen | AF90: metaal | AK90: 2 | BQ90: 2 | BR90: A | BS90: 1020 | BT90: 12/6 | BU90: A | BV90: 270 | BW90: 190 | BX90: 55 | BZ90: 40 | CB90: =ASIN(CE90/CD90) * 180 / 3.14 -> 1.638075512 | CD90: 350 | CE90: 10 | CG90: 60 | CH90: 52 | CI90: Rkant, halfrond, halfhol, vlak, kwartrond, rkant, vlak. | CJ90: Rkant, 1/8 rond. | CK90: B | CM90: A | CO90: C | CP90: 22 | CQ90: 60 | CR90: A | CS90: 1M | CT90: 2S | CU90: 2K | CW90: 25 | CX90: 1130 | CY90: AA0/1 | DA90: A | DB90: A | DC90: 2BBS4 | DH90: AA | DT90: I6 | DV90: GB | DW90: 850 x 160 mm | DX90: laadboom | DY90: 10 | EA90: BBS4 | GJ90: F | GN90: 660 | GQ90: lamoenframe | GR90: CC | GV90: A | GW90: Gedeeltelijk lopend tot voor de asblok | HB90: lamoenboom | HC90: C | HD90: Voor de betimmering is op VB en VO een inlopend A15 | HG90: 630 | HH90: 1630 | HP90: AV | HQ90: 460 | HR90: AA | HS90: 1600 | HU90: 700 | HZ90: Ba5/0 | IB90: Op OV en OA van de dwarsregels is een A15. | IP90: 170 | IQ90: 110 | IR90: 655 | IT90: 1320 | IU90: A | IZ90: 90° | JB90: 90° | JD90: 90° | JE90: Ba4/0/2 | JH90: Op VL en VR van de staanders een in- en uitlopend A14. | JL90: 330 | JM90: A | JN90: Vierkante armeinden steken 90 uit. Op VO tussen de staanders een A14 en op alle zijden van de kopse einden een inlopend A10. Kop F. | JU90: 440 | JV90: staander | JW90: FHA | JY90: EA1/3 | KA90: Op VO van de bovenregel tussen de staanders en VL en VR van de staanders een in- en uitlopend A14. | KJ90: EA1/3. | KL90: Op VO van de bovenregel tussen de staanders en VL en VR van de staanders een in- en uitlopend A14. | KM90: De middenregel is onderaan verbreed. Hierop is een metalen aftappunt bevestigd. | KR90: B | KS90: B | KT90: Scharnier C. Handgreep C. De verbindingstang van het achterbord loopt door in het scharnierblad en sluit het deksel op met een metalen spie. Deksel 420 x 380 | LF90: B | LG90: A | LH90: A | LI90: Verfsysteem na 1960.
A91: 88 | C91: 19 | D91: Voorbord. | E91: Tussen | F91: 1890 | G91: 1930 | H91: Heemkundig Museum 'De botermolen' | N91: Laatste gebruiker | O91: Jacobs Kruisbaan | P91: 2580 | Q91: Putte | R91: Antwerpen | S91: België | T91: C | U91: Ca | V91: Bg | W91: Baanbeer met vaste karsteun. | X91: Kar, twee wielen, 2 rechte lamoenbomen met neergebogen lamoenboomeinden en vaste metalen steunen, vaste beerkist met bovenaan een scharnierbaar deksel. | Y91: wiel | Z91: hout | AA91: lamoenboomen | AB91: hout | AC91: kar | AD91: hout | AE91: karsteun | AF91: metaal | AG91: verbindingselementen | AH91: metaal | AK91: 2 | BQ91: 2 | BR91: A | BS91: 1433 | BT91: 14/7 | BU91: A. | BV91: 470 | BW91: 325 | BX91: 86 | BZ91: 60 | CB91: =ASIN(CE91/CD91) * 180 / 3.14 -> 2.038646256 | CD91: 450 | CE91: 16 | CG91: 82 | CH91: 93 | CI91: Rkant, schuinoplopend, rkant, vlak, kwartrond, rkant, vlak, raknt, 1/8 rond. | CJ91: Rkant, 1/8 rond. | CK91: B | CM91: B | CO91: A | CP91: 55 | CQ91: 100 | CR91: A | CS91: 1M | CT91: 2S | CU91: 2K | CW91: 33 | CX91: 1490 | CY91: AA0/1 | DA91: A | DB91: A | DC91: 3BM4 | DD91: 2BB4 | DH91: AC20 | DT91: A | DV91: F | DW91: 1580 x 100 mm | DX91: laadboom | DY91: 15 | EA91: BB4 | EB91: Enkel achteraan verstevigingsdriehoeken. | GN91: 800 | GQ91: lamoenframe | GR91: D8/4 | GS91: Vierkante pennen getapt. De eerste en tweede pen steken 100 uit. Daar waar het spatscherm is steken de pennen 110 uit | GU91: Achteraan is een opgetimmerde blok met gat bekleed met metaal. | GX91: B | HB91: lamoenboom | HC91: B | HD91: Voor de betimmering is op VB en VO een inlopend A25. Tussen de staanders i een in- en uitlopend afrondingsprofiel. | HE91: Halfweg de lamoenboom is een broekhaak A naar voren gericht en aan het laadvlak een broekhaak A naar achteren gericht. | HG91: 720 | HH91: 1830 | HI91: AA2 | HJ91: CA2 | HK91: AD1 | HL91: BA | HP91: AV | HQ91: 110 | HR91: AA | HS91: 1700 | HU91: 940 | HZ91: A | IP91: 175 | IR91: 980 | IT91: 2910 | IU91: A | IV91: 340 | IZ91: 94° | JB91: 90° | JD91: 90° | JE91: Ba6/5 | JG91: Pennen getapt. | JH91: Op VL en VR van de staanders een in- en uitlopend A18. | JL91: 420 | JM91: A | JN91: Vierkante armeinden steken 60 uit. Op VO tussen de staanders een A18 en op alle zijden van de kopse einden een inlopend A18. | JU91: 530 | JY91: EA2/2 | KA91: Op VO van de bovenregel tussen de staanders en VL en VR van de staanders een in- en uitlopend A14. | KJ91: EA2/2 | KL91: Op VO van de bovenregel tussen de staanders en VL en VR van de staanders een in- en uitlopend A14. | KM91: Op het achterbord is een rode reflector. | KS91: A1 | KT91: Schzarnier A. Handgreep C. Midden het bovenbod is een houten klos. Deksel 780 x 620 mm. | LF91: B | LG91: A | LH91: A | LI91: Verfsysteem na 1960.
A92: 89 | E92: Tussen | F92: 1880 | G92: 1945 | H92: Heemkundig Museum 'De botermolen' | M92: Afkomst | P92: 3140 | Q92: Keerbergen | R92: Vlaams-Brabant | S92: België | T92: B | U92: Ba | V92: Ac | W92: Kempische kruiwagen | X92: Kruiwagen, één wiel, twee S-vormige berriebomen, metalen kruiwagenvoet, afneembare zijborden en vast voorbord. | Y92: wiel | Z92: hout | AA92: kruiwagenvoet | AB92: metaal | AC92: kruiwagen | AD92: hout | AE92: verbindingselementen | AF92: metaal | AK92: 1 | AL92: 1 | AM92: A | AN92: 525 | AO92: 8/4 | AP92: A | AQ92: 380 | AR92: 115 | AS92: 30 | AU92: 22 | AX92: 0° | BA92: 55 | BB92: 52 | BC92: Rkant, schuinoplopend, rkant, kwarthol, vlak. | BD92: Rkant, schuinoplopend, rkant, kwarthol, vlak. | BE92: I | BF92: B | BI92: 40 | BK92: 2K | EH92: AB0/4 | EJ92: B | EK92: C | FL92: X | GN92: 470 | GQ92: berrieframe | GR92: C4 | GS92: Ronde pennen opgespied steken 30 uit. | GT92: Op OV en OA van de dwarsregels is een doorgaande A14. | GX92: A | HB92: berrieboom | HC92: B | HD92: Voor en achter het laadvlak op alle zijden een inlopend A14. | HG92: 550 | HH92: 840 | HN92: D | HU92: 290 | HV92: C | HZ92: A | IG92: J | IQ92: 390 | IR92: 525 | IS92: 585 | IT92: 730 | IU92: B | IZ92: 90° | JB92: 122° | JE92: An1 | JU92: 300 | JV92: rong | JW92: DBA | JY92: EF2/0 | KA92: Op VL en VR van de staanders is een in- en uitlopend A17. Op VO van de bovenregel is tussen de staanders en kopse einden een in- en uitlopend A17. Op =VB van de bovenregel is een A 20 en op VA een afrondingsprofiel. | KC92: B8 | KV92: X | LF92: B | LG92: A | LH92: A | LI92: Verfsysteem na 1960.
A93: 90 | C93: 57 | E93: Tussen | F93: 1890 | G93: 1930 | H93: Heemkundig Museum 'De botermolen' | N93: Laatste gebruiker | O93: Julien Verboomen | P93: 3050 | Q93: Blanden | R93: Vlaams-Brabant | S93: België | T93: C | U93: Cg | V93: Ad | W93: Vlaamse aardkar | X93: Aardkar, twee wielen, lamoenframe scharnierbaar bevestigd met karbak, sponnenzijbord, opzetborden en afneembaar voor- en achterbord | Y93: wiel | Z93: hout | AA93: lamoenboomen | AB93: hout | AC93: kar | AD93: hout | AE93: karsteun | AF93: hout | AG93: verbindingselementen | AH93: metaal | AK93: 2 | BQ93: 2 | BR93: A | BS93: 1300 | BT93: 12/6 | BU93: A. | BV93: 360 | BW93: 300 | BX93: 72 | BZ93: 52 | CB93: =ASIN(CE93/CD93) * 180 / 3.14 -> 0.4194537973 | CD93: 410 | CE93: 3 | CG93: 84 | CH93: 65 | CI93: Rkant, kwarthol, vlak, kwartrond, rkant, vlak. | CJ93: Rkant, schuinoplopend, rkant, vlak. | CK93: B | CM93: A | CO93: A | CP93: 49 | CQ93: 90 | CR93: A | CS93: 1M | CT93: 2S | CU93: 2K | CW93: 35 | CY93: AA0/1 | DA93: A | DB93: A | DC93: 1BM4 | DD93: 2BBVA4 | DH93: AC20 | DI93: Versmallend door 1/8 hol. | DJ93: Op VB en AB is een in- en uitlopend A30. | DT93: A | DV93: EC | DW93: 230 x 160 mm | DX93: laadboom | DY93: 20 | EA93: BVA4 | GI93: Ja | GJ93: A | GK93: A | GN93: 815 | GO93: 410 | GQ93: lamoenframe | GR93: B2/0 | GS93: Vierkante pennen. De eerste pen is opgespied en steekt 110 uit. | GT93: Op OV en OA van de dwarsregels is een A20. | GU93: Verbindingsmetaal B. | GX93: B | GY93: 950 | GZ93: CC | HB93: lamoenboom | HC93: C | HD93: Voor de betimmering is op alle zijden een inlopend A18. | HE93: Trekbeugel A. Broekhaak AV. Aan de betimmering broekhaak AA. Metaalbeslag A. | HG93: 770 | HH93: 1880 | HI93: AD1 | HL93: BA | HP93: AV | HQ93: 970 | HR93: AA | HS93: 1820 | HU93: 1020 | HW93: L | HY93: Linkerzijde, zijbord, onderaan, vooraan. | HZ93: Ba6/0 | IB93: Op OV en OA van de dwarsregels is een A20. Op AO van de achterregel is een ingewerkt halfrond profiel met breedte van 10 mm. | IG93: A | IK93: B | IL93: Vierkante pennen steken 15 uit. Pen B. Versmallend door schuinoplopend met op het achterste kopse eind een kwartrond in de breedte | IM93: Metaal D | IP93: 180 | IR93: 930 | IT93: 1750 | IU93: A | IV93: 120 | IW93: 25 | IZ93: 98° | JB93: 90° | JD93: 93° | JE93: Ab5/0 | JG93: Vierkante pennen steken 40 uit. | JH93: Verbindingsregel recht met op binnenzijde een ingewerkt halfrond profiel met breedt van 10 mm. De horizontale planken van de betimmering heeft op VB een ingewerk halfrond profiel met breedte van 8 mm. | JL93: 450 | JM93: A | JN93: Ronde armeinden steken 120 uit. Op VO tussen de staanders een A30. Op VB is op 10 mm van de bovenzijde een groep. | JO93: 4 rongbeugels E. | JR93: Ak4 | JS93: 195 | JU93: 580 | JV93: rong | JW93: BEC | JY93: AB3 | KA93: S-vormige buitenstaansters. Profilering staanders: vierkant, in- uitlopend afrondingsprofiel, vierkant. Op VO van de bovenregel en VB van de onderregel tussen de staanders en doorlopend op kopse eind in- en uitlopend afrondingsprofiel. Kop E. De horizontale planken van de betimmering heeft op VB een ingewerk halfrond profiel met breedte van 8 mm. | KF93: A | KG93: B | KJ93: AB3 | KL93: S-vormige buitenstaansters. Profilering staanders: vierkant, in- uitlopend afrondingsprofiel, vierkant. Op VO van de bovenregel en VB van de onderregel tussen de staanders en doorlopend op kopse eind in- en uitlopend afrondingsprofiel. Kop E. De horizontale planken van de betimmering heeft op VB een ingewerk halfrond profiel met breedte van 8 mm. | KP93: A | KQ93: B | LF93: C | LG93: A | LH93: A | LI93: Sporen van restauratie. Verfsysteem na 1960.
A94: 91 | C94: 27 | D94: Voorbord | E94: Tussen | F94: 1890 | G94: 1930 | H94: Heemkundig Museum 'De botermolen' | N94: Laatste gebruiker | O94: Van Craen - Lauwers | P94: 1981 | Q94: Zemst-laar | R94: Vlaams-Brabant | S94: België | T94: C | U94: Cg | V94: Ad | W94: Vlaamse aardkar | X94: Aardkar, twee wielen, lamoenframe scharnierbaar bevestigd met karbak, sponnenzijbord en afneembaar voor- en achterbord | Y94: wiel | Z94: hout | AA94: lamoenboomen | AB94: hout | AC94: kar | AD94: hout | AE94: karsteun | AF94: hout | AG94: verbindingselementen | AH94: metaal | AK94: 2 | BQ94: 2 | BR94: A | BS94: 1495 | BT94: 14/7 | BU94: A | BV94: 465 | BW94: 325 | BX94: 80 | BZ94: 58 | CB94: 3.277490508 | CD94: 490 | CE94: 28 | CG94: 85 | CH94: 105 | CI94: Rkant, schuinoplopend, kwarthol, vlak, kwartrond, rkant, vlak, rkant, vlak. | CJ94: Rkant, 1/8 rond. | CK94: A | CM94: B | CO94: A | CP94: 39 | CQ94: 95 | CR94: A | CS94: 1M | CT94: 2S | CU94: 2K | CW94: 38 | CX94: 1500 | CY94: AA0/1 | DA94: A | DB94: A | DC94: 1BM4 | DD94: 2BB4 | DH94: AC11 | DI94: Versmallend door 1/8 hol. | DJ94: Op VB en AB is een in- en uitlopend A20. | DT94: A | DV94: AC | DW94: 190 x 120 mm | DX94: laadboom | DY94: 40 | EA94: BB4 | GI94: Ja | GJ94: A | GK94: A | GN94: 895 | GO94: 300 | GQ94: lamoenframe | GR94: B3/0 | GS94: Ronde pennen, waarvan de eerste is gebout steken 110 mm uit. | GT94: Op OV en OA is een doorgaand A20. | GX94: C | GY94: 1040 | GZ94: E | HB94: lamoenboom | HC94: B | HD94: Voor de betimmering is op VB en VO een inlopend A25. Scharniereind, kop B | HE94: Halfweg de lamoenboom is een broekhaak AV gericht en aan het laadvlak een broekhaak AA. . Metaalbeslag A. Op de linker lamoenboom is een opstapbeugel D. | HG94: 830 | HH94: 1850 | HI94: AD1 | HL94: BA | HP94: AV | HQ94: 103 | HR94: AA | HS94: 1900 | HU94: 1030 | HZ94: Ba6/2 | IA94: Ronde doorgaande pennen. | IB94: Op OV en OA van de dwarsregels is een A21. | IG94: F | IK94: B | IL94: Ronde doorgaande pennen. Versmallend vooraan door schuinoplopend, achteraan door kwarthol, schuinoplopend, en kopse eind een kwartrond in de breedte. | IM94: Metaal D | IP94: 220 | IQ94: 105 | IR94: 1050 | IT94: 1960 | IU94: A | IV94: 80 | IZ94: 90° | JB94: 90° | JD94: 90° | JE94: Aa5/0 | JG94: Ronde pennen getapt steken 50 uit. | JH94: De horizontale betimmering heeft op VO en VB op 5 mm van de zijde een licht ingeschaaft dubbele groef. | JI94: Op halve hoogte van de betimmering zijn 3 hartvormige klossen met rongenbeugel J. | JL94: 345 | JM94: A | JN94: Ronde armeinden steken 110 uit. Op VO tussen de staanders een A20, ter hoogte van de rongen is een doorlopend ingewerk dubbele groef profiel. | JO94: Rongbeugels J | JU94: 690 | JV94: rong | JW94: BOH | JX94: Decoratief ingesneden in V- vorm halfrond profiel met breedte van 10 mm. | JY94: DC2 | KA94: Onderbord op de binnenzijde van de staanders en regel een ingewerk halfrond profiel. Op VB van de bovenregel een doorlopend A14 op de kopse einden. Kop B. Op VO van de bovenregel een ingewerkt dubbele groef op 8 mm van de zijde. Op de kopse einden van de betimmering is een repetitieve gustinsijjding. | KF94: A | KG94: N | KH94: C | KI94: K | KJ94: AF3 | KL94: S-vormige buitenstaansters. Profilering staanders: vierkant, in- uitlopend Afschuiningsprofiel, vierkant. Op VO van de bovenregel en VB van de onderregel tussen de staanders en doorlopend op kopse eind in- en uitlopend A14. Kop E. Op de kopse einden van de betimmering is een repetitieve gustinsijjding. | KP94: A | KQ94: B | LF94: B | LG94: A | LH94: A | LI94: Verfsysteem na 1960.
A95: 92 | C95: 28 | D95: Voorbord | E95: Tussen | F95: 1890 | G95: 1930 | H95: Heemkundig Museum 'De botermolen' | N95: Laatste gebruiker | O95: Meysmans | P95: 1981 | Q95: Zemst-laar | R95: Vlaams-Brabant | S95: België | T95: C | U95: Cg | V95: Ad | W95: Vlaamse aardkar | X95: Aardkar, twee wielen, lamoenframe scharnierbaar bevestigd met karbak, sponnenzijbord en afneembaar voor- en achterbord | Y95: wiel | Z95: hout | AA95: lamoenboomen | AB95: hout | AC95: kar | AD95: hout | AE95: karsteun | AF95: hout | AG95: verbindingselementen | AH95: metaal | AK95: 2 | BQ95: 2 | BR95: A | BS95: 1480 | BT95: 12/6 | BU95: A | BV95: 470 | BW95: 323 | BX95: 80 | BZ95: 55 | CB95: 2.389226699 | CD95: 480 | CE95: 20 | CG95: 86 | CH95: 105 | CI95: Rkant, schuinoplopend, kwarthol, vlak, kwartrond, rkant, vlak. | CJ95: Rkant, 1/8 rond. | CK95: A | CM95: B | CO95: A | CP95: 38 | CQ95: 90 | CR95: A | CS95: 1M | CT95: 2S | CU95: 2K | CW95: 30 | CX95: 1480 | CY95: AA0/1 | DA95: A | DB95: A | DC95: 1BM4 | DD95: 2BBB4 | DH95: AC25 | DI95: Versmallend door 1/8 hol. | DT95: A | DV95: AC | DW95: 200 x 150 mm | DX95: laadboom | DY95: 10 | EA95: BBB4 | GI95: Ja | GJ95: A | GK95: A | GN95: 895 | GO95: 320 | GQ95: lamoenframe | GR95: B3/0 | GS95: Ronde pennen getapt, de tweed is gebout steken 80 mm uit. | GT95: Op OV en OA is een doorgaand A20. | GX95: F | GY95: 1080 | GZ95: CB | HB95: lamoenboom | HC95: C | HD95: Voor de betimmering is op alle zijden een inlopend A20. Scharniereind, kop G. | HE95: Metaalbeslag A. Halfweg de lamoenboom is een broekhaak A naar voren gericht en aan het laadvlak een broekhaak A naar achteren gericht. | HG95: 770 | HH95: 1840 | HI95: AD1 | HL95: BA | HP95: AV | HQ95: 900 | HR95: AA | HS95: 1860 | HU95: 1060 | HZ95: Ba6/2 | IA95: Vierkante doorgaande pennen en steken achter het l amoenframe 20 uit. | IC95: Pen A. . Op OV en OA van de dwarsregels is een A15. | IG95: A | IH95: G | IK95: B | IL95: Vierkante pennen steken 15 uit. Pen B. Versmallend vooraan door schuinoplopend, achteraan door 1/8 hol, schuinoplopend, en kopse eind een kwartrond in de breedte. | IM95: Metaal D | IP95: 240 | IQ95: 100 | IR95: 910 | IT95: 2000 | IU95: A | IV95: 130 | IW95: 15 | IZ95: 90° | JB95: 90° | JD95: 90° | JE95: Aa5/0 | JG95: Ronde pennen getapt steken 30 uit. | JH95: De horizontale betimmering heeft op VO en VB op 5 m van de zijde een licht ingeschaaft 3 groef. | JL95: 340 | JM95: A | JN95: Ronde armeinden steken 95 uit. Op VO tussen de staanders een A25, ter hoogte van de rongen is een doorlopend ingewerk dubbele groef profiel. | JO95: Rongbeugels J. | JP95: B | JQ95: De rongen zijn Licht S-vormig. Op Vl en VR van de rongen bovenaan een inlopend A25 dat doorloopt onderaan. Op VB en VO van de regel op 12 mm van de zijde een groep. | JR95: Ak3 | JS95: 195 | JU95: 665 | JV95: rong | JW95: BOH | JX95: Decoratief ingesneden in V- vorm halfrond profiel met breedte van 10 mm. | JY95: DC2 | KA95: Onderbord op de binnenzijde van de staanders en regel is een uitgewerkt accolademoteif. Op VB van de bovenregel is een ingewerkte groef. Kop B. Op VO van de bovenregel is een A15 die doorloop op het kopse eind. | KF95: A | KG95: N | KH95: C | KI95: K | KJ95: AF3 | KL95: S-vormige buitenstaansters. Profilering staanders: vierkant, in- uitlopend Afschuiningsprofiel, vierkant. Op VO van de bovenregel tussen de staanders en doorlopend op kopse eind in- en uitlopend A22. Kop E. De horizontale betimmering heeft op VO en VB op 5 m van de zijde een licht ingeschaaft 3 groef. | KP95: A | KQ95: B | LF95: B | LG95: A | LH95: A | LI95: Verfsysteem na 1960.
A96: 93 | C96: 30 | E96: Tussen | F96: 1890 | G96: 1930 | H96: Heemkundig Museum 'De botermolen' | N96: Laatste gebruiker | O96: Cornelis Juul | P96: 2580 | Q96: Putte | R96: Antwerpen | S96: België | T96: C | U96: Cg | V96: Ad | W96: Vlaamse aardkar | X96: Aardkar, twee wielen, lamoenframe scharnierbaar bevestigd met karbak, sponnenzijbord, opzetborden en afneembaar voor- en achterbord | Y96: wiel | Z96: hout | AA96: lamoenboomen | AB96: hout | AC96: kar | AD96: hout | AE96: karsteun | AF96: hout | AG96: verbindingselementen | AH96: metaal | AK96: 2 | BQ96: 2 | BR96: A | BS96: 1290 | BT96: 14/7 | BU96: A | BV96: 380 | BW96: 260 | BX96: 70 | BZ96: 46 | CB96: 2.320925205 | CD96: 420 | CE96: 17 | CG96: 70 | CH96: 60 | CI96: Rkant, vlak, rkant, vlak, kwartrond, rkant, vlak, rkant, vlak. | CJ96: Rkant, 1/8 rond. | CK96: B | CM96: B | CO96: A | CP96: 55 | CQ96: 100 | CR96: A | CS96: 1M | CT96: 2S | CU96: 2K | CW96: 30 | CX96: 1515 | CY96: AA0/1 | DA96: A | DB96: A | DC96: 1BM6 | DD96: 2BB6 | DE96: 2BK6 | DH96: AC22 | DI96: Versmallend door 1/8 hol. | DT96: A | DV96: BC | DW96: 160 x 100 mm | DX96: laadboom | DY96: 26 | EA96: BB4 | GI96: Ja | GJ96: A | GK96: A | GN96: 825 | GO96: 400 | GQ96: lamoenframe | GR96: A3/0/0 | GS96: Ronde pennen gebout steken 90 uit. | GT96: Op OV en OA is een doorgaand A15. | GX96: C | GY96: 970 | GZ96: C | HB96: lamoenboom | HC96: C | HD96: Voor de betimmering is op alle zijden een inlopend A20. Scharniereind, kop G. Afronding A. | HE96: Halfweg de lamoenboom is een broekhaak A naar voren gericht en aan het laadvlak een broekhaak A naar achteren gericht. | HG96: 730 | HH96: 1770 | HI96: AD1 | HL96: BA | HP96: AV | HQ96: 880 | HR96: AA | HS96: 1610 | HU96: 940 | HZ96: Ba6/2 | IA96: Ronde doorgaande pennen. | IB96: Pen A. Op OV en OA van de dwarsregels is een A15. | IG96: A | IK96: B | IL96: Ronden pennen steken 15 uit. Pen A. Versmallend vooraan door schuinoplopend, achteraan door 1/8 hol, schuinoplopend en kop H. | IM96: Metaal E. | IP96: 180 | IR96: 870 | IT96: 1600 | IU96: A | IZ96: 90° | JB96: 90° | JD96: 90° | JE96: Ab5/0 | JG96: Ronde pennen getapt steken 30 uit. | JH96: Verbindingsregel recht. | JL96: 305 | JM96: A | JN96: Ronde armeinden steken 95 uit. Op VO tussen de staanders een A18. | JO96: Rongbeugels I. | JP96: B | JQ96: De rongen zijn recht. Op Vl en VR van de rongen is bovenaan een inlopend A18 dat doorloopt onderaan. Op VO van de regel is een in- en uitlopend A18. | JR96: Ak3 | JS96: 195 | JU96: 570 | JV96: rong | JW96: BOE | JY96: DC0 | KA96: Bovenregel kop B met doorgaand A14 en op VO een ingwerkt halfrond profiel. | KF96: A | KG96: N | KH96: C | KI96: E | KJ96: AC3 | KL96: S-vormige buitenstaansters. Profilering staanders: vierkant, in- uitlopend Afschuiningsprofiel, vervolgens kort in- en uitlopen A, vierkant. Op VO van de bovenregel tussen de staanders en doorlopend op kopse eind in- en uitlopend A14. Kop E. | KP96: A | KQ96: B | LF96: B | LG96: A | LH96: A | LI96: Verfsysteem na 1960.
A97: 94 | C97: 29 | D97: Voorbord | E97: Tussen | F97: 1890 | G97: 1930 | H97: Heemkundig Museum 'De botermolen' | N97: Laatste gebruiker | O97: Van Vlasselaer H. | P97: 3150 | Q97: Haacht | R97: Vlaams-Brabant | S97: België | T97: C | U97: Cg | V97: Ad | W97: Vlaamse aardkar | X97: Aardkar, twee wielen, lamoenframe scharnierbaar bevestigd met karbak, voor- en achtergek, zijleesten, sponnenzijbord en afneembaar voor- en achterbord | Y97: wiel | Z97: hout | AA97: lamoenboomen | AB97: hout | AC97: kar | AD97: hout | AE97: karsteun | AF97: hout | AG97: verbindingselementen | AH97: metaal | AK97: 2 | BQ97: 2 | BR97: A | BS97: 1415 | BT97: 12/6 | BU97: A | BV97: 430 | BW97: 315 | BX97: 75 | BZ97: 56 | CB97: 1.246290368 | CD97: 460 | CE97: 10 | CG97: 83 | CH97: 60 | CI97: Rkant, schuinoplopend, rkant, kwarthol, vlak, kwartrond, rkant, vlak. | CJ97: Rkant, 1/8 rond. | CK97: A | CM97: C | CO97: A | CP97: 52 | CQ97: 82 | CR97: A | CS97: 1M | CT97: 2S | CU97: 2K | CW97: 33 | CX97: 1520 | CY97: AA0/1 | DA97: A | DB97: A | DC97: 1BM4 | DD97: 2BBB4 | DH97: AC25 | DJ97: Tussen de laadbomen en de middenbeugel is een in- en uitlopend A30. | DT97: A | DV97: F | DW97: 420 x 180 | DX97: laadboom | DY97: 25 | EA97: BBB4 | GI97: Ja | GJ97: A | GK97: A | GN97: 900 | GO97: 450 | GQ97: lamoenframe | GR97: A2/0/0. | GS97: Ronde pennen getapt. De eerste pen steekt 90 uit. | GT97: Op OV en OA is een doorgaand A15. | GX97: A | GY97: 1030 | GZ97: CB | HB97: lamoenboom | HC97: B | HD97: Voor en achter de betimmering is op alle zijden inlopend A22. Scharniereind, kop B. | HE97: Halfweg de lamoenboom is een broekhaak A naar voren gericht en aan het laadvlak een broekhaak A naar achteren gericht. | HG97: 850 | HH97: 1820 | HI97: AD1 | HL97: BA | HP97: AV | HQ97: 1200 | HR97: AA | HS97: 1860 | HU97: 920 | HZ97: Ba6/2 | IA97: Ronde doorgaande pennen. | IB97: Op OV en OA van de dwarsregels is een A15. Op de achterste dwarsregel is een ring A. | IG97: A | IH97: G | IK97: B | IL97: Versmallend vooraan door schuinoplopend, achteraan door kwarthol, schuinoplopend en kop E. | IM97: Metaal D. | IP97: 195 | IR97: 910 | IT97: 1920 | IU97: A | IV97: 80 | IW97: 10 | IZ97: 90° | JB97: 90° | JD97: 90° | JE97: Ad4 | JG97: Vierkante pennen getapt steken 35 uit. | JH97: Op de betimmering is onder de rongenbeugel op de bovenregel een houten opgetimmerde klos. | JL97: 500 | JM97: A | JN97: Vierkante armeinden steken 112 uit. Op VO tussen de staanders een A18. . Kop: versmallend op alle zijden naar de kop toe maar niet tpot ee punt | JO97: Rongbeugels J. | JP97: B | JQ97: De rongen zijn recht. Op Vl en VR van de rongen is bovenaan een inlopend A18 dat doorloopt onderaan. Op VO van de regel is een in- en uitlopend A18. | JU97: 620 | JV97: rong | JW97: BEI | JY97: DC0 | KA97: Het bovenbord is niet aanwezig. Onderbord op de binnenzijde van de staanders en regel is een uitgewerkt ogiefprofiel. | KF97: A | KH97: Fa | KI97: B | KJ97: AB3 | KL97: S-vormige buitenstaansters. Op VL en VR van de staanders een in- en uitlopend A 18. Op VO van de bovenregel tusen de staanerrs en VB doorlopend een A18. | KP97: A | KQ97: B | LF97: B | LG97: A | LH97: A | LI97: Verfsysteem na 1960.
A98: 95 | C98: 32 | E98: Tussen | F98: 1890 | G98: 1930 | H98: Heemkundig Museum 'De botermolen' | N98: Laatste gebruiker | O98: Jjos Goossens | P98: 3272 | Q98: Testelt | R98: Vlaams-Brabant | S98: België | T98: C | U98: Cb | V98: Ae | W98: Hoogkar | X98: Hoogkar, twee wielen, 2 rechte lamoenbomen met dwarsregels, betimmering, voorsteek, sponnenzijbord en afneembaar achterbord. | Y98: wiel | Z98: hout | AA98: lamoenboomen | AB98: hout | AC98: kar | AD98: hout | AE98: karsteun | AF98: hout | AG98: verbindingselementen | AH98: metaal | AK98: 2 | BQ98: 2 | BR98: A | BS98: 1445 | BT98: 12/6 | BU98: A | BV98: 480 | BW98: 273 | BX98: 80 | BZ98: 55 | CB98: 5.511672854 | CD98: 500 | CE98: 48 | CG98: 80 | CH98: 57 | CI98: Rkant, schuinoplopend, rkant, kwarthol, vlak, kwartrond. | CJ98: Rkant, 1/8 rond. | CK98: A | CM98: C | CO98: A | CP98: 44 | CQ98: 93 | CR98: A | CS98: 1M | CT98: 2S | CU98: 2K | CW98: 42 | CX98: 1570 | CY98: AA0/1 | DA98: A | DB98: A | DC98: 1BM4 | DD98: 2BB4 | DH98: AC20 | DI98: Versmallend door kwarthol, carre, vlak. carre en kwarthol | DJ98: Op OV en OA een A14. | DT98: A | DV98: BC | DW98: 170 x 110 mm | DX98: laadboom | DY98: 15 | EA98: BB4 | GN98: 760 | GQ98: lamoenframe | GR98: D11/0 | GS98: Ronde doorgaande. De eerste pen steekt 65 uit. | GT98: Op OV e OA van de dwarsregels is een doorgaand A18. | GU98: Voor en achteraan verbindingsmetaal C.. | GV98: B | GX98: A | HB98: lamoenboom | HC98: D | HD98: Voor en achter het zijboord op VB en VO een inlopend afrondingsprofiel. Voor en achter de betimmering op AB en AO een inlopend afrondingsprofiel. | HE98: Op achterste kopse eind band A. Op voorste kopse eind Trekbeugel A. Broekhaak AV en AA. | HG98: 770 | HH98: 1800 | HI98: AA2 | HL98: BA | HP98: AV | HQ98: 800 | HR98: AA | HS98: 1800 | HU98: 942 | HZ98: A | IG98: I | IP98: 230 | IR98: 890 | IT98: 2550 | IU98: A | IV98: 460 | IW98: 180 | IZ98: 90° | JD98: 90° | JE98: Ab4/0 | JG98: Ronde pennen, getapt steken 25 mm uit. | JI98: Op de eerste rong is een haak A. | JL98: 475 | JM98: B | JN98: Op VO tussen de kopse einden en de staanders is een A 14 onderbroken met decoratief accoladeprofielering. | JO98: 4 rongenbeugels E. | JU98: 560 | JV98: rong | JW98: BLC | KJ98: CB1 | KL98: Profielering middenstaander: EGA | KM98: Bovenaan 2 rongenbeugel E. | KP98: FA | KQ98: EA | KU98: houten raamwerk va tweee schuingeitmùmerde staander 1 middenstaander. Bovenregel en ondrel gveat met ronde pen in bodem, steun voor bomen te transportern | LF98: C | LG98: A | LH98: A | LI98: Sporen van restauratie. Verfsysteem na 1960.
A99: 96 | E99: Tussen | F99: 1880 | G99: 1945 | H99: Heemkundig Museum 'De botermolen' | M99: Afkomst | P99: 3140 | Q99: Keerbergen | R99: Vlaams-Brabant | S99: België | T99: B | U99: Ba | V99: Ab | W99: Kempische kruiwagen | X99: Kruiwagen, één wiel, twee S-vormige berriebomen, kruiwagenvoet met houten staanders, afneembare zijborden en vast voorbord. | Y99: wiel | Z99: hout | AA99: kruiwagenvoet | AB99: hout | AC99: kruiwagen | AD99: hout | AE99: verbindingselementen | AF99: metaal | AK99: 1 | AL99: 1 | AM99: A | AN99: 580 | AO99: 10/5 | AP99: A | AQ99: 380 | AR99: 102 | AS99: 30 | AU99: 16 | AV99: 20 | AX99: 0° | BA99: 58 | BB99: 40 | BC99: Rkant, schuinoplopend, kwarthol, vlak, rkant, kwarthol, vlak | BD99: Rkant, schuinoplopend, kwarthol, vlak, rkant, kwarthol, vlak | BE99: K | BF99: B | BI99: 22 | BK99: 2K | EH99: AB0/4 | EJ99: B | EK99: C | FL99: X | GN99: 515 | GQ99: berrieframe | GR99: C4 | GS99: Ronde pennen opgespied steken 30 uit. | GT99: Op OV en OA van de dwarsregels is een doorgaande A14. | GX99: A | HB99: berrieboom | HC99: B | HD99: Voor en achter het laadvlak op alle zijden een inlopend A14. | HG99: 620 | HH99: 890 | HN99: CB8 | HO99: De staander hebben een rechthoekig profiel met op VL en VR een in- en uitlopend A14 dat vervolgens nog eens in- en uiloopt. Op 2/3 hoogte versmald de staander in de dikt door 1/8 hol profiel. | HU99: 320 | HV99: C | HZ99: A | IG99: E | IQ99: 425 | IR99: 620 | IT99: 670 | IU99: B | IZ99: 90° | JB99: 123° | JE99: An1 | JU99: 295 | JV99: rong | JW99: DGA | JY99: ED2/0 | KA99: Op VB van de bovenegel en VO tussen de staandes is een in- en uitlopend A18. Op VL en VR van de staandes is een in- en uitlopend A18 | KC99: B8 | KV99: X | LF99: C | LG99: A | LH99: A | LI99: Sporen van restauratie. Verfsysteem na 1960.
A100: 97 | C100: 36 | E100: Tussen | F100: 1890 | G100: 1930 | H100: Heemkundig Museum 'De botermolen' | N100: Laatste gebruiker | O100: Ballieux | P100: 3051 | Q100: Sint-Joris-Weert | R100: Vlaams-Brabant | S100: België | T100: C | U100: Cg | V100: Be | W100: Limburgse aardkar met vast zijbord | X100: Aardkar, twee wielen, rem, lamoenframe scharnierbaar bevestigd met karbak, vast zijbord, vast voorbord en afneembaar achterbord | Y100: wiel | Z100: hout | AA100: lamoenboomen | AB100: hout | AC100: kar | AD100: hout | AE100: karsteun | AF100: hout | AG100: verbindingselementen | AH100: metaal | AK100: 2 | BQ100: 2 | BR100: A | BS100: 1440 | BT100: 12/6 | BU100: A | BV100: 430 | BW100: 286 | BX100: 75 | BZ100: 62 | CB100: =ASIN(CE100/CD100) * 180 / 3.14 -> 3.585139211 | CD100: 480 | CE100: 30 | CG100: 82 | CH100: 75 | CI100: Rkant, 1/8 hol, vlak, kwartrond, rkant, vlak. | CJ100: 1/8 rond. | CK100: A | CM100: A | CO100: A | CP100: 30 | CQ100: 88 | CR100: A | CS100: 1M | CT100: 2S | CU100: 2K | CW100: 35 | CX100: 1395 | CY100: AA0/1 | DA100: A | DB100: A | DC100: 2BB4 | DH100: AC90 | DJ100: Ruwe stukhouyt met wankanten. | DT100: A | DV100: AC | DW100: 240 x 110 mm gebogen | DX100: laadboom | DY100: 20 | EA100: BB4 | GI100: Ja. | GJ100: A | GK100: A | GN100: 860 | GQ100: lamoenframe | GR100: BB3/1 | GS100: Vierkante pennen opgespiëd steken 65 uit. De verlaagde dwarsregel zit onderaan vast met bout en moer waarmee ook een haak A is vastgezet. | GT100: Op alle zijden van de dwarsregels een A14. | GY100: 1010 | GZ100: E | HB100: lamoenboom | HC100: B | HE100: Trekbeugel A. Tussen de twee dwarsregels is een band A. Metaalbeslag A. Broelkhaak AV en CA | HG100: 670 | HH100: 1940 | HP100: AV | HQ100: 990 | HR100: AA | HS100: 1900 | HU100: 980 | HW100: L | HY100: Linkerzijde, zijbord, midden, vooraan. | HZ100: Ba5/3 | IA100: Niet doorgaande pennen. | IB100: Op OV en OA een doorgaand A18. | IG100: I | IK100: B | IL100: Versmallend vooraan door kwarthol, vlak en vooraan een sponning waarmee hij ruist op de verdiepte dwarsregel van het lamoenframe. Achteraan versmallend door kwarthol, vlak. | IM100: Op achterste kopse eind: metalen omkrompen beugel met aanslag voor opsluiten van het achterbord. | IP100: 80 | IQ100: 120 | IR100: 880 | IT100: 1830 | IU100: A | IZ100: 97° | JB100: 100° | JD100: 95° | JE100: Ba5/1/2 | JH100: De eerste staander is 110° gericht naar voren. Staanders hebben een in- en uilopend A28. | JL100: 350 | JM100: A | JN100: Ronde armeinden steken 70 uit. Op VO tussen de staanders een A14. | JO100: 4 Rongbeugels I. | JU100: 570 | JV100: rong | JW100: BME | JY100: AB3 | KA100: Bovenregel kop B. | KB100: Rechte buitenstaanders 115° gericht t.o.v. het laadvlak 2 rongenbeugels I. | KF100: A | KG100: B | KJ100: AB3 | KL100: Rechte buitenstaanders 115° gericht t.o.v. het laadvlak. 2 rongenbeugels I. Bovenregel kop B. | KP100: A | KQ100: B | LF100: A | LG100: B | LH100: A | LI100: Plaatselijk verzwakt.
A101: 98 | E101: Tussen | F101: 1890 | G101: 1930 | H101: Heemkundig Museum 'De botermolen' | M101: Afkomst | P101: 3140 | Q101: Keerbergen | R101: Vlaams-Brabant | S101: België | T101: C | U101: Cf | V101: Af | W101: Geveerde tweewielkar met sponnenzijbord | X101: Kar, twee wielen, twee halve elipsveren, twee S- vormige lamoenbomen met dwarsregels, betimmering, voorschoot, schutbord, zijbord met sponnen, vaste zijleesten en afneembaar achterbord. | Y101: wiel | Z101: hout | AA101: lamoenboomen | AB101: hout | AC101: kar | AD101: hout | AE101: verbindingselementen | AF101: metaal | AK101: 2 | BQ101: 2 | BR101: A | BS101: 1240 | BT101: 12/6 | BU101: A. | BV101: 275 | BW101: 240 | BX101: 60 | BZ101: 42 | CB101: =ASIN(CE101/CD101) * 180 / 3.14 -> 3.49758676 | CD101: 410 | CE101: 25 | CG101: 62 | CH101: 58 | CI101: Rkant, schuinoplopend, vlak, kwartrond, vlak. | CJ101: Rkant, vlak, rkant, vlak. | CK101: B | CM101: C | CO101: C | CP101: 30 | CQ101: 55 | CR101: A | CS101: 1M | CT101: 2S | CU101: 2K | CW101: 30 | CX101: 1380 | CY101: AD2/3 | DA101: F | DT101: G | ED101: Ja | EE101: 1180 | EF101: 10 | EG101: BBE | GJ101: E | GN101: 760 | GQ101: lamoenframe | GR101: C | HB101: lamoenboom | HC101: C | HE101: Broekhaak AA | HG101: 760 | HH101: 2050 | HP101: AA | HQ101: 1950 | HU101: 980 | HZ101: Ba7/0 | IA101: Pen A | IG101: A | IK101: A | IL101: Op VB en VO een ingewerkt halfrond profiel. Achterste kops eind: kop E. | IP101: 140 | IR101: 1010 | IT101: 2320 | IU101: A | IV101: 550 | IZ101: 100° | JC101: 90° | JD101: 90° | JE101: Ab4/0 | JG101: Vierkante pennen steken 30 uit. | JH101: Iepen betimmering uit één stuk. Op de binnenzijde is een opgetimmerde regel waarop de zitbank geplaatst kan worden. Verbindingsregel met een uitgezaagde accoladebogen. | JL101: 455 | JM101: A | JN101: Vooraan vierkante armeinden steken 50 mm uit. Kop B. Achteraan ronde armeinden steken 95 uit. Op VO is een tussen de staanders een in- en uitlopend A35. Op de bovenregels en rongen zijn metalen hoekbeugels vastegezet van de zijleesten. | JP101: A | JQ101: 122° gericht t.o.v. het zijbord. Breedte 130 mm | JU101: 550 | JV101: rong | JW101: BKH | KJ101: AC3 | KL101: Buitenstaanders S-vormig. Op Vl en VR van de staanders is een in- en uitlopend afrondingsprofiel. Op VO van de bovenregel en VB van de onderregel is tussen de staanders een in- en uitlopend afrondingsprofiel. Kop E. | KP101: A | KQ101: B | LF101: A | LG101: A | LH101: A
A102: 99 | H102: Heemkundig Museum 'De botermolen' | M102: Afkomst | P102: 3140 | Q102: Keerbergen | R102: Vlaams-Brabant | S102: België | T102: A | U102: Aa | V102: Aa | W102: Slede met houten glijbomen en vaste zijborden | X102: Slede met twee houten glijbomen verbonden met dwarsregels, betimmering en vaste zijborden. | Y102: glijboom | Z102: hout | AA102: verbindingselementen | AB102: metaal | AK102: 0 | CO102: A. | GQ102: glijframe | GR102: B2/0 | GS102: De dwarsregels zijn met halfhoutverbinding verbonden met de glijboom. | GU102: Tussen de twee dwarsregels is een dwarse betimmering van planken volgens de breedte. | GX102: A | HB102: glijboom | HC102: A | HD102: Naar de kopse einden toe schuinoplopend en kwartrond. | HE102: De onderkant is belegd met een metalen bladprofiel. | HG102: 560 | HU102: 250 | HZ102: A | IB102: Tussen de twee dwarsregels is volgens de breedte op getimmerde planken met een opening ertussen. | IG102: A | IR102: 690 | IT102: 1650 | IU102: B | IV102: 380 | IW102: 380 | IZ102: 90° | JE102: Bm2 | JH102: De betimmering bestaat uit 2 planken met een opening ertussen | JL102: 670 | JU102: 370 | JV102: rong | JW102: BAA | KV102: X | LF102: A | LG102: A | LH102: A
A103: 100 | C103: 61 | E103: Tussen | F103: 1890 | G103: 1930 | H103: Heemkundig Museum 'De botermolen' | N103: Laatste gebruiker | O103: Frans Wouters | P103: 3150 | Q103: Haacht | R103: Vlaams-Brabant | S103: België | T103: C | U103: Cb | V103: Ad | W103: Hoogkar | X103: Hoogkar, twee wielen, 2 rechte lamoenbomen met dwarsregels, betimmering, sponnenzijbord, afneembaar voor- en achterbord en voor- en achtergekken. | Y103: wiel | Z103: hout | AA103: lamoenboomen | AB103: hout | AC103: kar | AD103: hout | AE103: karsteun | AF103: hout | AG103: verbindingselementen | AH103: metaal | AK103: 2 | BQ103: 2 | BR103: A | BS103: 1490 | BT103: 14/7 | BU103: A | BV103: 490 | BW103: 355 | BX103: 90 | BZ103: 60 | CB103: =ASIN(CE103/CD103) * 180 / 3.14 -> 1.333256028 | CD103: 430 | CE103: 10 | CG103: 113 | CH103: 108 | CI103: Rkant, kwarthol, vlak, kwartrond, rkant, vlak, rkant, vlak. | CJ103: Rkant, kwartrond. | CK103: A | CM103: B | CO103: A | CP103: 42 | CQ103: 90 | CR103: A | CS103: 1M | CT103: 2S | CU103: 2K | CW103: 35 | CX103: 1525 | CY103: DA0/1 | DA103: A | DB103: A | DC103: 2BM4 | DD103: 2BBB4 | DH103: KB30 | DI103: Op VB en AB een in- en uitlopend A30 dat zich vanaf het midden herhaald. | DT103: A | DV103: EC | DW103: 180 x 120 mm | DX103: lamoenboom | DY103: 30 | EA103: BBB4 | GN103: 800 | GQ103: lamoenframe | GR103: DB13/2. | GS103: Ronde pennen. Eerste pen steekt 80 mm uit en is ogespiied met een metalen spie. | GT103: Op OV en OA een A25. | GU103: Opening tussen de regels is 152 mm. Achteraan is de achteste dwarsregel verbonden met de bomen doormidel van verbindingsmetaal B. | GV103: A | GW103: Kopse eind is geprofileerd in de dikte. Rongenbeugel F (zijborden), 2 rongnbeugel A. zijleest | GX103: A | HB103: lamoenboom | HC103: D | HD103: Afronding A. | HE103: Broekhaak AV. Trekbeugel A. | HG103: 690 | HH103: 1750 | HI103: AA2 | HL103: BA | HP103: AV | HQ103: 920 | HR103: AA | HS103: 1920 | HU103: 1040 | HZ103: A | IG103: F | IP103: 140 | IR103: 960 | IT103: 3190 | IU103: A | IV103: 450 | IZ103: 90° | JB103: 90° | JD103: 90° | JE103: Ad5/0 | JG103: Ronde pennen getapt, steken 38 mm uit. | JI103: Op halve hoogte van de betimmering op de buitenkant 5 klossen B met rongenbeugel J. | JL103: 580 | JM103: A | JN103: Vooraan vierkant armeinden steken 70 mm uit. Kop AA. Achteraan ronde armeinden steken 100 uit. Op VO tussen de staanders een A18 dat haaks in- en uiloopt. | JO103: 4 Rongbeugels J. | JP103: E | JQ103: Breedte 200 mm | JU103: 675 | JV103: rong | JW103: BNE | JY103: DE | KA103: Onderbord: de binnenzijden zijn voorzien van accolade profilering. Alle binnenzijde hebben een A24. | KF103: C | KG103: N | KH103: FA | KI103: E | KJ103: AC3 | KL103: Buitenstaanders S-vormig. Op Vl en VR van de staanders is een haaks in- en uitlopend A30. Op VO van de bovenregel en VB van de onderregel is tussen de staanders een in- en uitlopend A20. | KP103: A | KQ103: B | KW103: raamwerk va twee buitenstaander verbonden met 2 opgewerkt met kleine halfrhout verbinden van 2 regels . Op de regel zijn 2 tussenstaander vashgezt met bout en moerr. Onderaan de uitenstaanders is een Rechthoekgi beugel waairn in ee blokeer hout gevat zit due oipgeslote i mzt een metalen pen doorheen de beugel e nhetlaadhout. | KX103: Idem. | LF103: C | LG103: A | LH103: A | LI103: Sporen van restauratie. Verfsysteem na 1960.
A104: 101 | C104: 66 | D104: Vooropsluitbord | E104: Tussen | F104: 1890 | G104: 1930 | H104: Heemkundig Museum 'De botermolen' | N104: Laatste gebruiker | O104: Wauters | P104: 3040 | Q104: Huldenberg | R104: Vlaams-Brabant | S104: België | T104: E | U104: Ek | V104: Ce | W104: Brabantse wagen | X104: Wagen, achteronderstel met twee achterwielen, verbonden doormiddel van een langboom met het vooronderstel. Vooronderstel met twee kleine voorwielen draaibaar verbonden met voorarmen, woelhout en draaispil. Afneembaar laadvlak, metalen rongen en afneembaar zij-, voor- en achterbord. Op de kopse einden van de onderrgel is een afneembaar voor- en achteropsluitbord. | Y104: wiel | Z104: hout | AA104: langboom | AB104: hout | AC104: wagen | AD104: hout | AE104: verbindingselementen | AF104: metaal | AK104: 4 | AL104: 2 | AM104: A. | AN104: 760 | AO104: 10/5 | AP104: A. | AQ104: 330 | AR104: 1950 | AS104: 58 | AU104: 48 | AX104: =ASIN(AZ104/AY104) * 180 / 3.14 -> 1.720003289 | AY104: 200 | AZ104: 6 | BA104: 60 | BB104: 63 | BC104: Rkant, schuinoplopend, kwarthol, vlak. | BD104: Rkant, 1/8 rond. | BE104: A | BF104: A | BG104: A | BH104: 37 | BI104: 60 | BJ104: A | BK104: 1M | BL104: 2S | BM104: 1K | BN104: Naafbandopsluiting A. | BO104: 32 | BP104: 1345 | BQ104: 2 | BR104: A | BS104: 1193 | BT104: 12/6 | BU104: A | BV104: 340 | BW104: 205 | BX104: 60 | BZ104: 48 | CB104: =ASIN(CE104/CD104) * 180 / 3.14 -> 4.058072407 | CD104: 410 | CE104: 29 | CG104: 65 | CH104: 62 | CI104: Rkant, schuinoplopend, kwarthol, vlak. | CJ104: Rkant, 1/8 hol. | CK104: A | CM104: A | CO104: A. | CP104: 37 | CQ104: 60 | CR104: A | CS104: 1M | CT104: 2S | CU104: 2K | CW104: 35 | CX104: 1430 | CY104: AA0/1 | DA104: A | DB104: B | DC104: 2BM6 | DD104: 2BK6 | DH104: BB | DI104: Versmallend door 1/8 hol. | DJ104: Op VB en AB een A25. | DL104: A | DM104: Versmallend door 1/8 hol en schuinoplopend kopse eind. | DN104: Daar waar de bovenblok versmalt op VO en AO een afrondingsprofiel. | DP104: B | DQ104: A | DR104: B | DT104: A | DV104: D | DX104: langboom | EC104: B | EH104: AA0/1 | EJ104: A | EL104: A2 | EM104: EM | EN104: 2CM | ER104: 500 | ES104: C | ET104: 2BM4 | EU104: 1BMS4 | EV104: 2BKA | EX104: CB | EY104: Versmallend door 1/8 hol. | EZ104: Daar waar de asblok versmalt een afrondingsprofiel. | FA104: A | FB104: Versmallend door 1/8 hol profiel. | FC104: Versmalling met een afrondingsprofiel. | FD104: A | FG104: A | FJ104: D1 | FK104: Voorarmbeugel B. | FL104: A | FM104: D | FO104: A | FP104: C | FQ104: 1540 | FR104: A | FS104: Trekbeugel B. Handgreep A. | FT104: E | GA104: FA | GB104: FA | GD104: A | GE104: A | GF104: Glijorofiel op de onderzijde voor op het zwenkhout. | GH104: 2370 | HU104: 930 | HW104: F | HY104: Linkerzijde, onder het zijbord, voor het achterwiel, vastgezet met een metalen beugel op de achterarmen. | HZ104: Da5/2/2 | ID104: A | IE104: Versmallen door kwartrond en schuinoplopend. Tussen de rong- en bovenblok een rongblokstoel | IR104: 870 | IT104: 320 | IU104: A | IZ104: 96° | JB104: 90° | JD104: 90° | JE104: Cf14/0 | JF104: Cg0 | JG104: Pennen steken 30 mm uit. De armeinden van de onderregel steken 90 mm uit. | JI104: Breedte zijbord Cg0 bedraagt 430 mm. | JL104: 220 | JM104: A | JN104: Ronde armeinden steken 90 uit. Op VB een afrondingsprofiel. | JO104: Op de bovenregels en rongen zijn metalen hoekbeugels vastezetten van de zijleesten. | JU104: 490 | KD104: B | KE104: Zowel op de bovenregel als op de onderregel. | KF104: A | KG104: A | KN104: B | KO104: Zowel op de onder als bovenregel. In het midden van het onderste achteropsluitbord is een ronde opening voorzien om vermoedelijk het woelhout in te vatten. | KP104: A | KQ104: A | KV104: X | LF104: C | LG104: A | LH104: A | LI104: Sporen van restauratie. Verfsysteem na 1960.
A105: 102 | E105: Tussen | F105: 1880 | G105: 1945 | H105: Heemkundig Museum 'De botermolen' | M105: Afkomst | P105: 3140 | Q105: Keerbergen | R105: Vlaams-Brabant | S105: België | T105: B | U105: Ba | V105: Ac | W105: Kempische kruiwagen | X105: Kruiwagen, één wiel, twee S-vormige berriebomen, metalen kruiwagenvoet, afneembare zijborden en vast voorbord. | Y105: wiel | Z105: hout | AA105: kruiwagenvoet | AB105: metaal | AC105: kruiwagen | AD105: hout | AE105: verbindingselementen | AF105: metaal | AK105: 1 | AL105: 1 | AM105: A | AN105: 570 | AO105: 8/4 | AP105: A | AQ105: 390 | AR105: 96 | AS105: 30 | AU105: 20 | AV105: 24 | AX105: 0° | BA105: 55 | BB105: 45 | BC105: Vlak, kwarthol, vlak, kwartrond, rkant, vlak. | BD105: Vlak, kwarthol, vlak, kwartrond, rkant, vlak. | BE105: K | BF105: B | BI105: 22 | BK105: 2K | BL105: 2S | BO105: 20 | EH105: AB0/4 | EJ105: B | EK105: C | FL105: X | GN105: 480 | GQ105: berrieframe | GR105: A4 | GS105: Ronde pennen, getapt steken 40 uit. | GT105: Op OV en OA een A25. | GX105: A | HB105: berrieboom | HC105: B | HD105: Voor laadvlak op alle zijde een inlopend A12. OP het kopse einde bovenaan is haak vastgezet mee met de opsluitbeugel van de wielas. Achter het laadvlak is op BV en BA een afrondingsprofiel. | HG105: 575 | HH105: 780 | HN105: D | HU105: 290 | HV105: A | HZ105: A | IG105: H | IQ105: 390 | IR105: 690 | IT105: 670 | IU105: B | IZ105: 96° | JB105: 129° | JD105: 90° | JE105: An1 | JU105: 290 | JV105: rong | JW105: DGA | JY105: EE2/140/0 | JZ105: Ronde pennen. | KA105: Op VL en VR van de staanders een in- en uitlopend A20. Op VO van de bovenregel tussen de staanders in- en uitopend A20 en op VB en AB een doorgaand A20. | KC105: B8 | KJ105: CD0 | KP105: C | KV105: X | LF105: C | LG105: A | LH105: A | LI105: Sporen van restauratie. Verfsysteem na 1960.
A106: 103 | E106: Tussen | F106: 1880 | G106: 1945 | H106: Heemkundig Museum 'De botermolen' | M106: Afkomst | P106: 3140 | Q106: Keerbergen | R106: Vlaams-Brabant | S106: België | T106: B | U106: Ba | V106: Ac | W106: Kempische kruiwagen | X106: Kruiwagen, één wiel, twee S-vormige berriebomen, metalen kruiwagenvoet, afneembare zijborden en vast voorbord. | Y106: wiel | Z106: hout | AA106: kruiwagenvoet | AB106: metaal | AC106: kruiwagen | AD106: hout | AE106: verbindingselementen | AF106: metaal | AK106: 1 | AL106: 1 | AM106: A | AN106: 575 | AO106: 8/4 | AP106: A | AQ106: 380 | AR106: 115 | AS106: 30 | AU106: 20 | AV106: 24 | AX106: 0° | BA106: 45 | BB106: 45 | BC106: Rkant, schuinoplopend, rkant, kwarthol, vlak met dubbele groef met breedte van 12 mm. | BD106: Rkant, schuinoplopend, rkant, kwarthol, vlak met dubbele groef met breedte van 12 mm. | BE106: I | BF106: A | BI106: 27 | BK106: 2K | EH106: AB0/4 | EJ106: B | EK106: C | FL106: X | GN106: 506 | GQ106: berrieframe | GR106: E4 | GS106: Vierkante pennen, Voorste pen steek 65 mm uit. Achterste pen opgespiëd steekt 35 mm uit. | GT106: Op OV en OA een A25. | GX106: A | HB106: berrieboom | HC106: B | HD106: Voor laadvlak op alle zijde een inlopend A17. Op het kopse einde bovenaan is haak vastgezet mee met de opsluitbeugel van de wielas. Achter het laadvlak op OV en OA een in- en uitlopend en op BV en BA een inlopend A18. | HG106: 630 | HH106: 900 | HN106: D | HU106: 310 | HV106: CA | HZ106: A | IG106: J | IQ106: 390 | IR106: 610 | IT106: 680 | IU106: B | IZ106: 90° | JB106: 127° | JD106: 90° | JE106: An1 | JU106: 280 | JV106: rong | JW106: DGA | JY106: ED2/0 | KA106: Op VL en VR van de staanders een doorgaand A14. Op VO van de bovenregel tussen de staanders in- en uitopend A14 en op VB en AB een doorgaand A14. | KB106: Bovenaan de bovenregel zijn 2 ronde pennen (vierkant met A10, ingeboord en steken 120 uit. | KC106: B8 | KJ106: CD0 | KP106: C | KQ106: U | KV106: X | LF106: A | LG106: A | LH106: A
A107: 104 | E107: Tussen | F107: 1880 | G107: 1945 | H107: Heemkundig Museum 'De botermolen' | M107: Afkomst | P107: 3140 | Q107: Keerbergen | R107: Vlaams-Brabant | S107: België | T107: B | U107: Ba | V107: Ac | W107: Kempische kruiwagen | X107: Kruiwagen, één wiel, twee S-vormige berriebomen, metalen kruiwagenvoet, afneembare zijborden en vast voorbord. | Y107: wiel | Z107: hout | AA107: kruiwagenvoet | AB107: metaal | AC107: kruiwagen | AD107: hout | AE107: verbindingselementen | AF107: metaal | AK107: 1 | AL107: 1 | AM107: A | AN107: 550 | AO107: 8/4 | AP107: A | AQ107: 410 | AR107: 130 | AS107: 28 | AU107: 20 | AV107: 24 | AX107: 0° | BA107: 50 | BB107: 50 | BC107: Schuinoplopend, kwartrond, rkant, vlak. | BD107: Schuinoplopend, kwartrond, rkant, vlak. | BE107: K | BF107: B | BI107: 18 | BK107: 2K | BL107: 2S | BO107: 18 | EH107: AB0/4 | EJ107: B | EK107: C | FL107: X | GN107: 528 | GQ107: berrieframe | GR107: A4 | GS107: Ronde pennen, getapt steken 50 mm uit. | GT107: Op OV en OA een A15. | GX107: A | HB107: berrieboom | HC107: B | HD107: Voor laadvlak op alle zijde een inlopend A12. Op het kopse einde bovenaan is haak vastgezet mee met de opsluitbeugel van de wielas. Achter het laadvlak is op alle zijden een inlopend A12. | HG107: 633 | HH107: 770 | HN107: DA | HU107: 285 | HV107: C | HZ107: A | IG107: I | IH107: H | II107: J | IQ107: 390 | IR107: 720 | IT107: 680 | IU107: B | IZ107: 90° | JB107: 123° | JD107: 90° | JE107: An1 | JU107: 295 | JV107: rong | JW107: DCA | JY107: EE2/180/0 | JZ107: Ronde pennen. | KA107: Op VL en VR van de staanders is onderaan een lang inlopend en bovenaan een kort uitlopend A20. Op VO van de bovenregel tussen de staanders in- en uitopend A20 en op VB en AB een doorgaand A20. | KC107: B8 | KJ107: CD0 | KP107: C | KQ107: U | KV107: X | LF107: B | LG107: A | LH107: A | LI107: Verfsysteem na 1960.
A108: 105 | E108: Tussen | F108: 1880 | G108: 1945 | H108: Heemkundig Museum 'De botermolen' | M108: Afkomst | P108: 3140 | Q108: Keerbergen | R108: Vlaams-Brabant | S108: België | T108: B | U108: Ba | V108: Ac | W108: Kempische kruiwagen | X108: Kruiwagen, één wiel, twee S-vormige berriebomen, metalen kruiwagenvoet, afneembare zijborden en vast voorbord. | Y108: wiel | Z108: hout | AA108: kruiwagenvoet | AB108: metaal | AC108: kruiwagen | AD108: hout | AE108: verbindingselementen | AF108: metaal | AK108: 1 | AL108: 1 | AM108: A | AN108: 555 | AO108: 8/4 | AP108: A | AQ108: 355 | AR108: 105 | AS108: 30 | AU108: 20 | AV108: 24 | AX108: 0° | BA108: 55 | BB108: 45 | BC108: Schuinoplopend, kwarthol, vlak, ingewerkt halfrond, rkant, vlak. | BD108: Schuinoplopend, kwarthol, vlak, ingewerkt halfrond, rkant, vlak. | BE108: K | BF108: B | BI108: 20 | BK108: 2K | EH108: AB0/4 | EJ108: B | EK108: C | FL108: X | GN108: 500 | GQ108: berrieframe | GR108: C4 | GS108: Ronde pennen getapt. Voorste pen steekt 60 mm uit. Overige pennen steken 28 mm uit. | GT108: Op OV en OA een doorgaand A18. | GX108: A | HB108: berrieboom | HC108: B | HD108: Voor laadvlak is op BV en BA een inlopend A20. Op OV en OA een in- en uitlopend A20. Op het kopse einde bovenaan is haak vastgezet mee met de opsluitbeugel van de wielas. Achter het laadvlak is op BO en BA een inlopend afrondingsprofiel en op OV en OA een inloped A20. | HG108: 615 | HH108: 885 | HN108: D | HU108: 300 | HV108: C | HZ108: A | IG108: J | IQ108: 390 | IR108: 610 | IT108: 660 | IU108: B | IZ108: 90° | JB108: 127° | JD108: 90° | JE108: An1 | JU108: 290 | JV108: rong | JW108: DGA Kop B | JY108: ED2/0 | KA108: Op VL en VR van de staanders is en in- en uitlopend A22. Op VO van de bovenregel tussen de staanders en kopse einden een in- en uitopend A22 en op VB en AB een doorgaand A14. | KB108: Bovenaan de bovenregel zijn 2 ronde pennen (vierkant met A10), ingeboord en steken 120 uit. | KC108: B8 | KJ108: CD0 | KP108: C | KQ108: U | KV108: X | LF108: C | LG108: A | LH108: A | LI108: Sporen van restauratie. Verfsysteem na 1960.
A109: 106 | E109: Tussen | F109: 1880 | G109: 1945 | H109: Heemkundig Museum 'De botermolen' | M109: Afkomst | P109: 3140 | Q109: Keerbergen | R109: Vlaams-Brabant | S109: België | T109: B | U109: Ba | V109: Ac | W109: Kempische kruiwagen | X109: Kruiwagen, één wiel, twee S-vormige berriebomen, metalen kruiwagenvoet, afneembare zijborden en vast voorbord. | Y109: wiel | Z109: hout | AA109: kruiwagenvoet | AB109: metaal | AC109: kruiwagen | AD109: hout | AE109: verbindingselementen | AF109: metaal | AK109: 1 | AL109: 1 | AM109: A | AN109: 530 | AO109: 8/4 | AP109: A | AQ109: 540 | AR109: 98 | AS109: 30 | AU109: 18 | AV109: 22 | AX109: 0° | BA109: 50 | BB109: 45 | BC109: Schuinoplopend, ogief, rkant, 1/8 rond. | BD109: Schuinoplopend, ogief, rkant, 1/8 rond. | BE109: K | BF109: B | BI109: 30 | BK109: 2K | EH109: AB0/4 | EJ109: B | EK109: C | FL109: X | GN109: 516 | GQ109: berrieframe | GR109: C4 | GS109: Ronde pennen opgespiëd. Voorste pen steekt 60 mm uit. Overige pennen steken 22 mm uit. | GT109: Op OV en OA een doorgaand A20. Alle pennen hebben kop B. | GX109: A | HB109: berrieboom | HC109: B | HD109: Voor laadvlak op BV en BA een kort inlopend en langzaam uitopend A16. Op OV en OA een in- en uitlopend A16. Op het kopse einde bovenaan is haak vastgezet mee met de opsluitbeugel van de wielas. Achter het laadvlak is op alle zijden een inlopend A16. | HG109: 640 | HH109: 925 | HN109: D | HU109: 300 | HV109: A | HZ109: A | IG109: J | IQ109: 380 | IR109: 620 | IT109: 640 | IU109: B | IZ109: 90° | JB109: 127° | JD109: 90° | JE109: Ao1 | JU109: 290 | JV109: rong | JW109: DBA | JY109: ED2/0 | KA109: Op VL en VR van de staanders is en in- en uitlopend A20. Op VO van de bovenregel tussen de staanders en kopse einden een in- en uitopend A20 en op VB en AB een doorgaand A15. | KC109: B8 | KJ109: CC0 | KP109: C | KQ109: U | KV109: X | LF109: B | LG109: A | LH109: A | LI109: Verfsysteem na 1960.
A110: 107 | E110: Tussen | F110: 1880 | G110: 1930 | H110: Heemkundig Museum 'De botermolen' | M110: Afkomst | P110: 3140 | Q110: Keerbergen | R110: Vlaams-Brabant | S110: België | T110: A | U110: Aa | V110: Dc | W110: Slede met houten glijbomen en staanders | X110: Slede met twee houten glijbomen verbonden met dwarsregels en voorzien van staanders. | Y110: glijboom | Z110: hout | AA110: verbindingselementen | AB110: metaal | AK110: 0 | GN110: 615 | GQ110: glijframe | GR110: B1/0 | GS110: Ronde pennen getapt steken 10 uit. | GU110: Op de eerste dwarsregel is een hoefijzer vastgezet als trekhaak. Hoogte staanders vanaf de grond, 660 mm. Hoogte bovenste dwarregel vanaf de grond, 550 mm. Oversteek glijboom achteraan achterste staander, 260. Oversteek glijboom vooraan voorste staander, 430. | HB110: glijboom | HC110: A | HD110: Vooraan, kwartrond. | HF110: Lengte glijboom,1630 mm. | HG110: 600 | IN110: 2 staanders, 2 regels. Lengte staander 340, hoogte regel 1 120, regel 2 240. Staanders verstevigd met omgekeerd V-vormige metalen bladprofiel. | IO110: 2 staanders, 2 regels. Lengte staander 410, hoogte regel 1 300, regel 2 110. Staanders verstevigd met omgekeerd V-vormige metalen bladprofiel. | IP110: 170 | IQ110: 370 | KV110: X | LF110: A | LG110: A | LH110: A
A111: 108 | E111: Tussen | F111: 1880 | G111: 1930 | H111: Heemkundig Museum 'De botermolen' | M111: Afkomst | P111: 3140 | Q111: Keerbergen | R111: Vlaams-Brabant | S111: België | T111: A | U111: Aa | V111: Dc | W111: Slede met houten glijbomen en staanders | X111: Slede met twee houten glijbomen verbonden met dwarsregels en voorzien van staanders. | Y111: glijboom | Z111: hout | AA111: verbindingselementen | AB111: metaal | AK111: 0 | GN111: 610 | GQ111: glijframe | GR111: B1/0 | GU111: In het midden van de eerste dwarsregel is een gat. Op de eerste dwarsregel is een verbindingsmetaal E. | HB111: glijboom | HC111: D | HF111: Lengte gijboom: 1550 mm. | HG111: 605 | IN111: 2 staanders, 1 regel. Lengte staander 540, hoogte regel 410. | IO111: 2 staanders, 2 regels. Lengte staander 540, hoogte regel 245, regel2 410. | IP111: 300 | IQ111: 420 | KV111: X | LF111: A | LG111: A | LH111: A
A112: 109 | E112: Tussen | F112: 1880 | G112: 1930 | H112: Heemkundig Museum 'De botermolen' | M112: Afkomst | P112: 3140 | Q112: Keerbergen | R112: Vlaams-Brabant | S112: België | T112: A | U112: Aa | V112: Dc | W112: Slede met houten glijbomen en staanders | X112: Slede met twee houten glijbomen verbonden met dwarsregels en voorzien van staanders. | Y112: glijboom | Z112: hout | AA112: verbindingselementen | AB112: metaal | AK112: 0 | GN112: 625 | GQ112: glijframe | GR112: B1/0 | GU112: De voorste dwarregel is opgetimmerd en verstevigd met metalen bandprofiel. | HB112: glijboom | HC112: A | HD112: Vooraan kwartrond. De glijboom is naar voren toe verbreed met een opgetimmerde klos. | HF112: Lengte gijboom: 1460 mm. | HG112: 620 | IN112: 2 staanders, 1 regel. Lengte staander 340, hoogte regel 255. De regel is verbonden door middel van twee regels met de regel van standaart 2. | IO112: 2 staanders, 1 regel. Lengte staander 340, hoogte regel 255. | IP112: 150 | IQ112: 300 | KV112: X | LF112: A | LG112: A | LH112: A
A113: 110 | E113: Tussen | F113: 1880 | G113: 1945 | H113: Heemkundig Museum 'De botermolen' | M113: Afkomst | P113: 3140 | Q113: Keerbergen | R113: Vlaams-Brabant | S113: België | T113: B | U113: Ba | V113: Ac | W113: Kempische kruiwagen | X113: Kruiwagen, één wiel, twee S-vormige berriebomen, metalen kruiwagenvoet, afneembare zijborden en vast voorbord. | Y113: wiel | Z113: hout | AA113: kruiwagenvoet | AB113: metaal | AC113: kruiwagen | AD113: hout | AE113: verbindingselementen | AF113: metaal | AK113: 1 | AL113: 1 | AM113: A | AN113: 560 | AO113: 8/4 | AP113: A | AQ113: 385 | AR113: 108 | AS113: 30 | AT113: 38 | AU113: 20 | AV113: 24 | AX113: 0° | BA113: 45 | BB113: 45 | BC113: Rkant, schuinoplopend, rkant, ogief, rkant, vlak. | BD113: Rkant, schuinoplopend, rkant, ogief, rkant, vlak. | BE113: I | BF113: A | BI113: 20 | BK113: 2K | EH113: AB0/4 | EJ113: B | EK113: C | FL113: X | GN113: 510 | GQ113: berrieframe | GR113: E4 | GS113: Rond pennen. Voorste steek 55 mm uit. De achtste opgespiëd steekt 50 mm uit. | GT113: Op OV en OA een A16. | GX113: A | HB113: berrieboom | HC113: B | HD113: Voor laadvlak op BV en BA een inlopend A16. Op OV en OA een in- en uitlopend A16. Op het kopse einde bovenaan is haak vastgezet mee met de opsluitbeugel van de wielas. Achter het laadvlak is op BV en BA een inlopend afrondingsprofiel en op OV en OA een inlopend A16 | HF113: Lengte gijboom: 1590 mm. | HG113: 555 | HH113: 880 | HN113: D | HU113: 255 | HV113: C | HZ113: A | IG113: J | IQ113: 400 | IR113: 610 | IT113: 680 | IU113: B | IZ113: 90° | JB113: 126° | JD113: 90° | JE113: An1 | JU113: 270 | JV113: rong | JW113: DGA | JY113: ED2/0 | KA113: Op VL en VR van de staanders is en in- en uitlopend A15. Op VO van de bovenregel tussen de staanders en doorlopend op het kopse einden een in- en uitopend en op VB en AB een doorgaand A15. | KB113: Bovenaan de bovenregel zijn 2 ronde pennen die 160 mm uitsteken. | KC113: B8 | KJ113: CD0 | KP113: C | KQ113: U | KV113: X | KX113: Opsluiting achterbord C en G. | LF113: B | LG113: A | LH113: A
